Workbook

Sheet Tabla Presupuesto Global (hidden)
E1: PRESUPUESTO PARA PROYECTO DE INICIACIÓN CIENTÍFICA-PI
E2: ="Tabla 1. PRESUPUESTO GLOBAL PROYECTO "&Presupuesto!D7 -> Tabla 1. PRESUPUESTO GLOBAL PROYECTO
B3: RUBROS | D3: JUSTIFICACIÓN | E3: Fuentes (Miles de $)
E4: *UMNG | G4: Entidad1 | I4: Entidad2 | K4: Entidad3 | M4: Entidad4 | O4: Entidad5 | Q4: Entidad6 | S4: Entidad7 | U4: Entidad8 | W4: Entidad9 | Y4: Entidad10 | AA4: Total
E5: Efectivo | F5: Especie | G5: Efectivo | H5: Especie | I5: Efectivo | J5: Especie | K5: Efectivo | L5: Especie | M5: Efectivo | N5: Especie | O5: Efectivo | P5: Especie | Q5: Efectivo | R5: Especie | S5: Efectivo | T5: Especie | U5: Efectivo | V5: Especie | W5: Efectivo | X5: Especie | Y5: Efectivo | Z5: Especie
B6: 1.1. GASTOS DE PERSONAL (no esta en la lista de rubros) | E6: =SUM(E8:E9) -> 0 | F6: =SUM(F8:F9) -> 0 | G6: 0 | H6: 0 | I6: 0 | J6: 0 | K6: 0 | L6: 0 | M6: 0 | N6: 0 | O6: 0 | P6: 0 | Q6: 0 | R6: 0 | S6: 0 | T6: 0 | U6: 0 | V6: 0 | W6: 0 | X6: 0 | Y6: 0 | Z6: 0 | AA6: =SUM(E6:Z6) -> 0
B7: RUBROS | C7: CÓDIGO | D7: JUSTIFICACIÓN
B8: COMPENSACIÓN ORDINARIA (incluye parafiscales y seguridad social) | C8: 0 | E8: 0 | F8: 0 | AA8: =SUM(E8:Z8) -> 0
B9: PERSONAL DE OTRAS ENTIDADES | C9: 0 | E9: 0 | F9: 0 | AA9: =SUM(E9:Z9) -> 0
B10: 1.1. PERSONAL CIENTÍFICO Y DE APOYO | E10: =SUM(E12:E12) -> 0 | F10: =SUM(F12:F12) -> 0 | G10: 0 | H10: 0 | I10: 0 | J10: 0 | K10: 0 | L10: 0 | M10: 0 | N10: 0 | O10: 0 | P10: 0 | Q10: 0 | R10: 0 | S10: 0 | T10: 0 | U10: 0 | V10: 0 | W10: 0 | X10: 0 | Y10: 0 | Z10: 0 | AA10: =SUM(E10:Z10) -> 0
B11: RUBROS | C11: CÓDIGO | D11: JUSTIFICACIÓN | AA11: 0 | BA11: ID Rubro | BB11: RUBRO | BC11: Fila
A12: 611401 | B12: Personal | C12: 611401 | E12: =VLOOKUP($A12,Dt_Pres2,3,0) -> 0 | F12: =VLOOKUP($A12,Dt_Pres2,6,0) -> 0 | AA12: 0 | BA12: =A12 -> 611401 | BB12: =B12 -> Personal | BC12: =ROW() -> 12
B13: 1.2. ESTIMULO A ESTUDIANTES | E13: =SUM(E15:E16) -> 0 | F13: =SUM(F15:F16) -> 0 | G13: 0 | H13: 0 | I13: 0 | J13: 0 | K13: 0 | L13: 0 | M13: 0 | N13: 0 | O13: 0 | P13: 0 | Q13: 0 | R13: 0 | S13: 0 | T13: 0 | U13: 0 | V13: 0 | W13: 0 | X13: 0 | Y13: 0 | Z13: 0 | AA13: 0 | BA13: =A13 -> 0 | BB13: =B13 -> 1.2. ESTIMULO A ESTUDIANTES | BC13: =ROW() -> 13
B14: RUBROS | D14: JUSTIFICACIÓN | AA14: 0 | BA14: 0 | BB14: RUBROS | BC14: =ROW() -> 14
A15: 612122 | B15: Estímulo a estudiantes Pregrado | C15: 612122 | E15: =VLOOKUP($A15,Dt_Pres2,3,0) -> 0 | F15: =VLOOKUP($A15,Dt_Pres2,6,0) -> 0 | AA15: 0 | BA15: 612122 | BB15: Estímulo a estudiantes Pregrado | BC15: =ROW() -> 15
A16: 612123 | B16: Estímulo a estudiantes Posgrado | C16: 612123 | E16: =VLOOKUP($A16,Dt_Pres2,3,0) -> 0 | F16: =VLOOKUP($A16,Dt_Pres2,6,0) -> 0 | AA16: 0 | BA16: 612123 | BB16: Estímulo a estudiantes Posgrado | BC16: =ROW() -> 16
B17: 1.3. EQUIPOS Y SOFTWARE | E17: =SUM(E19:E23) -> 0 | F17: =SUM(F19:F22) -> 0 | G17: 0 | H17: 0 | I17: 0 | J17: 0 | K17: 0 | L17: 0 | M17: 0 | N17: 0 | O17: 0 | P17: 0 | Q17: 0 | R17: 0 | S17: 0 | T17: 0 | U17: 0 | V17: 0 | W17: 0 | X17: 0 | Y17: 0 | Z17: 0 | AA17: 0 | BA17: 0 | BB17: 1.3. EQUIPOS Y SOFTWARE | BC17: =ROW() -> 17
B18: RUBROS | D18: JUSTIFICACIÓN | AA18: 0 | BA18: 0 | BB18: RUBROS | BC18: =ROW() -> 18
A19: 632 | B19: Equipos y Mobiliario (Equipos) | C19: 632 | E19: =VLOOKUP($A19,Dt_Pres2,3,0) -> 0 | F19: =VLOOKUP($A19,Dt_Pres2,6,0) -> 0 | AA19: 0 | BA19: 632 | BB19: Equipos y Mobiliario (Equipos) | BC19: =ROW() -> 19
A20: 612102 | B20: Software | C20: 612102 | E20: =VLOOKUP($A20,Dt_Pres2,3,0) -> 0 | F20: =VLOOKUP($A20,Dt_Pres2,6,0) -> 0 | AA20: 0 | BA20: 612102 | BB20: Software | BC20: =ROW() -> 20
A21: 612101 | B21: Materiales | C21: 612101 | E21: =VLOOKUP($A21,Dt_Pres2,3,0) -> 0 | F21: =VLOOKUP($A21,Dt_Pres2,6,0) -> 0 | AA21: 0 | BA21: 612101 | BB21: Materiales | BC21: =ROW() -> 21
A22: 612101-1 | B22: Papelería | C22: 612101-1 | E22: =Presupuesto!P56 -> 0 | F22: =_xlfn.IFNA(VLOOKUP($A22,Dt_Pres2,6,0),0) -> 0 | AA22: 0 | BA22: =-BA21 -> -612101 | BB22: Papelería | BC22: =ROW() -> 22
A23: 636012 | B23: Licenciamiento | C23: PIC005 | E23: =VLOOKUP($A23,Dt_Pres2,3,0) -> 0 | F23: =VLOOKUP($A23,Dt_Pres2,6,0) -> 0 | AA23: =SUM(E23:Z23) -> 0 | BA23: 636012 | BB23: Licenciamiento | BC23: =ROW() -> 23
B24: 1.4. SALIDAS DE CAMPO Y MOVILIDAD | E24: =SUM(E26) -> 0 | F24: =SUM(F26) -> 0 | G24: =SUM(G26) -> 0 | H24: =SUM(H26) -> 0 | I24: 0 | J24: 0 | K24: 0 | L24: 0 | M24: 0 | N24: 0 | O24: 0 | P24: 0 | Q24: 0 | R24: 0 | S24: 0 | T24: 0 | U24: 0 | V24: 0 | W24: 0 | X24: 0 | Y24: 0 | Z24: 0 | AA24: 0 | BA24: 0 | BB24: 1.4. SALIDAS DE CAMPO Y MOVILIDAD | BC24: =ROW() -> 24
B25: RUBROS | D25: JUSTIFICACIÓN | AA25: 0 | BA25: 0 | BB25: RUBROS | BC25: =ROW() -> 25
A26: 612104 | B26: Salidas de campo | C26: 612104 | E26: =VLOOKUP($A26,Dt_Pres2,3,0) -> 0 | F26: =VLOOKUP($A26,Dt_Pres2,6,0) -> 0 | AA26: =SUM(E26:Z26) -> 0 | BA26: 612104 | BB26: Salidas de campo | BC26: =ROW() -> 26
B27: 1.5. MATERIALES Y SERVICIOS TÉCNICOS | E27: =SUM(E29) -> 0 | F27: =SUM(F29) -> 0 | G27: 0 | H27: 0 | I27: 0 | J27: 0 | K27: 0 | L27: 0 | M27: 0 | N27: 0 | O27: 0 | P27: 0 | Q27: 0 | R27: 0 | S27: 0 | T27: 0 | U27: 0 | V27: 0 | W27: 0 | X27: 0 | Y27: 0 | Z27: 0 | AA27: 0 | BA27: 0 | BB27: 1.5. MATERIALES Y SERVICIOS TÉCNICOS | BC27: =ROW() -> 27
B28: RUBROS | D28: JUSTIFICACIÓN | AA28: 0 | BA28: 0 | BB28: RUBROS | BC28: =ROW() -> 28
A29: 612103 | B29: Servicios Técnicos | C29: 612103 | E29: =VLOOKUP($A29,Dt_Pres2,3,0) -> 0 | F29: =VLOOKUP($A29,Dt_Pres2,6,0) -> 0 | AA29: =SUM(E29:Z29) -> 0 | BA29: 612103 | BB29: Servicios Técnicos | BC29: =ROW() -> 29
B30: 1.6. PUBLICACIONES Y DIFUSIÓN DE RESULTADOS | E30: =SUM(E32:E33) -> 0 | F30: =SUM(F32:F33) -> 0 | G30: 0 | H30: 0 | I30: 0 | J30: 0 | K30: 0 | L30: 0 | M30: 0 | N30: 0 | O30: 0 | P30: 0 | Q30: 0 | R30: 0 | S30: 0 | T30: 0 | U30: 0 | V30: 0 | W30: 0 | X30: 0 | Y30: 0 | Z30: 0 | AA30: 0 | BA30: 0 | BB30: 1.6. PUBLICACIONES Y DIFUSIÓN DE RESULTADOS | BC30: =ROW() -> 30
B31: RUBROS | D31: JUSTIFICACIÓN | AA31: 0 | BA31: 0 | BB31: RUBROS | BC31: =ROW() -> 31
A32: 633 | B32: Recursos bibliográficos | C32: 633 | E32: =VLOOKUP($A32,Dt_Pres2,3,0) -> 0 | F32: =VLOOKUP($A32,Dt_Pres2,6,0) -> 0 | AA32: 0 | BA32: 633 | BB32: Recursos bibliográficos | BC32: =ROW() -> 32
A33: 635020 | B33: Movilidad | C33: 635020 | E33: =VLOOKUP($A33,Dt_Pres2,3,0) -> 0 | F33: =VLOOKUP($A33,Dt_Pres2,6,0) -> 0 | AA33: =SUM(E33:Z33) -> 0 | BA33: =A33 -> 635020 | BB33: Movilidad | BC33: =ROW() -> 33
B34: TOTAL | C34: 3 | D34: =$AA$34 -> 0 | E34: =SUM(E10,E13,E17,E24,E27,E30) -> 0 | F34: =SUM(F10,F13,F17,F24,F27,F30) -> 0 | G34: 0 | H34: 0 | I34: 0 | J34: 0 | K34: 0 | L34: 0 | M34: 0 | N34: 0 | O34: 0 | P34: 0 | Q34: 0 | R34: 0 | S34: 0 | T34: 0 | U34: 0 | V34: 0 | W34: 0 | X34: 0 | Y34: 0 | Z34: 0 | AA34: =SUM(E34:Z34) -> 0 | BA34: 0 | BB34: TOTAL | BC34: =ROW() -> 34
BA35: 0 | BB35: 0 | BC35: =ROW() -> 35
B48: =COLUMN() -> 2 | C48: =COLUMN() -> 3 | D48: =COLUMN() -> 4 | E48: =COLUMN() -> 5 | F48: =COLUMN() -> 6 | G48: =COLUMN() -> 7 | H48: =COLUMN() -> 8 | I48: =COLUMN() -> 9 | J48: =COLUMN() -> 10 | K48: =COLUMN() -> 11 | L48: =COLUMN() -> 12 | M48: =COLUMN() -> 13 | N48: =COLUMN() -> 14 | O48: =COLUMN() -> 15 | P48: =COLUMN() -> 16 | Q48: =COLUMN() -> 17 | R48: =COLUMN() -> 18 | S48: =COLUMN() -> 19 | T48: =COLUMN() -> 20 | U48: =COLUMN() -> 21 | V48: =COLUMN() -> 22 | W48: =COLUMN() -> 23 | X48: =COLUMN() -> 24 | Y48: =COLUMN() -> 25 | Z48: =COLUMN() -> 26 | AA48: =COLUMN() -> 27

Sheet Presupuesto
A1: 9 | S1: Tabla de Topes | V1: Validación | W1: =IF(P2="INV",2,3) -> 3 | Y1: Productividad Vs Presupuesto
M2: 1.-> Limite presupuestal | N2: =IF(MIN(N6:P6)<1, 15000000,MIN(N6:P6)) -> 5000000 | O2: =N2/M6 -> 5 | P2: =H10 -> PIC | R2: Clasif | S2: INV | T2: IMP | V2: C | W2: =IFERROR(VLOOKUP($V2,$R$2:$T$9,W$1,0),0) -> 0 | Y2: =INT(W8/10)*10 -> 40 | Z2: Pts | AA2: $$$$
B3: PRESENTACIÓN DE PROYECTOS DE INVESTIGACIÓN | H3: Fecha de Emisión: 2019/03/18 | I3: IN-IV-F-14 | N3: Limite Grupo | O3: Limite Producto | P3: Limite Convo | R3: A | S3: 70 | T3: 0 | W3: =IFERROR(VLOOKUP($V3,$R$2:$T$9,W$1,0),0) -> 0 | Y3: =IF($Y$2>Z3,0,1) -> 0 | Z3: 39 | AA3: 15
H4: Revisión N°: 4 | I4: Página 9 de 11 | M4: Mayor Grupo | N4: =IF($H$10="INV",AB47,P4) -> 5 | O4: =VLOOKUP(1,$Y$2:$AA$10,3,0) -> 30 | P4: =VLOOKUP($P$2,U50:$V$61,2,0) -> 5 | R4: A1 | S4: 70 | T4: 0 | W4: =IFERROR(VLOOKUP($V4,$R$2:$T$9,W$1,0),0) -> 0 | Y4: =IF($Y$2>Z4,0,1) -> 1 | Z4: 49 | AA4: 30
R5: B | S5: 60 | T5: 0 | W5: =IFERROR(VLOOKUP($V5,$R$2:$T$9,W$1,0),0) -> 0 | Y5: =IF($Y$2>Z5,0,1) -> 1 | Z5: 59 | AA5: 50
M6: 1000000 | N6: =N4*M6 -> 5000000 | O6: =M6*O4 -> 30000000 | P6: =M6*P4 -> 5000000 | R6: C | S6: 50 | T6: 0 | Y6: =IF($Y$2>Z6,0,1) -> 1 | Z6: 79 | AA6: 60
B7: T | C7: Título de la Propuesta : | R7: R | S7: 30 | T7: 0 | Y7: =IF($Y$2>Z7,0,1) -> 1 | Z7: 80 | AA7: 70
B8: L | C8: Líder responsable | G8: Código VICEIN: | R8: NR | S8: 15 | T8: 0 | V8: Pts | W8: =G10 -> 40 | Y8: =IF($Y$2<Z8,0,1) -> 0 | Z8: 200 | AA8: 220
C9: Grupo | R9: NA | S9: 0 | T9: 0
A10: 12.- | B10: Presupuesto rubro personal asocidado a la propuesta | G10: 40 | H10: PIC | I10: 0 | K10: =IFERROR(AA47,"Sin Grupo") -> 0 | L10: =IFERROR(VLOOKUP($I$10,$X$51:$Y$59,2,0),"-") -> OP!Q3:Q79
I11: =ABS(MAX(D13:D23)) -> 0
B12: a. | C12: Personal de planta o ocasional que integra al proyecto de investigación. | H12: Valores de Contrapartida.
A13: =ROW() -> 13 | B13: N° | C13: Sueldo Neto | D13: Factor | E13: Tipo de Vinculo UMNG | F13: Numero de meses | G13: Número Horas / Semanal | H13: Valor Final | I13: Identificación | J13: 4 | L13: *tabla de consolidacion por año para proyectos IMP
B14: =ROW()-$A$13 -> 1 | D14: =IF(OR($E14=$M$15,$E14=$M$16),1.7,IF($E14=$M$17,1.5,0)) -> 0 | H14: =IFERROR(INT(((C14*F14)/40)*G14*$D$14),0) -> 0 | J14: 9 | L14: 0 | M14: Tipo Vinculo UMNG | N14: Año1 | O14: Año2 | Q14: Validación Presupuestal
B15: =ROW()-$A$13 -> 2 | D15: =IF(OR($E15=$M$15,$E15=$M$16),1.7,IF($E15=$M$17,1.5,0)) -> 0 | H15: =IFERROR(INT(((C15*F15)/40)*G15*$D$14),0) -> 0 | J15: =J14+$J$13 -> 13 | L15: 1 | M15: Doc. Carrera TC | N15: =(SUMIF($E$14:$E$23,$M15,$H$14:$H$23)/2) -> 0 | O15: =N15 -> 0 | Q15: ="Validación de "&M38 -> Validación de (Au.) -Auxiliar Pregrado | S15: Ajustado por adenda no 2
B16: 3 | D16: 0 | H16: 0 | J16: =J15+$J$13 -> 17 | L16: 2 | M16: Doc. Carrera MT | N16: =(SUMIF($E$14:$E$23,$M16,$H$14:$H$23)/2) -> 0 | O16: =N16 -> 0 | Q16: Parte | R16: Cntidad | S16: por uno solo | T16: Debe ser | U16: Error de Asistente
B17: 4 | D17: 0 | H17: 0 | J17: 21 | L17: 3 | M17: Doc. Ocasional | N17: =SUMIF($E$14:$E$23,$M17,$H$14:$H$23) -> 0 | O17: 0 | Q17: No de AU Preg | R17: =COUNTIF($E$29:$E$44,$M$38) -> 0 | T17: 1 | U17: 0 | X17: 25 | Y17: 0.1 | AA17: 0.05
B18: 5 | D18: 0 | H18: 0 | J18: 25 | L18: 1 | M18: Contrapartida Facultad IMP: | N18: =SUM(N15:N17) -> 0 | O18: =SUM(O15:O17) -> 0 | Q18: No Horas | R18: =SUMIF($E$29:$E$43,$M$38,G29:G43) -> 0 | S18: =IFERROR(R18/R17,0) -> 0 | T18: 20 | U18: =IF(S18<=T18,0,1) -> 0 | X18: 50 | Y18: 0.1 | AA18: 0.1
B19: 6 | D19: 0 | H19: 0 | J19: 29 | L19: 2 | M19: Contrapartida Facultad INV: | N19: =SUM(N15:O17) -> 0 | Q19: No Meses | R19: =SUMIF($E$29:$E$43,$M$38,F29:F43) -> 0 | S19: =IFERROR(R19/R17,0) -> 0 | T19: 6 | U19: =IF(S19=T19,0,1) -> 1 | X19: 75 | Y19: 0.1 | AA19: 0.15
B20: 7 | D20: 0 | H20: 0 | J20: 33 | T20: Si es Mas de 1 tiene problema en Auxiliar de pregrado --->> | U20: =SUM(U17:U19) -> 1 | X20: 100 | Y20: 0.1 | AA20: 0.15
B21: 8 | D21: 0 | H21: 0 | J21: 37 | Q21: Estiimulo a estudiantes | S21: =IFERROR(INT(N2/1000000),0) -> 5 | T21: =SUM(R36:R40) -> 0 | U21: =IFERROR(T21/N2,"-") -> 0 | X21: 250 | Y21: 0.1 | AA21: 0.15
B22: 9 | D22: 0 | H22: 0 | J22: 41 | Q22: Limite inferior de estimulo a estudiantes | T22: =(S21*1000000)*U22 -> 450000 | U22: 0.09
B23: 10 | D23: 0 | H23: 0 | J23: 45 | T23: =ABS(T22-T21) -> 450000
C24: Sumatoria del calculo de personal de planta "Valor contrapartida Facultades":Diligenciado VICEIN | H24: =IFERROR(INT(SUBTOTAL(109,H14:H23)),0) -> 0 | I24: Integrantes! | M24: Incremento al salario
M25: 0 | P25: =(J26/6)/6 -> 0
B26: b. | C26: Asistentes externos o temporales contratados OPS y Estimulo Estudiantes. | K26: =IFERROR(VLOOKUP($E26,Dt_OPS,3,0)/10,0) -> 0 | M26: Valor SMLV | N26: Max Mes
B27: > | C27: Salario Mínimo Legal Vigente (SMIV) : | F27: 1300000 | M27: =F27*(1+M25) -> 1300000 | N27: 10
A29: =ROW() -> 29 | B29: No | C29: Valor mensual | D29: Factor Salarial | E29: Tipo de vinculación | F29: ="Numero de meses" -> Numero de meses | G29: Número Horas / Semanal | H29: Valor total | I29: Valores de entidades externas | J29: Máximos | K29: (Au.) | L29: No | M29: Tipo | N29: Valor total del contrato (10 mes) | O29: SMMLV por 10 Meses | P29: Valor mes contrato | Q29: Hay | R29: Hay en $ | S29: Contra | V29: Valor mes contrato | X29: Va desde hasta | Y29: Salarios Minimos | AA29: Figuras | AB29: arranca desde | AC29: Maximo Factor
B30: =ROW()-$A$29 -> 1 | C30: =IFERROR(H30/F30,0) -> 0 | D30: =IFERROR(VLOOKUP($E30,Dt_OPS,3,0)/10,0) -> 0 | F30: 10 | G30: No Aplica | H30: =INT(IF($E30=$M$38,J30,$F$27*D30*F30)) -> 0 | J30: =IF($E30=$M$38,K30,IFERROR(VLOOKUP($E30,$M$29:$O$40,2,0),0)*IF($H$10="IMP",2,1)) -> 0 | K30: =IFERROR(IF(FIND($K$29,$E30,1)=1,VLOOKUP($E30,$M$38:$AC$40,2,0),0),0)/IF($E30=$M$38,10,1) -> 0 | L30: 1 | M30: (A.I.) -Técnico | N30: =$M$27*O30 -> 13000000 | O30: 10 | P30: =N30/10 -> 1300000 | Q30: =COUNTIF($E$29:$E$44,$M30) -> 0 | R30: =SUMIF($E$30:$E$44,$M30,$H$30:$H$44) -> 0 | V30: 1475434 | X30: ="Y"&ROW() -> Y30 | Y30: 6 | AA30: =E30 -> 0 | AB30: =IFERROR(VLOOKUP($AA30,$M$29:$S$40,7,0)/10,0) -> 0 | AC30: =IFERROR(VLOOKUP($AA30,$M$29:$R$40,3,0)/IF($AA30=$M$38,6,10),0) -> 0
B31: =ROW()-$A$29 -> 2 | C31: =IFERROR(H31/F31,0) -> 0 | D31: 0 | F31: 10 | G31: No Aplica | H31: 0 | J31: 0 | K31: 0 | L31: 2 | M31: (A.I.) -Profesional | N31: 19500000 | O31: 15 | P31: 1950000 | Q31: 0 | R31: 0 | V31: 2582009.5 | X31: ="Y"&ROW() -> Y31 | Y31: =Y30-0.5 -> 5.5 | AA31: 0 | AB31: =IFERROR(VLOOKUP($AA31,$M$29:$S$40,7,0)/10,0) -> 0 | AC31: =IFERROR(VLOOKUP($AA31,$M$29:$R$40,3,0)/IF($AA31=$M$38,6,10),0) -> 0
B32: 3 | C32: 0 | D32: 0 | F32: 10 | G32: No Aplica | H32: 0 | J32: 0 | K32: 0 | L32: 3 | M32: (A.I.) -Profesional especilizado | N32: 23400000 | O32: 18 | P32: 2340000 | Q32: 0 | R32: 0 | V32: 2950868 | X32: Y32 | Y32: =Y31-0.5 -> 5 | AA32: 0 | AB32: 0 | AC32: 0
B33: 4 | C33: 0 | D33: 0 | F33: 10 | G33: No Aplica | H33: 0 | J33: 0 | K33: 0 | L33: 4 | M33: (A.I.) -Profesional magister | N33: 26000000 | O33: 20 | P33: 2600000 | Q33: 0 | R33: 0 | V33: 3319726.5 | X33: Y33 | Y33: 4.5 | AA33: 0 | AB33: 0 | AC33: 0
B34: 5 | C34: 0 | D34: 0 | F34: 10 | G34: No Aplica | H34: 0 | J34: 0 | K34: 0 | L34: 5 | M34: (A.I.) -Profesional doctorado | N34: 39000000 | O34: 30 | P34: 3900000 | Q34: 0 | R34: 0 | V34: 4057443.5 | X34: Y34 | Y34: 4 | AA34: 0 | AB34: 0 | AC34: 0
B35: 6 | C35: 0 | D35: 0 | F35: 10 | G35: No Aplica | H35: 0 | J35: 0 | K35: 0 | L35: 6 | M35: (J.I) -Joven investigador | N35: 26000000 | O35: 20 | P35: 2600000 | Q35: 0 | R35: 0 | V35: 2582009.5 | X35: Y35 | Y35: 3.5 | AA35: 0 | AB35: 0 | AC35: 0
B36: 7 | C36: 0 | D36: 0 | F36: 10 | G36: No Aplica | H36: 0 | J36: 0 | K36: 0 | L36: 7 | M36: (A.G) -Asistente graduado Mg. | N36: 32500000 | O36: 25 | P36: 3250000 | Q36: 0 | R36: 0 | V36: 3688585 | X36: Y36 | Y36: 3 | AA36: 0 | AB36: 0 | AC36: 0
B37: 8 | C37: 0 | D37: 0 | F37: 10 | G37: No Aplica | H37: 0 | J37: 0 | K37: 0 | L37: 8 | M37: (A.G) -Asistente graduado Dr. | N37: 58500000 | O37: 45 | P37: 5850000 | Q37: 0 | R37: 0 | V37: 5164019 | X37: Y37 | Y37: 2.5 | AA37: 0 | AB37: 0 | AC37: 0
B38: 9 | C38: 0 | D38: 0 | F38: 10 | G38: No Aplica | H38: 0 | J38: 0 | K38: 0 | L38: 9 | M38: (Au.) -Auxiliar Pregrado | N38: 39000000 | O38: 30 | P38: =F27*3 -> 3900000 | Q38: 0 | R38: 0 | V38: NA | X38: Y38 | Y38: 2 | AA38: 0 | AB38: 0 | AC38: 0
B39: 10 | C39: 0 | D39: 0 | F39: 10 | G39: No Aplica | H39: 0 | J39: 0 | K39: 0 | L39: 10 | M39: (Au.) -Auxiliar Postgrado Mg. | N39: 19500000 | O39: 15 | P39: =N39/5 -> 3900000 | Q39: 0 | R39: 0 | V39: NA | X39: Y39 | Y39: 1.5 | AA39: 0 | AB39: 0 | AC39: 0
B40: 11 | C40: 0 | D40: 0 | F40: 10 | G40: No Aplica | H40: 0 | J40: 0 | K40: 0 | L40: 11 | M40: (Au.) -Auxiliar Postgrado Dr. | N40: 32500000 | O40: 25 | P40: =N40/5 -> 6500000 | Q40: 0 | R40: 0 | V40: NA | X40: Y40 | Y40: 1 | AA40: 0 | AB40: 0 | AC40: 0
B41: 12 | C41: 0 | D41: 0 | F41: 10 | G41: No Aplica | H41: 0 | J41: 0 | K41: 0 | N41: Salario 12 meses | X41: Y41 | Y41: 0.5 | AA41: 0 | AB41: 0 | AC41: 0
B42: 13 | C42: 0 | D42: 0 | F42: 10 | G42: No Aplica | H42: 0 | J42: 0 | K42: 0 | AA42: 0 | AB42: 0 | AC42: 0
B43: 14 | C43: 0 | D43: 0 | F43: 0 | G43: No Aplica | H43: 0 | J43: 0 | K43: 0 | M43: Joven investigador Colciencias | N43: =M27*3*12 -> 46800000 | Q43: Elimino Hojas => | R43: NO | AA43: 0 | AB43: 0 | AC43: 0
B44: =14-COUNTIF(E30:E43,"") -> 0 | C44: Sumatoria del cálculo de OPS "Valor financiado Vicein" en rubro de (Personal): | G44: =IF(H44>N2,"Esta superando el total de presupuesto","") ->  | H44: =IFERROR(INT(SUM(H30:H43)),0) -> 0 | I44: 0 | J44: =IFERROR(VLOOKUP($E44,$M$29:$O$40,2,0),0)*IF($H$10="IMP",2,1) -> 0
M45: =L84 -> .
A46: 13.- | B46: Presupuesto detalle de Plan de compras general .- La siguiente tabla debe diligenciarse manualmente ya que no arrastra informacion de otros campos | AA46: Validación INV presupuesto Grupo
AA47: =IFERROR(VLOOKUP($D$9,OP!$Q$2:$S$79,3,0),0) -> 0 | AB47: =IFERROR(VLOOKUP($AA$47,$AA$50:$AB$57,2,0),MIN(AB50:AB57)) -> 30
N48: Total Solicitado :===> | P48: =IF(G102=0,P50,G102) -> 5000000
L49: Consulte sobre los items
A50: =ROW() -> 50 | B50: No | C50: Rubro / Destino | D50: Año de Vigencia | E50: Descripción (Entidad- Actividad) | F50: DANE / Contraloria | G50: Finaciación Vicein $ | H50: =G109 -> $ Contrapartida Facultad | I50: Contrapartida Otros $ | J50: DANE/IA | L50: No | M50: Nombre Rubro | N50: Rubro | O50: Limite% | P50: =N2 -> 5000000 | Q50: Solicitado $Vicein | R50: Limites de topes | S50: Contrapartida FAC | T50: Tipos de Vinculacion | U50: Tipos de Proyectos | V50: Topes Convocatoria | X50: Fac | AA50: Nivel Grupo | AB50: Presupuetso | AD50: Rubros habilitados
B51: =ROW()-$A$50 -> 1 | C51: Personal | D51: 1 | E51: Contrapartida definida por VICEIN (No Habilitado) | G51: 0 | H51: =IF(H10="INV",N19,N18) -> 0 | J51: 0 | L51: =ROW()-50 -> 1 | M51: Personal | N51: 611401 | O51: 0 | P51: =SUMIF($C$50:$C$101,$M51,$G$50:$G$101) -> 0 | Q51: =P51/$P$50 -> 0 | R51: =($P$50/100)*O51*100 -> 0 | S51: =SUMIF($C$50:$C$101,$M51,$H$50:$H$101) -> 0 | T51: Doc. Carrera TC | U51: PIC | V51: 5 | X51: =OP!V3 -> CIAS | Y51: =OP!Y3 -> OP!Q3:Q19 | AA51: Categoría C | AB51: 50 | AD51: =M55 -> Materiales
B52: =ROW()-$A$50 -> 2 | D52: 1 | J52: 0 | L52: =ROW()-50 -> 2 | M52: Equipos | N52: 632 | O52: 0 | P52: 0 | Q52: =P52/$P$48 -> 0 | R52: =($P$48/100)*O52*100 -> 0 | S52: =SUMIF($C$50:$C$101,$M52,$H$50:$H$101) -> 0 | T52: Doc. Carrera MT | U52: INV | V52: 70 | X52: =OP!V4 -> DER | Y52: =OP!Y4 -> OP!Q20:Q22 | AA52: Categoría A1 | AB52: 70 | AD52: =M56 -> Materiales (Papelería)
B53: 3 | D53: 1 | J53: 0 | L53: 3 | M53: Equipos en proceso | N53: 632 | O53: 0 | P53: 0 | Q53: 0 | R53: 0 | S53: 0 | T53: Doc. Ocasional | U53: IMP | V53: 220 | X53: =OP!V5 -> DIS | Y53: =OP!Y5 -> OP!Q23:Q29 | AA53: Categoría A | AB53: 70 | AD53: =M58 -> Servicios Técnicos
B54: 4 | D54: 1 | J54: 0 | L54: 4 | M54: Software | N54: 612102 | O54: 0 | P54: 0 | Q54: 0 | R54: 0 | S54: 0 | T54: Externo a la UMNG | U54: MI | V54: 100 | X54: =OP!V6 -> ECO | Y54: =OP!Y6 -> OP!Q30:Q33 | AA54: Categoría B | AB54: 60 | AD54: =M59 -> Recursos Biblograficos
B55: 5 | D55: 1 | J55: 0 | L55: 5 | M55: Materiales | N55: 612101 | O55: 1 | P55: 0 | Q55: 0 | R55: 5000000 | S55: 0 | T55: OPS - Prestación Servicios | U55: EXT | V55: 1000 | X55: =OP!V7 -> EES | Y55: =OP!Y7 -> OP!Q34:Q35 | AA55: No Reconocido | AB55: 30
B56: 6 | D56: 1 | J56: 0 | L56: 6 | M56: Materiales (Papelería) | N56: -612101 | O56: 0.2 | P56: 0 | Q56: =P56/$P$48 -> 0 | R56: =($P$48/100)*O56*100 -> 1000000 | S56: 0 | T56: Estímulo a estudiante | U56: PRO | V56: 1 | X56: =OP!V8 -> HUM | Y56: =OP!Y8 -> OP!Q36:Q39
B57: 7 | D57: 1 | J57: 0 | L57: 7 | M57: Salidas de Campo | N57: 612104 | O57: 0 | P57: 0 | Q57: =P57/$P$48 -> 0 | R57: =($P$48/100)*O57*100 -> 0 | S57: 0 | T57: Auxiliar de Investigación | U57: INO | V57: 100 | X57: =OP!V9 -> ING | Y57: =OP!Y9 -> OP!Q40:Q59
B58: 8 | D58: 1 | J58: 0 | L58: 8 | M58: Servicios Técnicos | N58: 612103 | O58: 0.5 | P58: 0 | Q58: 0 | R58: 2500000 | S58: 0 | U58: EMP | V58: 100 | X58: =OP!V10 -> MED | Y58: =OP!Y10 -> OP!Q60:Q79
B59: 9 | D59: 1 | J59: 0 | L59: 9 | M59: Recursos Biblograficos | N59: 633 | O59: 1 | P59: 0 | Q59: 0 | R59: 5000000 | S59: 0 | U59: PRO | V59: 100 | X59: =OP!V11 -> 0 | Y59: =OP!Y11 -> OP!Q3:Q79
B60: 10 | D60: 1 | J60: 0 | L60: 10 | M60: Estímulo a estudiantes Pregrado | N60: 612122 | O60: 0 | P60: 0 | Q60: =P60/$P$48 -> 0 | R60: =($P$48/100)*O60*100 -> 0 | S60: 0 | U60: DOC | V60: 100
B61: 11 | D61: 1 | J61: 0 | L61: 11 | M61: Estímulo a estudiantes Posgrado | N61: 612123 | O61: 0 | P61: 0 | Q61: 0 | R61: 0 | S61: 0
B62: 12 | D62: 1 | J62: 0 | L62: 12 | M62: Movilidad | N62: 635020 | O62: 0 | P62: 0 | Q62: =P62/$P$48 -> 0 | R62: =($P$48/100)*O62*100 -> 0 | S62: 0
B63: 13 | D63: 1 | J63: 0 | L63: 13 | M63: Licencias por suscripción | N63: 636012 | O63: 0 | P63: 0 | Q63: 0 | R63: 0 | S63: 0
B64: 14 | D64: 1 | J64: 0 | L64: 14 | M64: Viajes | N64: 612105 | Q64: 0 | S64: 0
B65: 15 | D65: 1 | J65: 0 | L65: 15 | M65: Mantenimiento | Q65: 0 | S65: 0
B66: 16 | D66: 1 | J66: 0 | L66: 16 | M66: Administración | N66: 612118 | Q66: 0 | S66: 0
B67: 17 | D67: 1 | J67: 0 | L67: 17 | M67: Construcciones | N67: 631 | Q67: 0 | S67: 0
B68: 18 | D68: 1 | J68: 0 | L68: 18 | M68: Otros Gastos | N68: 212119 | Q68: 0 | S68: 0
B69: 19 | D69: 1 | J69: 0 | M69: Si cambio
B70: 20 | D70: 1 | J70: 0
B71: 21 | D71: 1 | J71: 0
B72: 22 | D72: 1 | J72: 0 | L72: Cuadro de Validaciones Prespuestales
B73: 23 | D73: 1 | J73: 0 | L73: c | M73: Descripcion | N73: Descrip 2 | O73: Detalles | P73: Valor 1 | Q73: Valor 2
B74: 24 | D74: 1 | J74: 0 | L74: 1A | M74: Personal de estimulo a estudiantes | O74: Sumatoria :=> | P74: =SUM(P60:P61) -> 0 | Q74: =P74/P75 -> 0
B75: 25 | D75: 1 | J75: 0 | L75: 1B | M75: Personal de estimulo a estudiantes | O75: Minimo por tope | P75: =N2*0.09 -> 450000 | Q75: =P75-P74 -> 450000
B76: 26 | D76: 1 | J76: 0 | L76: 2a | M76: Diferencias personal OPS o Contratos y plan compras | O76: se debe cargar todo | P76: =INT(H44) -> 0 | Q76: =INT(SUM(P51,P60:P61)) -> 0 | R76: =P76-Q76 -> 0
B77: 27 | D77: 1 | J77: 0 | L77: 3a | M77: Maximo en Equipos | P77: =P52-R52 -> 0 | Q77: =Q52 -> 0
B78: 28 | D78: 1 | J78: 0 | L78: 4a | M78: Maximo en Papaleria | P78: =P56-R56 -> -1000000 | Q78: =Q56 -> 0
B79: 29 | D79: 1 | J79: 0 | L79: 5a | M79: Maximo en salida de campo | P79: =P57-R57 -> 0 | Q79: =Q57 -> 0
B80: 30 | D80: 1 | J80: 0 | L80: 6a | M80: Maximo en Movilidad | P80: =P62-R62 -> 0 | Q80: =Q62 -> 0
B81: 31 | D81: 1 | J81: 0 | L81: 7a | M81: Diferencia entre Pregrado - y Postgrado | P81: =SUM(R39:R40) -> 0 | Q81: =P61 -> 0
B82: 32 | D82: 1 | J82: 0
B83: 33 | D83: 1 | J83: 0
B84: 34 | D84: 1 | J84: 0 | L84: =VLOOKUP($P$85,$L$87:$P$109,2,0) -> . | P84: Error:
B85: 35 | D85: 1 | J85: 0 | L85: Cuadro Validación Errores | P85: =IFERROR(MAX(P87:P142),0) -> 0
B86: 36 | D86: 1 | J86: 0
B87: 37 | D87: 1 | J87: 0 | L87: No | M87: Descripción | N87: Validación | O87: Formula | P87: Estado
B88: 38 | D88: 1 | J88: 0 | L88: 0 | M88: . | N88: Sin Error | O88: 0 | P88: 0
B89: 39 | D89: 1 | J89: 0 | L89: 1 | M89: Error : Supera el monto máximo del tipo de convocatoria | O89: =F156>N2 -> FALSE | P89: =IF(O89,L89,0) -> 0
B90: 40 | D90: 1 | J90: 0 | L90: 2 | M90: ="Error: Falta incluir al rubro estimulo a estudiantes: " &TEXT(O90-SUM(P60:P61),"$###.###.###") -> Error: Falta incluir al rubro estimulo a estudiantes: $ | N90: =H10 -> PIC | O90: =IF(N90="INV",F156*0.09,0) -> 0 | P90: =IF(SUM(P60:P61)<O90,L90,0) -> 0
B91: 41 | D91: 1 | J91: 0 | L91: 3 | M91: ="Error : Supera el monto máximo del tipo de convocatoria "&TEXT(N91,"$ ###.###.###") -> Error : Supera el monto máximo del tipo de convocatoria $ | N91: =IF(E156<F156,F156-E156,0) -> 0 | O91: =IF(N91>0,L91,0) -> 0 | P91: =O91 -> 0
B92: 42 | D92: 1 | J92: 0 | L92: 4 | M92: ="Error : Presupuesto superado [Equipos]: " & TEXT($O$92,"$###.###.###") -> Error : Presupuesto superado [Equipos]: $ | N92: =IF(P52>R52,1,0) -> 0 | O92: =P52-R52 -> 0 | P92: =IF(O92>0,L92,0) -> 0
B93: 43 | D93: 1 | J93: 0 | L93: 5 | M93: ="Error : Presupuesto superado [Papelería]: " & TEXT($O$93,"$###.###.###") -> Error : Presupuesto superado [Papelería]: -$1.000.000 | N93: =IF(P56>R56,1,0) -> 0 | O93: =P56-R56 -> -1000000 | P93: =IF(O93>0,L93,0) -> 0
B94: 44 | D94: 1 | J94: 0 | L94: 6 | M94: ="Error : Presupuesto superado [Salida de campo]: " & TEXT($N$94,"$###.###.###") -> Error : Presupuesto superado [Salida de campo]: $ | N94: =P57-R57 -> 0 | O94: =IF(N94>0,1,0) -> 0 | P94: =IF(O94=1,L94,0) -> 0
B95: 45 | D95: 1 | J95: 0 | L95: 7 | M95: ="Error : Presupuesto superado [Movilidad]: " & TEXT($N$95,"$###.###.###") -> Error : Presupuesto superado [Movilidad]: $ | N95: =P62-R62 -> 0 | P95: =IF(N95>0,L95,0) -> 0
B96: 46 | D96: 1 | J96: 0 | L96: 8 | M96: Pendiente Incluir presupuesto a rubro estimulo a estudiantes | N96: =SUM(P60:P61) -> 0 | O96: =P38 -> 3900000 | P96: =IF(O96>N96,L96,0)*0 -> 0
B97: 47 | D97: 1 | J97: 0 | L97: 9 | M97: Pendiente Incluir presupuesto de externos | N97: =LEN(D158&E158) -> 0 | P97: =IF(AND(N97>3,H156=0),L97,0) -> 0
B98: 48 | D98: 1 | J98: 0 | L98: 10 | M98: ="Error : Presupuesto Externo no esta diligenciado bien, Esta pendiente por defir externo : "&TEXT(N98,"$###.###.###") -> Error : Presupuesto Externo no esta diligenciado bien, Esta pendiente por defir externo : $ | N98: =IF(N103>0,N104-SUM(G102:H102),0) -> 0 | O98: =N104 -> 0 | P98: =IF(N98=0,0,L98) -> 0
B99: 49 | D99: 1 | J99: 0
B100: 50 | D100: 1 | J100: 0
C102: Sumatoria general de plan de compras : | F102: =SUM(G102:I102) -> 0 | G102: =SUM(G103:G104) -> 0 | H102: =SUM(H103:H104) -> 0 | I102: =SUM(I103:I104) -> 0 | M102: Total Presupuesto1 | N102: =SUM(G102:I102) -> 0
D103: 1 | E103: ="Total Presupuesto Año 1 "&IF(H10="IMP","IMP","")&":" -> Total Presupuesto Año 1 : | G103: =IF(H9="INV",0,SUMIF($D$51:$D$101,$D103,G$51:G$101)) -> 0 | H103: =SUMIF($D$51:$D$101,$D103,H$51:H$101) -> 0 | I103: =SUMIF($D$51:$D$101,$D103,I$51:I$101) -> 0 | M103: Total Pres (Fundanet ) | N103: =O103-SUM(N106:N107) -> 0 | O103: =IFERROR(INDIRECT("'Tabla Presupuesto Global'!D34",1),0) -> 0 | R103: =IFERROR(INDIRECT("'Tabla Presupuesto Global'!F34",1),0) -> 0
D104: 2 | E104: Total Presupuesto Año 2 (IMP) : | G104: =IF(H10="INV",0,SUMIF($D$51:$D$101,$D104,G$51:G$101)) -> 0 | H104: =IF(H10="INV",0,SUMIF($D$51:$D$101,$D104,H$51:H$101)) -> 0 | I104: =IF(H10="INV",0,SUMIF($D$51:$D$101,$D104,I$51:I$101)) -> 0 | M104: Diferencia | N104: =N102-N103 -> 0
C105: Firma :_______________ | E105: =IF(G105>0,"Presupuesto por definir."," Error - Supero el presupuesto en : ") -> Presupuesto por definir. | G105: =E156-G102 -> 5000000
D106: =IF(H10="INV",1,2) -> 2 | E106: Límite de presupuesto VICEIN por año : | G106: =IFERROR(IF($H$10="IMP",$P$6/2,$N$2),"0") -> 5000000 | M106: Valor Fundanet - Vicein | N106: =IFERROR(INDIRECT("'Tabla Presupuesto Global'!E34",1),0) -> 0
M107: Valor Fundanet - Contrapartida | N107: =IFERROR(INDIRECT("'Tabla Presupuesto Global'!F34",1),0) -> 0
B109: No | C109: Rubro | D109: % | E109: Porcentaje | F109: $ Financiación solicitada a VICEIN | G109: $ Contrapartida Facultad | H109: $ Contrapartida Externa | I109: $ Total Rubro | J109: 0
B110: 1 | C110: =C112 -> Personal | D110: =IFERROR(F110/F112,0) -> 0 | E110: =D110 -> 0 | F110: =SUMIFS(G$50:G$101,$C$50:$C$101,$C110,$D$50:$D$101,$J110) -> 0 | G110: 0 | H110: 0 | I110: =SUM(F110:H110) -> 0 | J110: 1 | K110: =IFERROR(VLOOKUP($B108,$L$50:$Q$68,4,0),0) -> 0
B111: 1 | C111: =C112 -> Personal | D111: =IFERROR(F110/F112,0) -> 0 | E111: 0 | F111: 0 | G111: 0 | H111: 0 | I111: 0 | J111: 2 | T111: =SUM(I156) -> 0 | U111: =S111-T111 -> 0
B112: 1 | C112: =M51 -> Personal | D112: =IFERROR(VLOOKUP($B112,Dt_TblaPresu,6,0),0) -> 0 | E112: 0 | F112: =SUM(F110:F111) -> 0 | G112: =SUM(G110:G111) -> 0 | H112: =SUM(H110:H111) -> 0 | I112: 0 | J112: 3 | K112: =IFERROR(VLOOKUP($B110,$L$50:$Q$68,4,0),0) -> 0
B113: =B110+1 -> 2 | C113: =C115 -> Equipos | D113: =IFERROR(F113/F115,0) -> 0 | E113: 0 | F113: =SUMIFS(G$50:G$101,$C$50:$C$101,$C113,$D$50:$D$101,$J113) -> 0 | G113: 0 | H113: 0 | I113: 0 | J113: =J110 -> 1 | K113: 0
B114: =B111+1 -> 2 | C114: =C115 -> Equipos | D114: =IFERROR(F113/F115,0) -> 0 | E114: 0 | F114: 0 | G114: 0 | H114: 0 | I114: 0 | J114: =J111 -> 2 | K114: 0
B115: 2 | C115: =M52 -> Equipos | D115: =IFERROR(VLOOKUP($B115,$L$50:$Q$68,6,0),0) -> 0 | E115: 0 | F115: =SUM(F113:F114) -> 0 | G115: =SUM(G113:G114) -> 0 | H115: =SUM(H113:H114) -> 0 | I115: 0 | J115: =J112 -> 3 | K115: 0
B116: 3 | C116: =C118 -> Equipos en proceso | D116: =IFERROR(F116/F118,0) -> 0 | E116: 0 | F116: =SUMIFS(G$50:G$101,$C$50:$C$101,$C116,$D$50:$D$101,$J116) -> 0 | G116: 0 | H116: 0 | I116: 0 | J116: 1 | K116: 0
B117: 3 | C117: =C118 -> Equipos en proceso | D117: =IFERROR(F116/F118,0) -> 0 | E117: 0 | F117: 0 | G117: 0 | H117: 0 | I117: 0 | J117: 2 | K117: 0
B118: 3 | C118: =M53 -> Equipos en proceso | D118: =IFERROR(VLOOKUP($B118,$L$50:$Q$68,6,0),0) -> 0 | E118: 0 | F118: =SUM(F116:F117) -> 0 | G118: =SUM(G116:G117) -> 0 | H118: =SUM(H116:H117) -> 0 | I118: 0 | J118: 3 | K118: 0
B119: 4 | C119: =C121 -> Software | D119: =IFERROR(F119/F121,0) -> 0 | E119: 0 | F119: =SUMIFS(G$50:G$101,$C$50:$C$101,$C119,$D$50:$D$101,$J119) -> 0 | G119: 0 | H119: 0 | I119: 0 | J119: 1 | K119: 0
B120: 4 | C120: =C121 -> Software | D120: =IFERROR(F119/F121,0) -> 0 | E120: 0 | F120: 0 | G120: 0 | H120: 0 | I120: 0 | J120: 2 | K120: 0
B121: 4 | C121: =M54 -> Software | D121: =IFERROR(VLOOKUP($B121,$L$50:$Q$68,6,0),0) -> 0 | E121: 0 | F121: =SUM(F119:F120) -> 0 | G121: =SUM(G119:G120) -> 0 | H121: =SUM(H119:H120) -> 0 | I121: 0 | J121: 3 | K121: 0
B122: 5 | C122: =C124 -> Materiales | D122: =IFERROR(F122/F124,0) -> 0 | E122: 0 | F122: =SUMIFS(G$50:G$101,$C$50:$C$101,$C122,$D$50:$D$101,$J122) -> 0 | G122: 0 | H122: 0 | I122: 0 | J122: 1 | K122: 0
B123: 5 | C123: =C124 -> Materiales | D123: =IFERROR(F122/F124,0) -> 0 | E123: 0 | F123: 0 | G123: 0 | H123: 0 | I123: 0 | J123: 2 | K123: 0
B124: 5 | C124: =M55 -> Materiales | D124: =IFERROR(VLOOKUP($B124,$L$50:$Q$68,6,0),0) -> 0 | E124: 0 | F124: =SUM(F122:F123) -> 0 | G124: =SUM(G122:G123) -> 0 | H124: =SUM(H122:H123) -> 0 | I124: 0 | J124: 3 | K124: 1
B125: 6 | C125: =C127 -> Materiales (Papelería) | D125: =IFERROR(F125/F127,0) -> 0 | E125: 0 | F125: =SUMIFS(G$50:G$101,$C$50:$C$101,$C125,$D$50:$D$101,$J125) -> 0 | G125: 0 | H125: 0 | I125: 0 | J125: 1 | K125: 1
B126: 6 | C126: =C127 -> Materiales (Papelería) | D126: =IFERROR(F125/F127,0) -> 0 | E126: 0 | F126: 0 | G126: 0 | H126: 0 | I126: 0 | J126: 2 | K126: 1
B127: 6 | C127: =M56 -> Materiales (Papelería) | D127: =IFERROR(VLOOKUP($B127,$L$50:$Q$68,6,0),0) -> 0 | E127: 0 | F127: =SUM(F125:F126) -> 0 | G127: =SUM(G125:G126) -> 0 | H127: =SUM(H125:H126) -> 0 | I127: 0 | J127: 3 | K127: 0.2
B128: 7 | C128: =C130 -> Salidas de Campo | D128: =IFERROR(F128/F130,0) -> 0 | E128: 0 | F128: =SUMIFS(G$50:G$101,$C$50:$C$101,$C128,$D$50:$D$101,$J128) -> 0 | G128: 0 | H128: 0 | I128: 0 | J128: 1 | K128: 0.2
B129: 7 | C129: =C130 -> Salidas de Campo | D129: =IFERROR(F128/F130,0) -> 0 | E129: 0 | F129: 0 | G129: 0 | H129: 0 | I129: 0 | J129: 2 | K129: 0.2
B130: 7 | C130: =M57 -> Salidas de Campo | D130: =IFERROR(VLOOKUP($B130,$L$50:$Q$68,6,0),0) -> 0 | E130: 0 | F130: =SUM(F128:F129) -> 0 | G130: =SUM(G128:G129) -> 0 | H130: =SUM(H128:H129) -> 0 | I130: 0 | J130: 3 | K130: 0
B131: 8 | C131: =C133 -> Servicios Técnicos | D131: =IFERROR(F131/F133,0) -> 0 | E131: 0 | F131: =SUMIFS(G$50:G$101,$C$50:$C$101,$C131,$D$50:$D$101,$J131) -> 0 | G131: 0 | H131: 0 | I131: 0 | J131: 1 | K131: 0
B132: 8 | C132: =C133 -> Servicios Técnicos | D132: =IFERROR(F131/F133,0) -> 0 | E132: 0 | F132: 0 | G132: 0 | H132: 0 | I132: 0 | J132: 2 | K132: 0 | M132: La siguiente tabla de plan de compras debe diligenciarse manualmente ya que no arrastra informacion de otros campos exceptuando la parte de contrapartida
B133: 8 | C133: =M58 -> Servicios Técnicos | D133: =IFERROR(VLOOKUP($B133,$L$50:$Q$68,6,0),0) -> 0 | E133: 0 | F133: =SUM(F131:F132) -> 0 | G133: =SUM(G131:G132) -> 0 | H133: =SUM(H131:H132) -> 0 | I133: 0 | J133: 3 | K133: 0.5
B134: 9 | C134: =C136 -> Recursos Biblograficos | D134: =IFERROR(F134/F136,0) -> 0 | E134: 0 | F134: =SUMIFS(G$50:G$101,$C$50:$C$101,$C134,$D$50:$D$101,$J134) -> 0 | G134: 0 | H134: 0 | I134: 0 | J134: 1 | K134: 0.5
B135: 9 | C135: =C136 -> Recursos Biblograficos | D135: =IFERROR(F134/F136,0) -> 0 | E135: 0 | F135: 0 | G135: 0 | H135: 0 | I135: 0 | J135: 2 | K135: 0.5
B136: 9 | C136: =M59 -> Recursos Biblograficos | D136: =IFERROR(VLOOKUP($B136,$L$50:$Q$68,6,0),0) -> 0 | E136: 0 | F136: =SUM(F134:F135) -> 0 | G136: =SUM(G134:G135) -> 0 | H136: =SUM(H134:H135) -> 0 | I136: 0 | J136: 3 | K136: 1
B137: 10 | C137: =C139 -> Estímulo a estudiantes Pregrado | D137: =IFERROR(F137/F139,0) -> 0 | E137: 0 | F137: =SUMIFS(G$50:G$101,$C$50:$C$101,$C137,$D$50:$D$101,$J137) -> 0 | G137: 0 | H137: 0 | I137: =SUM(F137:H137) -> 0 | J137: 1 | K137: 1
B138: 10 | C138: =C139 -> Estímulo a estudiantes Pregrado | D138: =IFERROR(F137/F139,0) -> 0 | E138: 0 | F138: 0 | G138: 0 | H138: 0 | I138: =SUM(F138:H138) -> 0 | J138: 2 | K138: 1
B139: 10 | C139: =M60 -> Estímulo a estudiantes Pregrado | D139: =IFERROR(VLOOKUP($B137,$L$50:$Q$68,6,0),0) -> 0 | E139: =D139 -> 0 | F139: =SUM(F137:F138) -> 0 | G139: =SUM(G137:G138) -> 0 | H139: =SUM(H137:H138) -> 0 | I139: =SUM(F139:H139) -> 0 | J139: 3 | K139: 0
B140: 11 | C140: =C142 -> Estímulo a estudiantes Posgrado | D140: =IFERROR(F140/F142,0) -> 0 | E140: 0 | F140: =SUMIFS(G$50:G$101,$C$50:$C$101,$C140,$D$50:$D$101,$J140) -> 0 | G140: 0 | H140: 0 | I140: 0 | J140: 1 | K140: 0
B141: 11 | C141: =C142 -> Estímulo a estudiantes Posgrado | D141: =IFERROR(F140/F142,0) -> 0 | E141: 0 | F141: 0 | G141: 0 | H141: 0 | I141: 0 | J141: 2 | K141: 0
B142: 11 | C142: =M61 -> Estímulo a estudiantes Posgrado | D142: =IFERROR(VLOOKUP($B140,$L$50:$Q$68,6,0),0) -> 0 | E142: =D142 -> 0 | F142: =SUM(F140:F141) -> 0 | G142: =SUM(G140:G141) -> 0 | H142: =SUM(H140:H141) -> 0 | I142: 0 | J142: 3 | K142: 0
B143: 12 | C143: =C145 -> Movilidad | D143: 0 | E143: 0 | F143: =SUMIFS(G$50:G$101,$C$50:$C$101,$C143,$D$50:$D$101,$J143) -> 0 | G143: 0 | H143: 0 | I143: =SUM(F143:H143) -> 0 | J143: =J134 -> 1 | K143: 0
B144: 11 | C144: =C145 -> Movilidad | D144: 0 | E144: 0 | F144: 0 | G144: 0 | H144: 0 | I144: =SUM(F144:H144) -> 0 | J144: 2 | K144: 0
B145: 11 | C145: =M62 -> Movilidad | D145: 0 | E145: =D145 -> 0 | F145: =SUM(F143:F144) -> 0 | G145: =SUM(G143:G144) -> 0 | H145: =SUM(H143:H144) -> 0 | I145: =SUM(F145:H145) -> 0 | J145: 3 | K145: 0
B146: 13 | C146: =C148 -> Licencias por suscripción | D146: 0 | E146: 0 | F146: =SUMIFS(G$50:G$101,$C$50:$C$101,$C146,$D$50:$D$101,$J146) -> 0 | G146: 0 | H146: 0 | I146: 0 | J146: 1 | K146: 0
B147: 12 | C147: =C148 -> Licencias por suscripción | D147: 0 | E147: 0 | F147: 0 | G147: 0 | H147: 0 | I147: 0 | J147: 2 | K147: 0
B148: 12 | C148: =M63 -> Licencias por suscripción | D148: 0 | E148: 0 | F148: =SUM(F146:F147) -> 0 | G148: =SUM(G146:G147) -> 0 | H148: =SUM(H146:H147) -> 0 | I148: 0 | J148: 3 | K148: 0
B149: 13 | C149: Viajes | F149: =SUMIFS(G$50:G$101,$C$50:$C$101,$C149,$D$50:$D$101,$J149) -> 0 | G149: =SUMIFS(H$50:H$101,$C$50:$C$101,$C149) -> 0 | H149: =SUMIFS(I$50:I$101,$C$50:$C$101,$C149) -> 0 | I149: 0 | J149: =J148 -> 3
B150: 14 | C150: Mantenimiento | F150: =SUMIFS(G$50:G$101,$C$50:$C$101,$C150,$D$50:$D$101,$J150) -> 0 | G150: =SUMIFS(H$50:H$101,$C$50:$C$101,$C150) -> 0 | H150: 0 | I150: 0 | J150: =J149 -> 3
B151: 15 | C151: Administración | F151: =SUMIFS(G$50:G$101,$C$50:$C$101,$C151,$D$50:$D$101,$J151) -> 0 | G151: 0 | H151: 0 | I151: 0 | J151: =J150 -> 3
B152: 16 | C152: Construcciones | F152: =SUMIFS(G$50:G$101,$C$50:$C$101,$C152,$D$50:$D$101,$J152) -> 0 | G152: 0 | H152: 0 | I152: 0 | J152: =J151 -> 3
B153: 17 | C153: Otros Gastos | F153: =SUMIFS(G$50:G$101,$C$50:$C$101,$C153,$D$50:$D$101,$J153) -> 0 | G153: 0 | H153: 0 | I153: 0 | J153: =J152 -> 3
B154: T1 | C154: $ Total General (Año 1) | F154: =SUMIFS(F$110:F$153,$J$110:$J$153,$J154) -> 0 | G154: =SUMIFS(G$110:G$153,$J$110:$J$153,$J154)+SUM(G149:G153) -> 0 | H154: =SUMIFS(H$110:H$153,$J$110:$J$153,$J154) -> 0 | I154: 0 | J154: 1
B155: T2 | C155: $ Total General (Año 2) | F155: =SUMIFS(F$110:F$153,$J$110:$J$153,$J155) -> 0 | G155: =SUMIFS(G$110:G$153,$J$110:$J$153,$J155) -> 0 | H155: =SUMIFS(H$110:H$153,$J$110:$J$153,$J155) -> 0 | I155: 0 | J155: 2
B156: T3 | C156: ="TotalesPlan compras - (máximo):" -> TotalesPlan compras - (máximo): | E156: =N2 -> 5000000 | F156: =SUMIFS(F$110:F$153,$J$110:$J$153,$J156) -> 0 | G156: =SUMIFS(G$110:G$153,$J$110:$J$153,$J156) -> 0 | H156: =SUMIFS(H$110:H$153,$J$110:$J$153,$J156) -> 0 | I156: 0 | J156: 3
B158: Nombre Institución Externa : | J158: 2 | K158: ; Nacional
D160: Propuesta: | E160: =D7 -> 0
C162: Firma de responsable
C167: *Pueden Ocultar las Filas que no se utilicen ( Favor no eliminar filas).
C168: ** en el caso de necesitar mas filas en el plan de compras (Comunicarse con la VICEIN para que se pueda realizar el ajuste)

Sheet Producto (hidden)
A1: 10 | B1: 11 | C1: 2016-07-07
B3: PRESENTACIÓN DE PROYECTOS DE INICIACIÓN CIENTIFÍCA 2024 - 2
C6: Datos digilenciados VICIEIN. | E6: Código : | G6: Radicado :
B8: 1. | C8: INFORMACION GENERAL DEL PROYECTO: | F8: Vrs.06.24 | G8: Facultad : | I8: =IF(H8=0,1,"") -> 1
C10: Título | D10: =Presupuesto!D7 -> 0 | I10: =IF(D10=0,1,"") -> 1
B11: 2. | C11: Tutor del proyecto
C12: Nombre : | I12: =IF(E12=0,1,"") -> 1
C14: Dirección: | F14: Tipo de Convocatoria: | G14: Proyecto de Iniciación Cientifica PIC | I14: =IF(G14=0,1,"") -> 
C15: Teléfonos: | G15: Fax:
C16: Ciudad: | F16: E-mail: | I16: =IF(G16=0,1,"") -> 1
B18: 3. | C18: Nombre del Grupo de Investigación:
G19: Reconocido: | H19: =IFERROR(VLOOKUP($H$20,[1]Dt!$G$16:$H$22,2,0),"NA") -> No | I19: =IF(C19=0,1,"") -> 1
G20: Clasificación: | H20: =IFERROR(VLOOKUP($C$19,[1]Dt!$AP$3:$AR$75,3,0),"NR") -> NR
C22: Línea de investigación: | I22: =IF(AND(E22=0,E23=0),1,"") -> 1
C24: Programa o Departamento de la UMNG al cual pertenece el tutor: | I24: =IF(G24=0,1,"") -> 1
C26: Si es producto de un proyecto INV de UMNG, diligenciar el código:
B34: 4 | C34: Productividad comprometida
C36: Producto a generar: | E36: Innovación en procesos, procedimientos y servicios | H36: =IFERROR("Pág.: "&VLOOKUP($D$38,[1]Dt!K15:L40,2,0),".") -> . | J36: =IF(E36="Apropiacion Social","DT_ProdASC","J34") -> J34
C37: =IF(LEN(E36)=18,"Link :"&[1]Dt!K42,"") -> 
C38: Caso ASC
E39: Productos Obligatorios:
E40: 1,. Informe Final del Proyecto en el formato dispuesto para tal fin. | M40: Artículo Sometido
E41: 2,. Carta anexa con conclusiones y experiencias del estudiante. | M41: Cartilla
M42: Producciones de contenido digital
B43: 5 | C43: Detalles de ejecución de proyecto | M43: Ponencia
M44: Apropiacion Social
C45: Sede de Ejecución del Proyecto: | E45: Bogotá | I45: =IF(E45=0,1,"") ->  | M45: Innovación en procesos, procedimientos y servicios
C46: Duración del Proyecto (en meses): | E46: 5 | G46: Presup. VICEIN : $ | H46: =Presupuesto!G102 -> 0
M55: Procesos de apropiación social del conocimiento para el fortalecimiento o solución de asuntos de interés social con Calidad
M56: Procesos de apropiación social del conocimiento para la generación de insumos de política pública y normatividad con Calidad
M57: Procesos de Apropiación social del conocimiento para el fortalecimiento de cadenas productivas con Calidad
M58: Procesos de apropiación social del conocimiento resultado del trabajo conjunto entre un Centro de Ciencia y un grupo de investigación con Calidad
M59: Eventos científicos con componente de apropiación con Calidad
M60: Participaciones en redes de conocimiento con Calidad
M61: Talleres de Creación con Calidad
M62: Eventos artísticos, de arquitectura o de diseño con componentes de apropiación con Calidad
M63: Documentos de trabajo (working papers) con Calidad
M64: Nuevas secuencias genéticas con Calidad
M65: Ediciones de revista o libro de divulgación científica con Calidad
M66: Informes finales de investigación con Calidad
M67: Informes técnicos con Calidad
M68: Consultorías científico
M69: Consultorías en arte, arquitectura y diseño con Calidad
M70: Publicaciones editoriales no especializadas con Calidad
M71: Producciones de contenido digital con Calidad
M72: Producción de estrategias y contenidos Transmedia con Calidad
M73: Desarrollos Web con Calidad
M74: Libros de Formación ubicados en el cuartil 2 (Q2)
M75: Boletines divulgativos de resultado de investigación con Calidad
M76: Libros de Divulgación de investigación y/o Compilación de Divulgación con Calidad
M77: Generaciones de Contenido con Calidad
M78: Manuales y Guías Especializadas con Calidad

Sheet OP (hidden)
C2: Id | D2: Título | E2: Ok | F2: Fila | G2: Nive | J2: Cuenta | K2: Nombre | L2: OK | M2: Lg | O2: N | P2: Cod grupo | Q2: Nombre grupo | R2: Fac | S2: Estado | T2: Fila | V2: Fac | W2: Min | X2: Max | Y2: Origen | Z2: FAC
C3: D0192905 | D3: Abacá | E3: 1 | F3: =ROW() -> 3 | G3: =LEN(C3) -> 8 | J3: 2.1.1.01.01.001.01 | K3: Sueldo básico El sueldo básico corresponde a la parte del salario que se mantiene fija y se paga periódicamente de acuerdo con las funciones y responsabilidades, los requisitos de conocimientos, la experiencia requerida para su ejercicio, la denóminación y el grado establecidos en la nomenclatura, y la escala del respectivo nivel (art. 13, Decreto 1042 de 1978). El sueldo básico se paga sin tener en cuenta adicionales de horas extra, primas y otros factores eventuales o fijos que aumentan sus ingresos.La Ley 4 de 1992 establece el reconocimiento de una asignación básica de acuerdo con la nomenclatura y remuneración de los niveles de empleo. | L3: 0 | M3: =LEN(J3) -> 18 | O3: 18 | P3: COL0136423 | Q3: Estadística, Control y Optimización | R3: CIAS | S3: Categoría A | T3: =ROW() -> 3 | V3: CIAS | W3: 3 | X3: 19 | Y3: ="OP!Q"&W3&":Q"&X3 -> OP!Q3:Q19 | Z3: Ciencias Básicas y Aplicadas. | AC3: A | AD3: =CODE(AC3) -> 65
C4: D0219601 | D4: Abejas | E4: 1 | F4: =ROW() -> 4 | G4: =LEN(C4) -> 8 | J4: 2.1.1.01.01.001.02 | K4: Horas extras, dominicales, festivos y recargos Es la retribución fija que se reconoce al personal con el que existe relación laboral por concepto de trabajo suplementario y realizado en horas adicionales a la jornada ordinaria establecida por las disposiciones legales vigentes. Incluye: horas extras diurnas, horas extras nocturnas, y el trabajo ocasional en días dominicales y festivos. (Decreto 1042 de 1978). | L4: 0 | M4: =LEN(J4) -> 18 | O4: 68 | P4: COL0032278 | Q4: Control Biológico UMNG | R4: CIAS | S4: Categoría A | T4: =ROW() -> 4 | V4: DER | W4: 20 | X4: 22 | Y4: ="OP!Q"&W4&":Q"&X4 -> OP!Q20:Q22 | Z4: Derecho. | AC4: 65 | AD4: =CHAR(AC4) -> A
C5: D3465401 | D5: Abonos orgánicos | E5: 1 | F5: =ROW() -> 5 | G5: 8 | J5: 2.1.1.01.01.001.03 | K5: Gastos de representación Es la asignación complementaria del sueldo, que se reconoce excepcional y restrictivamente a empleados de alto nivel jerárquico por el cumplimiento de sus funciones (Corte Constitucional, Sentencia C-461/2004). Los gastos de representación tienen por finalidad que los empleados de nivel directivo desempeñen sus funciones de acuerdo con la importancia de la representación que ostentan. Esta asignación se caracteriza por ser un beneficio personal en gracia de la posición, jerarquía, dignidad y responsabilidades señaladas al cargo. | L5: 0 | M5: 18 | O5: 22 | P5: COL0077707 | Q5: Grupo Integrado de Investigaciones en Química Bioorgánica (InQuiBio) | R5: CIAS | S5: Categoría A1 | T5: =ROW() -> 5 | V5: DIS | W5: 23 | X5: 29 | Y5: OP!Q23:Q29 | Z5: Educación a Distancia.
C6: D3465902 | D6: Abonos y fertilizantes complejos o mixtos | E6: 1 | F6: =ROW() -> 6 | G6: 8 | J6: 2.1.1.01.01.001.04 | K6: Subsidio de alimentación Es la retribución fija que se reconoce al personal con el que la entidad tiene una relación laboral, tales como empleados públicos, trabajadores oficiales y aquel de las sociedades de economía mixta y particulares cuyo gasto de personal se haga con cargo a los recursos públicos a su cargo, como auxilio para la provisión de su alimento. Este factor es un pago habitual y periódico de una suma de dinero para apoyar la manutención y provisión de alimentos del empleado.No se tendrá derecho a este subsidio cuando el funcionario disfrute de vacaciones, se encuentre en uso de licencia, suspendido o cuando la entidad suministre el servicio (art. 12, Decreto 229 de 2016).El subsidio de alimentación fue creado mediante el Decreto 627 de 2007, y está regulado por el la Ley 4 de 1992 y el Decreto 1397 de 2010. | L6: 0 | M6: 18 | O6: 34 | P6: COL0013719 | Q6: Grupo de Micología y Fitopatologia | R6: CIAS | S6: Categoría A1 | T6: =ROW() -> 6 | V6: ECO | W6: 30 | X6: 33 | Y6: OP!Q30:Q33 | Z6: Economia.
C7: D3462901 | D7: Abonos y fertilizantes fosfatados | E7: 1 | F7: =ROW() -> 7 | G7: 8 | J7: 2.1.1.01.01.001.05 | K7: Auxilio de transporte Es el pago que se hace al personal con el que la entidad tiene una relación laboral, tales como empleados públicos, trabajadores oficiales y aquel de las sociedades de economía mixta y particulares cuyo gasto de personal se haga con cargo a los recursos públicos a su cargo que devenguen un sueldo mensual básico hasta de dos veces el salario mínimo legal vigente (Decreto 2732 del 2014). Este auxilio tiene como fin cubrir el traslado del trabajador desde el sector de su residencia hasta el sitio de su trabajo y viceversa.No se tiene derecho a este auxilio cuando el funcionario disfrute de vacaciones, se encuentre en uso de licencia, suspendido en el ejercicio de sus funciones o cuando la entidad suministre el servicio (art. 13, Decreto 229 de 2016).La Ley 15 de 1959, el Decreto 1374 de 2010 y el Decreto 5054 de 2009 regulan el auxilio de transporte. | L7: 0 | M7: 18 | O7: 26 | P7: COL0031959 | Q7: Grupo de investigación en Biodiversidad y Ecología de Abejas Silvestres | R7: CIAS | S7: Categoría B | T7: =ROW() -> 7 | V7: EES | W7: 34 | X7: 35 | Y7: OP!Q34:Q35 | Z7: Relaciones Internacionales.
C8: D3461901 | D8: Abonos y fertilizantes nitrogenados | E8: 1 | F8: =ROW() -> 8 | G8: 8 | J8: 2.1.1.01.01.001.06 | K8: Prima de servicio Es la retribución fija que se paga en el mes de julio de cada año correspondiente a 15 días de trabajo por cada año laborado, o proporcionalmente si el empleado laboró como mínimo por seis meses en la entidad. (art. 58, Decreto 1042 de 1978).El Decreto 1042 de 1978 establece la prima de servicios para los funcionarios del nivel nacional y el Decreto 2351 de 2014 establece la prima de servicios para los empleados públicos departamentales, distritales y municipales.Esta prima se liquida sobre los siguientes factores de salario:a) El sueldo básico fijado por la ley para el respectivo cargo. b) Los incrementos salariales por antigüedad. c) Los gastos de representación. d) Los auxilios de alimentación y transporte. e) La bonificación por servicios prestados | L8: 0 | M8: 18 | O8: 57 | P8: COL0028687 | Q8: Fitoplasmas y Virus | R8: CIAS | S8: Categoría B | T8: =ROW() -> 8 | V8: HUM | W8: 36 | X8: 39 | Y8: OP!Q36:Q39 | Z8: Educación y Humanidades.
C9: D3463901 | D9: Abonos y fertilizantes potásicos | E9: 1 | F9: =ROW() -> 9 | G9: 8 | J9: 2.1.1.01.01.001.07 | K9: Bonificación por servicios prestados Es la retribución pagadera cada vez que el empleado cumple un año continuo de servicio en una misma entidad, la cual es equivalente al cincuenta por ciento (50%) del valor conjunto de la asignación básica determinada por la ley para el respectivo cargo, sumada a los incrementos por antigüedad y los gastos de representación. Se paga en un plazo de veinte días después del cumplimiento de los requisitos para recibir la bonificación (art. 45,47 y 48, Decreto 1042 de 1978).El Decreto 2418 de 2015 regula la bonificación por servicios prestados para los empleados públicos del nivel territorial. | L9: 0 | M9: 18 | O9: 62 | P9: COL0039321 | Q9: MATRIX | R9: CIAS | S9: Categoría B | T9: =ROW() -> 9 | V9: ING | W9: 40 | X9: 59 | Y9: OP!Q40:Q59 | Z9: Ingenieria
C10: D3465901 | D10: Abonos y fertilizantes químicos | E10: 1 | F10: =ROW() -> 10 | G10: 8 | J10: 2.1.1.01.01.001.08.01 | K10: Prima de navidad Es la retribución correspondiente a un mes de salario que se reconoce a los empleados con los que la entidad tiene una relación laboral, por ocasión de la navidad. Esta prima es pagadera la primera quincena del mes de diciembre, por la cuantía del mes, o proporcionalmente al tiempo laborado.Cuando el empleado público, trabajador oficial u otro no ha servido durante todo el año, tiene derecho a la mencionada prima de navidad en proporción al tiempo laborado, a razón de una doceava parte por cada mes completo de servicios, que se liquida y paga con base en el último salario devengado, o en el último promedio mensual, si fuere variable equivalente a un mes de remuneración liquidado o un porcentaje proporcional al tiempo laborado (Decreto 1045 de 1978, art. 32).El reconocimiento de la prima de navidad como prestación social, se establece en el Decreto 1045 de 1978 (art. 32). El Decreto 1919 de 2002 establece que los empleados públicos de las entidades territoriales tienen derecho a las prestaciones sociales definidas para los empleados de la rama ejecutiva del nivel nacional. Por su parte, los soldados profesionales tienen derecho a percibir esta prima equivalente al cincuenta por ciento (50%) del salario básico devengado en el mes de noviembre del respectivo año más la prima de antigüedad. A su vez, los Oficiales, Suboficiales, Agentes y empleados públicos del Ministerio de Defensa, de las Fuerzas Militares y de la Policía Nacional tienen derecho a recibir esta prima (Decreto anual de salarios). | L10: 0 | M10: 21 | O10: 1 | P10: COL0178619 | Q10: DIVERSITAS | R10: CIAS | S10: Categoría C | T10: =ROW() -> 10 | V10: MED | W10: 60 | X10: 79 | Y10: OP!Q60:Q79 | Z10: Medicina.
C11: D1632202 | D11: Abrasivos naturales | E11: 1 | F11: =ROW() -> 11 | G11: 8 | J11: 2.1.1.01.01.001.08.02 | K11: Prima de vacaciones Corresponde al reconocimiento que otorga la ley al personnal con el que la entidad tenga relación laboral, con el fin de brindarles mayores recursos económicos para gozar del periodo de vacaciones. Esta prima es equivalente a quince (15) días de salario por cada año trabajado y debe pagarse dentro de los cinco (5) días hábiles anteriores a la fecha señalada para la iniciación del descanso remunerado, salvo lo que se disponga en normas o estipulaciones especiales. La prima de vacaciones no se perderá en los casos en que se autorizare el pago de vacaciones en dinero (Decreto 1045 de 1978, arts. 24 a 29). | L11: 0 | M11: 21 | O11: 2 | P11: COL0110329 | Q11: ECMU (Evaluacion en Competencias y Matemáticas Universitarias) | R11: CIAS | S11: Categoría C | T11: =ROW() -> 11 | V11: 0 | W11: =MIN(W3:W10) -> 3 | X11: =MAX(X3:X10) -> 79 | Y11: OP!Q3:Q79 | Z11: Todos
C12: D4299920 | D12: Abrazaderas metálicas | E12: 1 | F12: =ROW() -> 12 | G12: 8 | J12: 2.1.1.01.01.001.08.03 | K12: Prima de navidad de diputados Corresponde a la prestación social que le otorga la Ley al servidor público que ejerza como diputado a titulo de prima de navidad. Esta se reconoce de conformidad con lo establecido en el artículo 11 de la Ley 4 de 1966. | L12: 0 | M12: 21 | O12: 8 | P12: COL0179618 | Q12: Nanofab | R12: CIAS | S12: Categoría C | T12: =ROW() -> 12
C13: D4291205 | D13: Abrelatas, descorchadores y similares | E13: 1 | F13: =ROW() -> 13 | G13: 8 | J13: 2.1.1.01.01.001.08.04 | K13: Prima de vacaciones de diputados Corresponde al reconocimiento por prima de vacaciones al que tienen derecho los servidores públicos que ejercen como diputados. Su cuantía y término se reconoce de conformidad con lo establecido en el Decreto número 1045 de 1978. Para el reconocimiento se tendrá en cuenta como si se hubiese sesionado todo el año. | L13: 0 | M13: 21 | O13: 16 | P13: COL0086179 | Q13: Fitopatologia molecular | R13: CIAS | S13: Categoría C | T13: =ROW() -> 13
C14: D2824102 | D14: Abrigos de cuero | E14: 1 | F14: =ROW() -> 14 | G14: 8 | J14: 2.1.1.01.01.001.09 | K14: Prima técnica salarial Es un reconocimiento económico a servidores públicos que desempeñen cargos altamente calificados cuyas funciones demanden la aplicación de conocimientos técnicos o científicos, o la realización de labores de dirección o de especial responsabilidad. Asimismo, la prima técnica reconoce el desempeño de los servidores en su cargo.Se considera como factor salarial, la prima técnica por formación avanzada y experiencia altamente calificada, también conocida como prima técnica por estudio y experiencia, la cual se otorga a los empleados que acrediten estudios de formación avanzada o cinco años de experiencia calificada, en los cargos de nivel directivo, ejecutivo, profesional, jefes de oficina asesora y nivel asesor. | L14: 0 | M14: 18 | O14: 24 | P14: COL0038084 | Q14: Grupo de Ecotoxicología, Evolución, Medio ambiente y Conservación (E = mc2) | R14: CIAS | S14: Categoría C | T14: =ROW() -> 14
C15: D2823315 | D15: Abrigos de paño para mujer | E15: 1 | F15: =ROW() -> 15 | G15: 8 | J15: 2.1.1.01.01.001.10 | K15: Viáticos de los funcionarios en comisión Son los pagos que reciben los funcionarios y trabajadores en comisión, para alojamiento y manutención, cuando: a) deban desempeñar sus funciones en un lugar diferente a su sede habitual de trabajo, ya sea dentro o fuera del país, o b) deba atender transitoriamente actividades oficiales distintas a las inherentes al empleo de que es titular (Departamento Administrativo de la Función Pública, 2007).Los viáticos de los funcionarios en comisión constituyen factor salarial para efectos de la liquidación de cesantías y pensiones cuando se hayan percibido por un término superior a ciento ochenta (180) días en el último año de servicio (art. 45, Decreto 1045 de 1978). | L15: 0 | M15: 18 | O15: 47 | P15: COL0048492 | Q15: Grupo de Investigación en Hidrobiología Aplicada (HIDROBIA) | R15: CIAS | S15: Categoría C | T15: =ROW() -> 15
C16: D2823316 | D16: Abrigos de paño para niña | E16: 1 | F16: =ROW() -> 16 | G16: 8 | J16: 2.1.1.01.01.001.11 | K16: Remuneración diputados Es la remuneración reconocida a los diputados por su asistencia a las sesiones de la Asamblea Departamental, la cual está regulada por la Ley 1871 de 2017. | L16: 0 | M16: 18 | O16: 54 | P16: COL0110436 | Q16: GRUPO DE INVESTIGACIÓN EN QUÍMICA AMBIENTAL Y TECNOLOGÍAS LIMPIAS - QUATELI | R16: CIAS | S16: Categoría C | T16: =ROW() -> 16
C17: D8821305 | D17: Acabado , teñido, estampado y aprestamiento de tejidos n.c.p. | E17: 1 | F17: =ROW() -> 17 | G17: 8 | J17: 2.1.1.01.01.001.12 | K17: Aguinaldo Comprende los gastos asociados al pago anual que la Empresa Metro de Medellín realiza a los sus empleados de planta y que es considerado como un factor salarial común. | L17: 0 | M17: 18 | O17: 64 | P17: COL0169362 | Q17: ICAAO: Inteligencia Computacional, Aprendizaje Automático y Optimización | R17: CIAS | S17: Categoría C | T17: =ROW() -> 17
C18: D8890101 | D18: Acabado de muebles | E18: 1 | F18: =ROW() -> 18 | G18: 8 | J18: 2.1.1.01.01.001.13 | K18: Auxilio de conectividad digital Corresponde al pago de auxilio de conectividad digital que de manera temporal y transitoria se reconocerá y pagará a los servidores públicos que devenguen hasta dos (2) salarios mínimos legalesmensuales vigentes y que desarrollen su labor en su domicilio. Este auxilio se reconocerá mientras esté vigente la emergencia sanitaria declarada por el Ministerio de Salud y de Protección Social con ocasión de la pandemia derivada del Coronavirus (COVID-19) y corresponderá al valor establecido para el auxilio de transporte.El auxilio de conectividad y el auxilio de transporte no son acumulables y no será aplicable a los trabajadores que se desempeñan en la modalidad de teletrabajo, a quienes les seguirán siendoaplicables las disposiciones de la Ley 1221 de 2008 (Art. 1, Decreto Legislativo 771 de 2020). | L18: 0 | M18: 18 | O18: 72 | P18: COL0138796 | Q18: Grupo de Docencia e Investigación en Física | R18: CIAS | S18: No Reconocido | T18: =ROW() -> 18
C19: D8821301 | D19: Acabado y teñido de hilados | E19: 1 | F19: =ROW() -> 19 | G19: 8 | J19: 2.1.1.01.01.001.14 | K19: Salario Integral Segun el artículo 132 del Código Sustantivo del Trabajo permite que se acuerde libremente el salario en sus diversas modalidades, como por unidad de tiempo, por obra, a destajo o por tarea, siempre y cuando se respete el salario mínimo. En el caso que el salario ordinario sea superior a 10 salarios mínimos legales mensuales, el salario será integral y compensará de antemano las prestaciones sociales, recargos y beneficios como el trabajo nocturno, extraordinario o dominical y festivo, exceptuando las vacaciones. De igual forma, el articulo 127 del Código Sustantivo del Trabajo, que establece el salario como todo aquello que recibe el trabajador como contraprestación directa del servicio. | L19: 0 | M19: 18 | O19: 77 | P19: COL0077814 | Q19: Agrobiología de especies vegetales promisorias de clima frío | R19: CIAS | S19: No Reconocido | T19: =ROW() -> 19
C20: D8821303 | D20: Acabado, teñido y estampado de tejidos n.c.p. de algodón | E20: 1 | F20: =ROW() -> 20 | G20: 8 | J20: 2.1.1.01.01.002.01.01 | K20: Escalafón diplomático Corresponde a los sueldos de los funcionarios públicos de Carrera Diplomática y Consular. El valor de la asignación básica de dichos funcionarios dependerá de la categoría de Carrera Diplomática y Consular en la cual estén escalafonados conforme a las disposiciones del Decreto 274 de 2000. | L20: 0 | M20: 21 | O20: 36 | P20: COL0028918 | Q20: GRUPO DE DERECHO PÚBLICO | R20: DER | S20: Categoría B | T20: =ROW() -> 20
C21: D8821304 | D21: Acabado, teñido y estampado de tejidos n.c.p. de fibras artificiales y sintéticas | E21: 1 | F21: =ROW() -> 21 | G21: 8 | J21: 2.1.1.01.01.002.01.02.01 | K21: Comisión de servicios Corresponde a los sueldos de funcionarios públicos que están en comisión de servicios. De acuerdo con el art. 2 del Decreto 2004 de 1997, una comisión de servicios se puede conferir únicamente en los siguientes casos:- Para tramitar o negociar asuntos que a juicio del Gobierno Nacional revistan especial interés para el país.- Para suscribir convenios o acuerdos con otros gobiernos u organismos internacionales. | L21: 0 | M21: 24 | O21: 38 | P21: COL0142449 | Q21: RED DE ESTUDIOS SOCIOJURÍDICOS COMPARADOS Y POLÍTICAS PÚBLICAS-RESCYPP | R21: DER | S21: Categoría B | T21: =ROW() -> 21
C22: D8821302 | D22: Acabado, teñido y estampado de tejidos n.c.p. de lana | E22: 1 | F22: =ROW() -> 22 | G22: 8 | J22: 2.1.1.01.01.002.01.02.02 | K22: Comisión de estudios Corresponde a los sueldos de funcionarios públicos que están en comisión de estudios. Para conferir una comisión de estudios, el objeto de la misma debe guardar relación con los fines de la entidad o con las funciones inherentes al cargo que desempeña el servidor público y ser superior a un mes (art. 2, Decreto 1050 de 1997).Se podrá conferir comisión de estudios en el exterior al servidor público que tenga por lo menos un (1) año continuo de servicio en la respectiva entidad. A su vez, el comisionado se comprometerá mediante convenio a prestar sus servicios a la entidad que otorga la comisión o a cualquier otra entidad del Estado, por el doble del tiempo de duración de la comisión (Decreto 3555 de 2007). | L22: 0 | M22: 24 | O22: 6 | P22: COL0128047 | Q22: Grupo de Derecho Privado | R22: DER | S22: Categoría C | T22: =ROW() -> 22
C23: D3736002 | D23: Accesorios de arcilla para tubería | E23: 1 | F23: =ROW() -> 23 | G23: 8 | J23: 2.1.1.01.01.002.02 | K23: Prima de actividad Reconocimiento económico que hace la ley a los empleados públicos del Ministerio de Defensa y de la Policía Nacional, mientras permanezcan en el desempeño de sus funciones. Esta prima es equivalente al cuarenta y nueve punto cinco por ciento (49.5%) del sueldo básico mensual del funcionario (art. 38, Decreto 1214 de 1990, modificado por el art. 30 del Decreto 984 de 2017). | L23: 0 | M23: 18 | O23: 65 | P23: COL0066229 | Q23: PIREO "Procesos de Integración, Regionalización y Estructuras Organizacionales" | R23: DIS | S23: Categoría B | T23: =ROW() -> 23
C24: D3757007 | D24: Accesorios de asbesto-cemento-para tubería | E24: 1 | F24: =ROW() -> 24 | G24: 8 | J24: 2.1.1.01.01.002.03 | K24: Prima especial de servicios Reconocimiento económico que hace la ley a los magistrados del Consejo Superior de la Judicatura, de la Corte Suprema de Justicia, de la Corte Constitucional, del Consejo de Estado, el Procurador General de la Nación, el Contralor General de la República, el Fiscal General de la Nación, el Defensor del Pueblo y el Registrador Nacional del Estado Civil con el fin de igualar los ingresos percibidos por estos funcionarios, con aquellos que reciben los miembros del Congreso, sin que en ningún caso los supere. El Gobierno podrá fijar la misma prima para los ministros de despacho, los Generales y Almirantes de la Fuerza Pública (art. 15, Ley 4 de 1992).Esta prima reemplaza en su totalidad y deja sin efecto cualquier otra prima a que tengan derecho dichos funcionarios, con excepción de la prima de navidad (art. 5, Decreto 10 de 1993). | L24: 0 | M24: 18 | O24: 14 | P24: COL0067504 | Q24: PACMAN Prospectiva Académica y Ciencias Multidisciplinares Aplicadas a la Neotecnología | R24: DIS | S24: Categoría C | T24: =ROW() -> 24
C25: D3627030 | D25: Accesorios de caucho para tuberías | E25: 1 | F25: =ROW() -> 25 | G25: 8 | J25: 2.1.1.01.01.002.04 | K25: Prima semestral Es el pago que se realiza en el mes de junio y diciembre, denóminado prima semestral, a los funcionarios que cumplan con los requisitos establecidos por la ley, y pagadera en conformidad con las disposiciones legales. Por ejemplo:a. La Superintendencia de Sociedades realiza el pago de la prima semestral a los beneficiarios del régimen especial de prestaciones económicas de los empleados afiliados a Corpoanónimas (entidad liquidada), en virtud de lo establecido por el art. 12 del Decreto 1695 de 1997. b) El artículo 2 de la Ley 55 de 1987, establece el reconocimiento de una prima semestral para los empleados del Congreso nacional, pagadera en junio y diciembre de cada año.c) El Acuerdo Distrital 25 de 1990 establece el pago de una prima semestral a los empleados y trabajadores de la Administración Central del Distrito, que hayan laborado durante el primer semestre del año y proporcionalmente a quienes laboren por lo menos tres (3) meses completos de ese semestre, y que equivale a treinta y siete (37) días de salario. | L25: 0 | M25: 18 | O25: 15 | P25: COL0069296 | Q25: Modelos de simulación ICDIST | R25: DIS | S25: Categoría C | T25: =ROW() -> 25
C26: D3756002 | D26: Accesorios de concreto para tubería | E26: 1 | F26: =ROW() -> 26 | G26: 8 | J26: 2.1.1.01.01.002.05 | K26: Prima ascensional Reconocimiento que hace la ley a favor de los Magistrados y Fiscales de Tribunal, que reúnan los requisitos constitucionales para el ejercicio de la magistratura de la Corte Suprema de Justicia, y a favor de los Fiscales de Juzgado Superior, Jueces Superiores, de Menores y de Circuito que reúnan los requisitos constitucionales para ser Magistrados de Tribunal Superior (art. 3, Decreto 903 de 1969).El Consejo Superior de la Administración de Justicia, para determinar la cuantía individual de la prima (que no podrá ser mayor al cinco por ciento (5%) de la asignación mensual), tendrá en cuenta la antigüedad y la calidad de los requisitos constitucionales exigidos para el desempeño del cargo superior, a la época en que el peticionario haya tomado posesión del mismo (Decreto 760 de 1970). | L26: 0 | M26: 18 | O26: 30 | P26: COL0142331 | Q26: INAMPE | R26: DIS | S26: Categoría C | T26: =ROW() -> 26
C27: D3736004 | D27: Accesorios de gres para tubería | E27: 1 | F27: =ROW() -> 27 | G27: 8 | J27: 2.1.1.01.01.002.06 | K27: Primas extraordinarias Corresponde al pago por concepto de primas legalmente otorgadas, que constituyen factor salarial y que serán pagaderas únicamente en los términos, condiciones y las veces que se establezca en su ley de creación. | L27: 0 | M27: 18 | O27: 32 | P27: COL0127649 | Q27: INCONDIS | R27: DIS | S27: Categoría C | T27: =ROW() -> 27
C28: D4129301 | D28: Accesorios de hierro o acero galvanizado para tuberías | E28: 1 | F28: =ROW() -> 28 | G28: 8 | J28: 2.1.1.01.01.002.07 | K28: Prima mensual Es el pago mensual equivalente al incentivo económico por los servicios prestados. Pago no menor al treinta por ciento (30%), ni mayor al sesenta por ciento (60%) del salario básico mensual. | L28: 0 | M28: 18 | O28: 53 | P28: COL0018448 | Q28: "PYDES" Pedagogía y didáctica en la educación superior | R28: DIS | S28: Categoría C | T28: =ROW() -> 28
C29: D4129302 | D29: Accesorios de hierro o acero para tuberías de alta presión | E29: 1 | F29: =ROW() -> 29 | G29: 8 | J29: 2.1.1.01.01.002.08 | K29: Auxilio especial de transporte Es el pago por concepto de auxilio especial de transporte a los beneficiarios establecidos por la ley, de acuerdo con las disposiciones legales correspondientes.Por ejemplo, el artículo 3 del Decreto 192 de 2014 dispone que tienen derecho a este subsidio, los servidores públicos del Instituto Nacional de Medicina Legal y Ciencias Forenses que se desempeñen en funciones de mensajería. Asimismo, el artículo 32 del Decreto 717 de 1978 establece que reconocerá el auxilio especial de transporte a los citadores que prestan sus servicios en los Despachos Judiciales y a los Asistentes sociales de los Juzgados de ejecución de Penas y Medidas de Seguridad, para adolescentes, de Familia y promiscuos de Familia. No incluye: •La prima especial de transporte establecida en el Decreto 51 de 1998, posteriormente establecida en el Decreto 3254 de 2002, el cual fue derogado por el Decreto 26 de 2004. De acuerdo con el artículo 1 del Decreto 3254 de 2002, esta prima consistía en el reconocimiento económico de una prima equivalente a $500.000 para los Secretarios Generales del Senado, Cámara y los Secretarios de la Comisiones Constitucionales Permanentes | L29: 0 | M29: 18 | O29: 76 | P29: COL0062704 | Q29: PROPPIO: Procesos organizacionales, programaticos y políticos para la promoción del desarrollo | R29: DIS | S29: No Reconocido | T29: =ROW() -> 29
C30: D3729203 | D30: Accesorios de loza o porcelana para uso eléctrico | E30: 1 | F30: =ROW() -> 30 | G30: 8 | J30: 2.1.1.01.01.002.09 | K30: Bonificación por comisión especial de servicio Reconocimiento que hace la ley a los empleados del Departamento Administrativo de Seguridad - DAS que deban cumplir comisiones especiales de servicio fuera del país. Dichos empleados tendrán derecho a percibir una bonificación mensual en dólares o proporcional al tiempo de la comisión, hasta por el quince por ciento (15%) de su asignación básica mensual a razón de un dólar por cada cinco pesos ($5) (art. 6, Decreto 1933 de 1989). | L30: 0 | M30: 18 | O30: 59 | P30: COL0028767 | Q30: Grupo de Estudios Contemporáneos en Gestión y Organizaciones -GECGO- | R30: ECO | S30: Categoría A | T30: =ROW() -> 30
C31: D4815014 | D31: Accesorios de material plástico para equipo de venoclisis | E31: 1 | F31: =ROW() -> 31 | G31: 8 | J31: 2.1.1.01.01.002.10.01 | K31: Beneficios a los empleados a corto plazo | L31: 0 | M31: 21 | O31: 7 | P31: COL0050294 | Q31: Grupo de Estudios en Ciencias Económicas - CIE | R31: ECO | S31: Categoría B | T31: =ROW() -> 31
C32: D3632003 | D32: Accesorios de material plástico para tuberías | E32: 1 | F32: =ROW() -> 32 | G32: 8 | J32: 2.1.1.01.01.002.10.02 | K32: Beneficios a los empleados a largo plazo | L32: 0 | M32: 21 | O32: 55 | P32: COL0117722 | Q32: GECS (Grupo de Estudios en Educación Contabilidad y Sociedad) | R32: ECO | S32: Categoría B | T32: =ROW() -> 32
C33: D4694006 | D33: Accesorios de metal para líneas de conducción eléctrica | E33: 1 | F33: =ROW() -> 33 | G33: 8 | J33: 2.1.1.01.01.002.11 | K33: Bonificación por compensación La bonificación por compensación es el pago que se realiza a los funcionarios públicos determinados por la ley, para la nivelación de su salario. Por ejemplo, la bonificación por compensación creada por el Decreto 610 de 1998, es el pago mensual, equivalente al ochenta por ciento (80%) de la asignación básica más los demás ingresos laborales. Los beneficiarios de esta bonificación son: los magistrados de las altas Cortes, secretarios generales de las mismas, Fiscales delegados ante Tribunales del distrito, y otros funcionarios de la rama judicial. De acuerdo con el Decreto 1102 de 2012, que venían percibiendo la bonificación de gestión judicial para la fecha del Decreto mencionado, reciben el presente beneficio. Incluye: •La prima individual de compensación creada por el Decreto 4669 de 2006. Según lo establecido por el artículo 11 del Decreto 4669 de 2006, los servidores públicos del Instituto Nacional de Medicina Legal y Ciencias Forenses:[…]que fueren incorporados con una asignación básica mensual inferior a la que venían percibiendo, una prima individual de compensación, de carácter personal, que nivele sus ingresos con los que venían percibiendo por concepto de asignación básica mensual, de conformidad con lo establecido en el artículo 2o del Decreto 384 de 2006, la que devengarán mientras permanezcan en el mismo empleo. (Decreto 4669, 2006) Esta prima constituye factor salarial para liquidar prestaciones sociales, y firma parte de la asignación básica para efectos pensionales (Decreto 4669, 2006). Otro ejemplo es la bonificación por compensación creada por el Decreto Ley 4064 de 2011, donde los funcionarios del DAS incorporados a la Unidad Administrativa Especial Migración Colombia, en un empleo al cual corresponde una asignación básica inferior al valor de la asignación básica y la prima de riesgo que vienen percibiendo, la diferencia se reconocerá con una bonificación mensual individual por compensación que se entiende integrada a la asignación básica y por lo tanto constituye factor salarial para todos los efectos legales. | L33: 0 | M33: 18 | O33: 23 | P33: COL0027367 | Q33: GRUPO DE ESTUDIOS SOBRE DESIGUALDADES SOCIALES | R33: ECO | S33: Categoría C | T33: =ROW() -> 33
C34: D3632009 | D34: Accesorios de plástico para fontanería | E34: 1 | F34: =ROW() -> 34 | G34: 8 | J34: 2.1.1.01.01.002.12.01 | K34: Beneficios a los empleados a corto plazo | L34: 0 | M34: 21 | O34: 37 | P34: COL0066768 | Q34: Estudios Internacionales y Políticos | R34: EES | S34: Categoría B | T34: =ROW() -> 34
C35: D3632008 | D35: Accesorios de polivinilo para tubería y demás materiales plásticos | E35: 1 | F35: =ROW() -> 35 | G35: 8 | J35: 2.1.1.01.01.002.12.02 | K35: Beneficios a los empleados a largo plazo | L35: 0 | M35: 21 | O35: 45 | P35: COL0066669 | Q35: Sociedad, Estrategia y Seguridad | R35: EES | S35: Categoría C | T35: =ROW() -> 35
C36: D3737003 | D36: Accesorios de porcelana para revestimiento con baldosa | E36: 1 | F36: =ROW() -> 36 | G36: 8 | J36: 2.1.1.01.01.002.13 | K36: Prima especial Reconocimiento que hace la ley a los funcionarios de la planta externa del Ministerio de Comercio, Industria y Turismo (art. 4, Decreto 4971 de 2009) y a los funcionarios que presten sus servicios en las misiones colombianas permanentes acreditadas en el exterior (art. 4, Decreto 3357 de 2009).Esta prima se paga en forma mensual y constituye factor salarial para todos los efectos, incluyendo los aportes al Sistema Integral de Seguridad Social. | L36: 0 | M36: 18 | O36: 43 | P36: COL0101099 | Q36: HUMANITAS | R36: HUM | S36: Categoría A | T36: =ROW() -> 36
C37: D2712009 | D37: Accesorios de tejidos de fibras artificiales o sintéticas para baños | E37: 1 | F37: =ROW() -> 37 | G37: 8 | J37: 2.1.1.01.01.002.14 | K37: Bonificación cuerpo custodia y vigilancia Es una bonificación que se reconoce a los oficiales logísticos y de tratamiento penitenciario pertenecientes al Cuerpo de Custodia y Vigilancia Penitenciaria y Carcelaria Nacional del Instituto Nacional Penitenciario y Carcelario -INPEC-, de manera mensual a partir del primero (1) de enero de 2015, calculado sobre la asignación básica mensual correspondiente al empleo (art. 2, Decreto 1268 de 2015).De acuerdo al art. 4 del Decreto 1268 de 2015, la bonificación constituye factor salarial para todos los efectos legales y los aportes obligatorios sobre los pagos que se efectúen por ese concepto, se realizarán de conformidad con las disposiciones legales vigentes. | L37: 0 | M37: 18 | O37: 52 | P37: COL0002896 | Q37: Cultura y Desarrollo Humano | R37: HUM | S37: Categoría A | T37: =ROW() -> 37
C38: D4129201 | D38: Accesorios de tubería de hierro o acero | E38: 1 | F38: =ROW() -> 38 | G38: 8 | J38: 2.1.1.01.01.002.15 | K38: Bonificación personal administrativo Es una bonificación que se reconoce al personal administrativo del Instituto Nacional Penitenciario y Carcelario INPEC, una bonificación que se reconocerá mensualmente a partir del primero (1) de enero de 2015, calculado sobre la asignación básica mensual correspondiente al empleo que desempeñe.De acuerdo al art. 4 del Decreto 1268 de 2015 la bonificación constituye factor salarial para todos los efectos legales y los aportes obligatorios sobre los pagos que se efectúen por ese concepto, se realizarán de conformidad con las disposiciones legales vigentes. | L38: 0 | M38: 18 | O38: 58 | P38: COL0031824 | Q38: BioethicsGroup | R38: HUM | S38: Categoría A | T38: =ROW() -> 38
C39: D3632012 | D39: Accesorios de tubería, en poliéster reforzado con fibra de vidrio (GRP) | E39: 1 | F39: =ROW() -> 39 | G39: 8 | J39: 2.1.1.01.01.002.16 | K39: Sobresueldo Reconocimiento económico que hace la ley a los controladores de tránsito aéreo y supervisores de tránsito aéreo debidamente acreditados por el Centro de Estudios Aeronáuticos y pertenecientes al área de control de Tránsito Aéreo de la Unidad Administrativa Especial de Aeronáutica Civil en razón del volumen de operación de control de tráfico aéreo. El porcentaje del sobresueldo se fija de acuerdo con la categoría del aeropuerto donde el funcionario preste el servicio (Decreto 313 de 2018, art. 8). | L39: 0 | M39: 18 | O39: 11 | P39: COL0015722 | Q39: LIDERAZGO | R39: HUM | S39: Categoría A1 | T39: =ROW() -> 39
C40: D4693999 | D40: Accesorios eléctricos n.c.p. | E40: 1 | F40: =ROW() -> 40 | G40: 8 | J40: 2.1.1.01.01.002.17 | K40: Prima de productividad Reconocimiento económico que hace la ley a los empleados de la Rama Judicial, de la Fiscalía General de la Nación y del Instituto Nacional de Medicina Legal y Ciencias Forenses para mejorar la productividad. Esta prima es equivalente al cincuenta por ciento (50%) de la remuneración mensual, pagadera en el mes de diciembre de cada año (Decreto 2460 de 2006; modificado por el Decreto 3899 de 2008). | L40: 0 | M40: 18 | O40: 4 | P40: COL0068762 | Q40: GAV | R40: ING | S40: Categoría A | T40: =ROW() -> 40
C41: D4696199 | D41: Accesorios eléctricos n.c.p. para motores de combustión | E41: 1 | F41: =ROW() -> 41 | G41: 8 | J41: 2.1.1.01.01.002.18 | K41: Prima de desgaste y alto riesgo visual Reconocimiento económico que hace el Distrito de Bogotá a los bacteriólogos que presten sus servicios a las diferentes entidades y dependencias del distrito. | L41: 0 | M41: 18 | O41: 19 | P41: COL0044859 | Q41: Grupo de Investigación en Multimedia -GIM- | R41: ING | S41: Categoría A | T41: =ROW() -> 41
C42: D4717401 | D42: Accesorios electrónicos n.c.p. | E42: 1 | F42: =ROW() -> 42 | G42: 8 | J42: 2.1.1.01.01.002.19 | K42: Reserva especial del ahorro Corresponde al reconocimiento mensual que realiza la Superintendencia de Sociedades, la Superintendencia de Industria y Comercio, la Superintendencia Financiera de Colombia y el Instituto Nacional de Metrología a favor de sus empleados, con el fin de incentivar el ahorro de estos. Este reconocimiento es equivalente al 65% del sueldo básico, prima de antigüedad, prima técnica, gastos de representación y el incremento de salario por antigüedad (según corresponda). | L42: 0 | M42: 18 | O42: 21 | P42: COL0052181 | Q42: TIGUM: Grupo de Investigacion en Telemedicina Universidad Militar | R42: ING | S42: Categoría A | T42: =ROW() -> 42
C43: D3712907 | D43: Accesorios en fibra de vidrio para piscinas | E43: 1 | F43: =ROW() -> 43 | G43: 8 | J43: 2.1.1.01.01.002.20 | K43: Prima de localización (Artículo 8 Decreto 415 de 1979) Corresponde la prima que reconoce el Servicio Nacional de Aprendizaje (SENA) a los empleados públicos que presten sus servicios en el Centro Náutico Pesquero de Buenaventura, en la ciudad de Barrancabermeja, en el Departamento del Chocó y en la región de Urabá, donde existen sedes permanentes del SENA, en los Departamentos del César y la Guajira o en Centros Fijos de los Territorios Nacionales. Esta prima se fijó en1.500.00 mensuales, incrementándose anualmente en un 20%, constituye parte integral de la asignación básica mensual de los empleos del SENA y en ningún caso se podrá recibir viáticos y prima de localización simultáneamente | L43: 0 | M43: 18 | O43: 35 | P43: COL0026486 | Q43: Agua y Energía - AyE | R43: ING | S43: Categoría A | T43: =ROW() -> 43
C44: D3170005 | D44: Accesorios en madera para transporte de mercancías-estibas | E44: 1 | F44: =ROW() -> 44 | G44: 8 | J44: 2.1.1.01.01.002.21.01 | K44: Beneficios a los empleados a corto plazo Recursos destinados al pago a que tienen derecho los empleados públicos al cumplirse cinco años de antigüedad de servicios prestados en un trabajo, según lo estipulado en la ley. de acuerdo con la entidad y régimen salarial que rija para el mismo.“El quinquenio es un beneficio laboral que se reconoce con ocasión de la prestación del servicio por un lapso determinado, sin que manera alguna cubra riesgo o necesidad alguno del empleado. Motivo por el cual, en concepto de esta Oficina, el quinquenio es Salario o Remuneración”. (Concepto 11547 de 2002 Departamento Administrativo de la Función Pública). Asi mismo puede corresponder a un beneficio salarial especial al trabajador en el marco de una convención o Pacto Colectivo, siempre que cumpla con cinco (5) años de servicio continuo en la entidad. | L44: 0 | M44: 21 | O44: 40 | P44: COL0005439 | Q44: GEOTECNIA | R44: ING | S44: Categoría A | T44: =ROW() -> 44
C45: D4219016 | D45: Accesorios especiales para construcción de puentes y viaductos | E45: 1 | F45: =ROW() -> 45 | G45: 8 | J45: 2.1.1.01.01.002.21.02 | K45: Beneficios a los empleados a largo plazo Recursos destinados al pago a que tienen derecho los empleados públicos al cumplirse cinco años de antigüedad de servicios prestados en un trabajo, según lo estipulado en la ley. de acuerdo con la entidad y régimen salarial que rija para el mismo.“El quinquenio es un beneficio laboral que se reconoce con ocasión de la prestación del servicio por un lapso determinado, sin que manera alguna cubra riesgo o necesidad alguno del empleado. Motivo por el cual, en concepto de esta Oficina, el quinquenio es Salario o Remuneración”. (Concepto 11547 de 2002 Departamento Administrativo de la Función Pública). Asi mismo puede corresponder a un beneficio salarial especial al trabajador en el marco de una convención o Pacto Colectivo, siempre que preste sus servicios entre 5 y 15 años a la Entidad o mayor a 15 años. | L45: 0 | M45: 21 | O45: 51 | P45: COL0052163 | Q45: GISSIC: Grupo de Investigacion en Seguridad y Sistemas de Comunicaciones | R45: ING | S45: Categoría A | T45: =ROW() -> 45
C46: D3844019 | D46: Accesorios especiales para deportes (rodilleras, musleras, suspensorios, vendas) | E46: 1 | F46: =ROW() -> 46 | G46: 8 | J46: 2.1.1.01.01.002.22 | K46: Remuneración adicional Corresponde a remuneración a la que tienen derecho los empleados al servicio de la Contraloría General de la República que laboren ordinariamente en los departamentos creados por el Artículo 309207de la Constitución Política y en el Departamento del Caquetá. Esta remuneración es equivalente al 8% de la asignación básica mensual que les corresponde | L46: 0 | M46: 18 | O46: 61 | P46: COL0151789 | Q46: Grupo de Investigación en Ambiente, Ciencia y Tecnología -GREST- | R46: ING | S46: Categoría A | T46: =ROW() -> 46
C47: D3722107 | D47: Accesorios fijos de loza o porcelana para cuartos de baño | E47: 1 | F47: =ROW() -> 47 | G47: 8 | J47: 2.1.1.01.01.002.23 | K47: Prima capacitación no acogidos Reconocimiento que hace la ley a Magistrados del Tribunal, Jueces Superiores, de menores o circuitos en razón de estudios de post-grado, obra de investigación científica publicada o ejercicio de la docencia universitaria, todo en materias relacionadas con su cargo y especialidad (Art. 3, Decreto 903 de 1969 y Decreto 717 de 1978).El Consejo Superior de la administración de justicia para la determinación individual del monto de la prima de capacitación, que puede ascender hasta el 10% de la respectiva asignación mensual, analizará en singular cada factor invocado y demostrado, teniendo en cuenta la naturaleza, pertinencia, duración e intensidad, abundancia y pertinencia de la obra científica; y la antigüedad, perseverancia, rendimiento y pertinencia del ejercicio del magisterio (Art. 4 del Decreto 760 de 1970). | L47: 0 | M47: 18 | O47: 3 | P47: COL0016999 | Q47: Estructuras y sísmica | R47: ING | S47: Categoría A1 | T47: =ROW() -> 47
C48: D4299950 | D48: Accesorios metálicos para bombillos | E48: 1 | F48: =ROW() -> 48 | G48: 8 | J48: 2.1.1.01.01.002.24 | K48: Prima del nivel ejecutivo Corresponde a la prima a la que tiene derecho el personal del nivel ejecutivo de la Policía Nacional en servicio activo. Es equivalente al 20% de la asignación básica mensual, no tiene carácter salarial para ningún efecto, con excepción de la prima de navidad | L48: 0 | M48: 18 | O48: 27 | P48: COL0065804 | Q48: VOLTA - Grupo de Materiales, Corrosión, Degradación y Protección (GMCDP) | R48: ING | S48: Categoría A1 | T48: =ROW() -> 48
C49: D4299909 | D49: Accesorios metálicos para cortinas | E49: 1 | F49: =ROW() -> 49 | G49: 8 | J49: 2.1.1.01.01.002.25 | K49: Prima de retorno a la experiencia Es el reconocimiento económico que hace la ley al personal del nivel ejecutivo de la Policía Nacional por cada año de servicio que permanezca en el mismo grado de acuerdo con el porcentaje del sueldo básico | L49: 0 | M49: 18 | O49: 28 | P49: COL0036025 | Q49: DAVINCI | R49: ING | S49: Categoría A1 | T49: =ROW() -> 49
C50: D4291107 | D50: Accesorios metálicos para cuartos de baño | E50: 1 | F50: =ROW() -> 50 | G50: 8 | J50: 2.1.1.01.01.002.26 | K50: Prima de vuelo | L50: 0 | M50: 18 | O50: 9 | P50: COL0116636 | Q50: GIDAM | R50: ING | S50: Categoría B | T50: =ROW() -> 50
C51: D4299928 | D51: Accesorios metálicos para el transporte de mercancías-estibas | E51: 1 | F51: =ROW() -> 51 | G51: 8 | J51: 2.1.1.01.01.002.27 | K51: Prima de carestía Reconocimiento que se hace en el mes de abril de cada año a los trabajadores oficiales vinculados a 31 de diciembre del año inmediatamente anterior de una prima de carestía, de conformidad con lo previsto en la convención colectiva de trabajo vigente.. NE : Concepto exclusivo Universidad Nacional de Colombia | L51: 0 | M51: 18 | O51: 17 | P51: COL0049999 | Q51: PRODUCCION, INNOVACION Y TECNOLOGIA | R51: ING | S51: Categoría B | T51: =ROW() -> 51
C52: D4129304 | D52: Accesorios metálicos para fontanería, excepto válvulas | E52: 1 | F52: =ROW() -> 52 | G52: 8 | J52: 2.1.1.01.01.002.28 | K52: Bonificación cargo académico administrativo Reconocimiento de bonificación mensual a los docentes que por acto administrativo desempeñan cargos académico administrativos en funciones directivas. | L52: 0 | M52: 18 | O52: 60 | P52: COL0047566 | Q52: INGENIERÍA, GEOMÁTICA Y EDUCACIÓN (IGE) | R52: ING | S52: Categoría B | T52: =ROW() -> 52
C53: D4299214 | D53: Accesorios metálicos para muebles | E53: 1 | F53: =ROW() -> 53 | G53: 8 | J53: 2.1.1.01.01.002.29 | K53: Bonificación bienestar universitario Corresponde al pago a los servidores públicos según Acuerdo CSU 005 de 1998, aplica para docentes de carrera universitaria.NE: Aplica para la Universidad Nacional de Colombia. | L53: 0 | M53: 18 | O53: 5 | P53: COL0143731 | Q53: GI-iTEC - Grupo de Investigación e innovación Tecnológica en Electrónica y Comunicaciones | R53: ING | S53: Categoría C | T53: =ROW() -> 53
C54: D4324009 | D54: Accesorios metálicos para neumáticos | E54: 1 | F54: =ROW() -> 54 | G54: 8 | J54: 2.1.1.01.01.002.30 | K54: Cuatrienios Recursos destinados al pago a que tienen derecho los empleados públicos al cumplirse Cuatro años de antigüedad de servicios prestados en un trabajo, según lo estipulado en la ley. | L54: 0 | M54: 18 | O54: 10 | P54: COL0194866 | Q54: Ingeniería de Procesos y Tecnologías Sostenibles | R54: ING | S54: Categoría C | T54: =ROW() -> 54
C55: D4299907 | D55: Accesorios metálicos para persianas | E55: 1 | F55: =ROW() -> 55 | G55: 8 | J55: 2.1.1.01.01.002.31 | K55: Bonificación Pedagógica Docentes Prescolar, Básica y Media La bonificación pedagógica será reconocida para docentes y directivos docentes de entidades territoriales, pagadera una sola vez al año de acuerdo con los porcentajes indicados; cuando el docente o directivo docente cumpla un año continúo de servicio efectivamente prestado; constituye factor salarial y no tendrá efectos retroactivos. | L55: 0 | M55: 18 | O55: 41 | P55: COL0117052 | Q55: Energia alternativa, Centro Multidisciplinario de Investigación | R55: ING | S55: Categoría C | T55: =ROW() -> 55
C56: D4324007 | D56: Accesorios metálicos para tuberías | E56: 1 | F56: =ROW() -> 56 | G56: 8 | J56: 2.1.1.01.01.002.32 | K56: Sobresueldo docentes y directivos docentes Prescolar, Básica y Media Es la asignación adicional para docentes de prescolar vinculados en este nivel antes del 23 de febrero de 1984 y que permanezca sin solución de continuidad desempeñándose en el mismo cargo, equivalente al quince por ciento (15%) calculado sobre la asignación básica mensual. Dicha asignación adicional dejará de percibirse al cambiar de nivel educativo. | L56: 0 | M56: 18 | O56: 49 | P56: COL0036749 | Q56: ACCEDER | R56: ING | S56: Categoría C | T56: =ROW() -> 56
C57: D4129306 | D57: Accesorios n.c.p. para tubería metálica | E57: 1 | F57: =ROW() -> 57 | G57: 8 | J57: 2.1.1.01.01.002.33 | K57: Bonificación Educadores de Básica y Media Corresponde a la bonificación para los servidores públicos docentes y directivos docentes al servicio del Estado en los niveles de preescolar, básica y media, regidos por el Decreto Ley 2277 de 1979, el Decreto Ley 1278 de 2002 o la Sección 4, Capítulo 5, Título 3, Parte 3 del Decreto 1075 de 2015, Único Reglamentario del Sector Educación, y pagados con cargo al Sistema General de Participaciones, una bonificación, que se reconocerá mensualmente a partir del primero (01) de enero de 2020 y hasta el treinta y uno (31) diciembre de 2020, mientras el servidor público permanezca en el servicio. | L57: 0 | M57: 18 | O57: 56 | P57: COL0196753 | Q57: PROCESOS, OPERACIONES Y LOGISTICA (PROPYLOG) | R57: ING | S57: Categoría C | T57: =ROW() -> 57
C58: D2712011 | D58: Accesorios para baño de tejidos esponjosos de algodón | E58: 1 | F58: =ROW() -> 58 | G58: 8 | J58: 2.1.1.01.01.002.34 | K58: Prima de clima o de calor Es el reconocimiento económico que se realiza a los empleados públicos que desempeñan sus funciones en condiciones climáticas desfavorables para su salud, de acuerdo con las condiciones legales. | L58: 0 | M58: 18 | O58: 67 | P58: COL0196799 | Q58: Sistemas de Infraestructura de Ingeniería Civil | R58: ING | S58: Categoría C | T58: =ROW() -> 58
C59: D2712008 | D59: Accesorios para cocina en tejidos de algodón | E59: 1 | F59: =ROW() -> 59 | G59: 8 | J59: 2.1.1.01.01.002.35 | K59: Prima Movil Es el reconocimiento económico que se realiza a los empleados públicos que desempeñan sus funciones como operadores de maquinaria pesada (especial I y especial II), en el marco de una Convención colectiva. | L59: 0 | M59: 18 | O59: 73 | P59: COL0126777 | Q59: LA TRAMOYA | R59: ING | S59: No Reconocido | T59: =ROW() -> 59
C60: D4621299 | D60: Accesorios para instalaciones eléctricas n.c.p. | E60: 1 | F60: =ROW() -> 60 | G60: 8 | J60: 2.1.1.01.01.002.36 | K60: Prima de vida cara Corresponde al pago que realiza el municipio de Medellín en el marco de la Convención Colectiva firmada con los Trabajadores Oficiales del municipio. | L60: 0 | M60: 18 | O60: 20 | P60: COL0175225 | Q60: Grupo de Investigación en Enfermedades Infecciosas Hospital Militar Central | R60: MED | S60: Categoría A1 | T60: =ROW() -> 60
C61: D4654101 | D61: Accesorios para lámparas de mercurio | E61: 1 | F61: =ROW() -> 61 | G61: 8 | J61: 2.1.1.01.01.002.37 | K61: Prima de Riesgo Prima creada por convención colectiva para los trabajadores que manipulan explosivos en la Industria Militar. La cual corresponderá a dos salarios básico por cada año de servicio | L61: 0 | M61: 18 | O61: 63 | P61: COL0152472 | Q61: Grupo de Inmunología Clínica Aplicada | R61: MED | S61: Categoría A1 | T61: =ROW() -> 61
C62: D4654103 | D62: Accesorios para lámparas fluorescentes | E62: 1 | F62: =ROW() -> 62 | G62: 8 | J62: 2.1.1.01.01.002.38 | K62: Remuneración Sorteo Semanal Corresponde a la remuneración que realiza la lotería de Cundinamarca a los trabajadores que participen en las labores de la realización semanal de sorteos. | L62: 0 | M62: 18 | O62: 12 | P62: COL0129689 | Q62: GRUPO DE SALUD ORAL Y CIRUGIA MAXILOFACIAL | R62: MED | S62: Categoría C | T62: =ROW() -> 62
C63: D4654102 | D63: Accesorios para lámparas incandescentes | E63: 1 | F63: =ROW() -> 63 | G63: 8 | J63: 2.1.1.01.01.002.39 | K63: Vacaciones Corresponde al reconocimiento que por mera liberalidad realiza el empleador al trabajador por concepto de vacaciones cuando estas se consideran como un factor salarial, en aplicación de lo establecido en el código sustantivo de trabajo. | L63: 0 | M63: 18 | O63: 13 | P63: COL0125134 | Q63: Kokhlias | R63: MED | S63: Categoría C | T63: =ROW() -> 63
C64: D3844017 | D64: Accesorios para piscinas | E64: 1 | F64: =ROW() -> 64 | G64: 8 | J64: 2.1.1.01.01.002.40 | K64: Distinción Son los reconocimientos que se otorgan al Patrullero en servicio activo, por su tiempo de servicio, buen comportamiento y profesionalización, previo el lleno de los requisitos dispuestos en la Ley 2179 de 2021. | L64: 0 | M64: 18 | O64: 25 | P64: COL0045848 | Q64: Epidemiología molecular de enfermedades endocrinas | R64: MED | S64: Categoría C | T64: =ROW() -> 64
C65: D4653902 | D65: Accesorios para reflectores | E65: 1 | F65: =ROW() -> 65 | G65: 8 | J65: 2.1.1.01.02.001 | K65: Aportes a la seguridad social en pensiones Son los pagos por concepto de contribución social que hacen los empleadores a los fondos de seguridad social en pensiones. Este pago se realiza en virtud de la Ley 100 de 1993, por medio de la cual se creó el Sistema de Seguridad Social de Pensiones, y se estableció la obligatoriedad de la afiliación de todos los empleados al sistema.Este aporte tiene como finalidad garantizar a la población el amparo contra las contingencias derivadas de la vejez, la invalidez y la muerte, mediante el reconocimiento de las pensiones y prestaciones correspondientes (Ley 100 de 1993, art. 10). | L65: 0 | M65: 15 | O65: 29 | P65: COL0116439 | Q65: Grupo de Investigacion en Dermatologia HMC | R65: MED | S65: Categoría C | T65: =ROW() -> 65
C66: D4293116 | D66: Accesorios para tanques de combustible | E66: 1 | F66: =ROW() -> 66 | G66: 8 | J66: 2.1.1.01.02.002 | K66: Aportes a la seguridad social en salud Son los pagos por concepto de contribución social que hacen los empleadores a las Entidades Promotoras en Salud (EPS) para el cubrimiento de riesgos de salud de sus empleados. Este pago se realiza en virtud de la Ley 100 de 1993, la cual creó el Sistema de Seguridad Social en Salud y estableció como deberes del empleador realizar cumplidamente los aportes correspondientes. | L66: 0 | M66: 15 | O66: 31 | P66: COL0120281 | Q66: GRUPO DE REHABILITACION HOMIC-UMNG | R66: MED | S66: Categoría C | T66: =ROW() -> 66
C67: D4151603 | D67: Accesorios para tubería de cobre | E67: 1 | F67: =ROW() -> 67 | G67: 8 | J67: 2.1.1.01.02.003 | K67: Aportes de cesantías Es la contribución de cesantías, que el empleador está obligado a pagar en razón de un mes de sueldo o jornal por cada año de servicio de su empleado, proporcionalmente fraccionado. Este aporte tiene como fin cubrir o prever las necesidades que se originan al trabajador al momento de quedar cesante. (Departamento Administrativo de la Función Pública, 2012).Los aportes a los fondos administradores de cesantías entraron en vigor para entidades territoriales con la Ley 344 de 1996. Así mismo, la Ley 432 de 1998 permitió que el personal del nivel territorial se afiliara al Fondo Nacional del Ahorro. | L67: 0 | M67: 15 | O67: 33 | P67: COL0138698 | Q67: GRUPO NEUROCIENCIAS HMC | R67: MED | S67: Categoría C | T67: =ROW() -> 67
C68: D2165101 | D68: Aceite crudo de palma africana | E68: 1 | F68: =ROW() -> 68 | G68: =LEN(C68) -> 8 | J68: 2.1.1.01.02.004 | K68: Aportes a cajas de compensación familiar Son los pagos por concepto de la contribución social que hacen los empleadores a las Cajas de Compensación familiar para el cubrimiento del subsidio familiar y de vivienda. | L68: 0 | M68: =LEN(J68) -> 15 | O68: 39 | P68: COL0126015 | Q68: GRUPO DE PSORIASIS E INMUNODERMATOLOGIA | R68: MED | S68: Categoría C | T68: =ROW() -> 68
C69: D2169113 | D69: Aceite crudo de palmiste | E69: 1 | F69: =ROW() -> 69 | G69: 8 | J69: 2.1.1.01.02.005 | K69: Aportes generales al sistema de riesgos laborales Son los pagos por concepto de contribución social que hacen los empleadores a una Administradora de Riesgos Laborales (ARL), según elección, liquidación y las tablas de riesgo establecidas legalmente; para el cubrimiento de las prestaciones económicas y asistenciales derivadas de un accidente de trabajo o una enfermedad profesional (Ley 100 de 1993; Decreto 1295 de 1994).El monto de las cotizaciones no podrá ser inferior al 0.348%, ni superior al 8.7%, de la base de cotización de los trabajadores a cargo del respectivo empleador (Decreto 1295 de 1994, art.18). Este pago se realiza en virtud de la Ley 100 de 1993, la cual creó el sistema General de Riesgos laborales, y el Decreto 1295 de 1994, el cual establece: […] c) Todos los empleadores deben afiliarse al Sistema General de Riesgos Profesionales. […] d) La afiliación de los trabajadores dependientes es obligatoria para todos los empleadores. […]El empleador que no afilie a sus trabajadores al Sistema General de Riesgos Profesionales, además de las sanciones legales, será responsable de las prestaciones que se otorgan en este decreto (Decreto 1295 de 1994, art. 4). | L69: 0 | M69: 15 | O69: 42 | P69: COL0152463 | Q69: EDUMECIS | R69: MED | S69: Categoría C | T69: =ROW() -> 69
C70: D2168102 | D70: Aceite crudo de semillas de algodón | E70: 1 | F70: =ROW() -> 70 | G70: 8 | J70: 2.1.1.01.02.006 | K70: Aportes al ICBF Son los pagos por concepto de contribución parafiscal que hacen los empleadores al Instituto Colombiano de Bienestar Familiar (ICBF). Esta contribución está destinada a atender la creación y sostenimiento de centros de atención integral al preescolar, para menores de 7 años hijos del personal con quien la entidad tiene una relación laboral (Ley 27 de 1974; modificado por Ley 89 de 1998, art. 1) | L70: 0 | M70: 15 | O70: 44 | P70: COL0191078 | Q70: GRUPO DE INVESTIGACIONES SOBRE AGENTES RADIOLÓGICOS, BIOLÓGICOS Y QUÍMICOS | R70: MED | S70: Categoría C | T70: =ROW() -> 70
C71: D2169104 | D71: Aceite de ajonjolí, refinado | E71: 1 | F71: =ROW() -> 71 | G71: 8 | J71: 2.1.1.01.02.007 | K71: Aportes al SENA Es la contribución parafiscal a pagar por la Nación (por intermedio de los Ministerios, Departamentos Administrativos y Superintendencias), los establecimientos públicos, las empresas industriales y comerciales y las empresas de economía mixta de las órdenes nacional, departamental, Intendencias, distrital y municipal, y los empleados que ocupen uno o más trabajadores permanentes al SENA. Los aportes para la Nación son equivalentes al 0,5% de la nómina mensual de salarios y están destinados a programas específicos de formación profesional acelerada, durante la prestación del servicio militar obligatorio. Los aportes de los demás contribuyentes son equivalentes al 2% de las nóminas respectivas (Ley 21 de 1982, arts. 7 a 12). De acuerdo con la Ley 223 de 1995, las universidades públicas no están obligadas a realizar aportes al SENA (Ley 223 de 1995, art. 181). | L71: 0 | M71: 15 | O71: 46 | P71: COL0194721 | Q71: Grupo de Investigación en Cirugía pediátrica y especialidades CIPEMIL | R71: MED | S71: Categoría C | T71: =ROW() -> 71
C72: D2169103 | D72: Aceite de ajonjolí, sin refinar | E72: 1 | F72: =ROW() -> 72 | G72: 8 | J72: 2.1.1.01.02.008 | K72: Aportes a la ESAP Contribución parafiscal a pagar por la Nación, los departamentos, intendencias, comisarías, el Distrito Especial de Bogotá y los municipios empleadores a la ESAP. La Ley establece el porcentaje a pagar, el cual se calcula sobre los pagos por concepto de salarios (Ley 21 de 1982, art. 8). | L72: 0 | M72: 15 | O72: 48 | P72: COL0152319 | Q72: Epidemiología y Salud Colectiva | R72: MED | S72: Categoría C | T72: =ROW() -> 72
C73: D2169111 | D73: Aceite de arroz, refinado | E73: 1 | F73: =ROW() -> 73 | G73: 8 | J73: 2.1.1.01.02.009 | K73: Aportes a escuelas industriales e institutos técnicos Son los pagos por concepto de contribución parafiscal que hacen los empleadores a favor de las escuelas industriales e institutos técnicos. Este aporte es equivalente al 0,5% de la nómina mensual de salarios de los contribuyentes (Ley 21 de 1982, art. 11) | L73: 0 | M73: 15 | O73: 50 | P73: COL0134044 | Q73: ORTOPEDIA Y TRAUMATOLOGIA HMC UMNG | R73: MED | S73: Categoría C | T73: =ROW() -> 73
C74: D2169110 | D74: Aceite de arroz, sin refinar | E74: 1 | F74: =ROW() -> 74 | G74: 8 | J74: 2.1.1.01.02.010 | K74: Aporte subsidio de vivienda fuerzas militares y policía Es el aporte a pagar por los empleados públicos y, según lo contratado, los trabajadores oficiales de determinados niveles o condiciones salariales en la cuantía y condiciones señaladas en el Decreto 353 de 1994, la Ley 973 de 2005 y la Ley 1305 de 2009. Estos recursos son administrados por la Caja Promotora de Vivienda Militar y de Policía. De acuerdo con el artículo 19 de la Ley 973 de 2005, el pago a la Caja Promotora de vivienda y de Policía debe transferirse en la misma fecha en la que se realizan las consignaciones de los aportes al 180 sistema general de pensiones y de seguridad social en salud.Adicionalmente, el artículo 20 de la ley en mención, dispone que: En todas las entidades empleadoras de los afiliados a la Caja Promotora de Vivienda Militar y de Policía, será obligatorio incluir en sus anteproyectos de presupuestos las partidas necesarias que serán transferidas a la Caja Promotora de Vivienda Militar y de Policía, por concepto de aportes de cesantías de los afiliados a dicha entidad para atender las cesantías de la respectiva vigencia (Ley 973 de 2005). | L74: 0 | M74: 15 | O74: 66 | P74: COL0116538 | Q74: Grupo de Investigacion en Urologia HMC | R74: MED | S74: Categoría C | T74: =ROW() -> 74
C75: D2152502 | D75: Aceite de bacalao refinado | E75: 1 | F75: =ROW() -> 75 | G75: 8 | J75: 2.1.1.01.02.020.01 | K75: Aportes a la seguridad social en pensiones Son los pagos por concepto de contribución social que hacen los Departamentos (Asamblea) o municipios a los fondos de seguridad social en pensiones a los que se encuentren afiliados los diputados o concejales, según corresponda. Estos pagos se realizan en virtud de la Ley 1871 de 2017 y 2075 de 2021. | L75: 0 | M75: 18 | O75: 69 | P75: COL0049659 | Q75: CATCH | R75: MED | S75: No Reconocido | T75: =ROW() -> 75
C76: D2152501 | D76: Aceite de bacalao sin refinar | E76: 1 | F76: =ROW() -> 76 | G76: 8 | J76: 2.1.1.01.02.020.02 | K76: Aportes a la seguridad social en salud Son los pagos por concepto de contribución social que hacen los Departamentos (Asamblea) o municipios a las Entidades Promotoras en Salud (EPS) para el cubrimiento de riesgos de salud de los diputados o concejales, según corresponda. Estos pagos se realizan en virtud de la Ley 1871 de 2017 y 2075 de 2021. | L76: 0 | M76: 18 | O76: 70 | P76: COL0149359 | Q76: GAFRED | R76: MED | S76: No Reconocido | T76: =ROW() -> 76
C77: D2152601 | D77: Aceite de ballena sin refinar | E77: 1 | F77: =ROW() -> 77 | G77: 8 | J77: 2.1.1.01.02.020.03 | K77: Aportes de cesantías Corresponde al Auxilio de cesantía e intereses sobre las cesantías, que reconocen los Departamentos (Asamblea) a los diputados, de acuerdo a lo establecido en la Ley 1871 de 2017. Su liquidación se orientará por los artículos 3o y 4o de la Ley 5 de 1969 y el artículo 13 de la Ley 344 de 1996 o por las normas que lo adicionen o modifiquen. | L77: 0 | M77: 18 | O77: 71 | P77: COL0096032 | Q77: BioGenEtica & BioDerecho | R77: MED | S77: No Reconocido | T77: =ROW() -> 77
C78: D2166201 | D78: Aceite de coco, refinado | E78: 1 | F78: =ROW() -> 78 | G78: 8 | J78: 2.1.1.01.02.020.04 | K78: Aportes a cajas de compensación familiar Son los pagos por concepto de la contribución social que hacen los Departamentos (Asamblea) o municipios a las Cajas de Compensación familiar para el cubrimiento del subsidio familiar y de vivienda de los diputados y concejales, en cumplimiento de la Ley 1871 de 2017 y 2075 de 2021. | L78: 0 | M78: 18 | O78: 74 | P78: COL0033239 | Q78: Salud y Comportamiento | R78: MED | S78: No Reconocido | T78: =ROW() -> 78
C79: D2166101 | D79: Aceite de coco, sin refinar | E79: 1 | F79: =ROW() -> 79 | G79: 8 | J79: 2.1.1.01.02.020.05 | K79: Aportes generales al sistema de riesgos laborales Son los pagos por concepto de contribución social que hacen los Departamentos (Asamblea) o municipios a una Administradora de Riesgos Laborales (ARL), en cumplimiento de la Ley 1871 de 2017 y 2075 de 2021, para el cubrimiento de las prestaciones económicas y asistenciales derivadas de un accidente de trabajo o una enfermedad profesional de los diputados o concejales. | L79: 0 | M79: 18 | O79: 75 | P79: COL0047762 | Q79: BONE | R79: MED | S79: No Reconocido | T79: =ROW() -> 79
C80: D2163201 | D80: Aceite de girasol, refinado | E80: 1 | F80: =ROW() -> 80 | G80: 8 | J80: 2.1.1.01.02.020.06 | K80: Aportes al ICBF Son los pagos por concepto de contribución parafiscal que hacen los departamentos (Asamblea) al Instituto Colombiano de Bienestar Familiar (ICBF), por las remuneraciones que reconoce a los diputados. | L80: 0 | M80: 18
C81: D2163101 | D81: Aceite de girasol, sin refinar | E81: 1 | F81: =ROW() -> 81 | G81: 8 | J81: 2.1.1.01.02.020.07 | K81: Aportes al SENA Es la contribución parafiscal a pagar por los Departamentos (asamblea) al SENA, por las remuneraciones que reconoce a los diputados. | L81: 0 | M81: 18
C82: D2169109 | D82: Aceite de higuerilla, sin refinar | E82: 1 | F82: =ROW() -> 82 | G82: 8 | J82: 2.1.1.01.02.020.08 | K82: Aportes a la ESAP Contribución parafiscal a pagar por los departamentos (Asamblea), por las remuneraciones que reconoce a los diputados. | L82: 0 | M82: 18
C83: D2169102 | D83: Aceite de linaza, refinado | E83: 1 | F83: =ROW() -> 83 | G83: 8 | J83: 2.1.1.01.02.020.09 | K83: Aportes a escuelas industriales e institutos técnicos Son los pagos por concepto de contribución parafiscal que hacen los Departamentos (Asambleas) a favor de las escuelas industriales e institutos técnicos. por las remuneraciones que reconoce a los diputados. | L83: 0 | M83: 18
C84: D2169101 | D84: Aceite de linaza, sin refinar | E84: 1 | F84: =ROW() -> 84 | G84: 8 | J84: 2.1.1.01.03.001.01 | K84: Vacaciones Es el pago por el descanso remunerado a que tiene derecho el empleado después de un año de labor en la entidad. Esta retribución se reconoce a los empleados por la totalidad de días de vacaciones y corresponde a quince (15) días de trabajo, y será pagado al menos cinco (5) días con antelación a la fecha señalada para iniciar el goce del descanso remunerado (Decreto 1045 de 1978, arts. 18 y 48). | L84: 0 | M84: 18
C85: D2169106 | D85: Aceite de maíz, refinado | E85: 1 | F85: =ROW() -> 85 | G85: 8 | J85: 2.1.1.01.03.001.02 | K85: Indemnización por vacaciones Corresponde a la compensación en dinero a la que tiene derecho el empleado por vacaciones causadas, pero no disfrutadas. En principio, la compensación en dinero de las vacaciones está prohibida, en tanto estas constituyen un derecho del que gozan todos los trabajadores como quiera que el reposo es una condición mínima que ofrece la posibilidad de que el empleado renueve la fuerza y la dedicación para el desarrollo de sus actividades (Corte Constitucional, Sentencia C-598/1997).Por ello, el reconocimiento de la indemnización por vacaciones se limita a los siguientes casos: •Cuando el jefe del respectivo organismo así lo estime necesario para evitar perjuicios en el servicio público, evento en el cual sólo puede autorizar la compensación en dinero de las vacaciones correspondientes a un año. •Cuando el empleado público o trabajador oficial quede retirado definitivamente del servicio sin haber disfrutado de las vacaciones causadas hasta entonces (Decreto 1045 de 1978, art. 20). | L85: 0 | M85: 18
C86: D2169105 | D86: Aceite de maíz, sin refinar | E86: 1 | F86: =ROW() -> 86 | G86: 8 | J86: 2.1.1.01.03.001.03 | K86: Bonificación especial de recreación Es la retribución que se reconoce a los empleados por cada periodo de vacaciones en el momento de iniciar el disfrute del respectivo periodo vacacional. La cuantía de la bonificación por recreación equivale a dos días de la asignación básica mensual que le corresponda al empleado.Esta bonificación no constituirá factor de salario para ningún efecto legal y se pagará por lo menos con cinco (5) días hábiles de antelación a la fecha de inicio en el evento que se disfrute del descanso remunerado (Decreto 229 de 2016, art. 16). | L86: 0 | M86: 18
C87: D2162201 | D87: Aceite de maní, refinado | E87: 1 | F87: =ROW() -> 87 | G87: 8 | J87: 2.1.1.01.03.001.04 | K87: Subsidio Familiar Es la prestación social pagadera en dinero, especie y servicios a los empleados públicos y trabajadores oficiales públicos de medianos y menores ingresos en proporción al número de personas a cargo. | L87: 0 | M87: 18
C88: D2162101 | D88: Aceite de maní, sin refinar | E88: 1 | F88: =ROW() -> 88 | G88: 8 | J88: 2.1.1.01.03.001.05 | K88: Vacaciones de diputados Corresponde al reconocimiento por vacaciones al que tienen derechos los servidores públicos que ejercen como diputados. Su cuantía y término se reconoce de conformidad con lo establecido en el Decreto número 1045 de 1978. Para el reconocimiento se tendrá en cuenta como si se hubiese sesionado todo el año. | L88: 0 | M88: 18
C89: D2224102 | D89: Aceite de mantequilla | E89: 1 | F89: =ROW() -> 89 | G89: 8 | J89: 2.1.1.01.03.002 | K89: Bonificación de dirección Es la retribución económica reconocida a determinados funcionarios del Estado, quienes desempeñan labores relacionadas con la dirección. | L89: 0 | M89: 15
C90: D2164201 | D90: Aceite de mostaza o de colza, refinado | E90: 1 | F90: =ROW() -> 90 | G90: 8 | J90: 2.1.1.01.03.003 | K90: Bonificación de dirección para gobernadores y alcaldes Es la retribución económica reconocida a gobernadores y alcaldes creada por el decreto 4353 de 2004 (modificado por el Decreto 1390 de 2008), pagadera en tres pagos contados iguales durante el año, en los meses de abril, agosto y diciembre del respectivo año. | L90: 0 | M90: 15
C91: D2164101 | D91: Aceite de mostaza o de colza, sin refinar | E91: 1 | F91: =ROW() -> 91 | G91: 8 | J91: 2.1.1.01.03.004 | K91: Bonificación de gestión territorial para alcaldes Es una retribución pagadera anualmente a los alcaldes, en dos contados iguales durante el año, en los meses de junio y diciembre. Para los alcaldes de los municipios de categoría especia, primera, segunda y tercera esta bonificación equivale al 100% de la asignación básica más gastos de representación. Para los alcaldes de los municipios de categoría cuarta, quinta y sexta, esta bonificación equivale al 150% de la asignación básica más gastos de representación. | L91: 0 | M91: 15
C92: D2169197 | D92: Aceite de nueces, refinado n.c.p. | E92: 1 | F92: =ROW() -> 92 | G92: 8 | J92: 2.1.1.01.03.005 | K92: Reconocimiento por permanencia en el servicio público - Bogotá D.C. Es la retribución a la que tienen derecho los funcionarios, por prestar sus servicios por periodos de 5 años consecutivos, sin interrupciones, y por haber desempeñado más funciones con corrección y competencia. | L92: 0 | M92: 15
C93: D2169196 | D93: Aceite de nueces, sin refinar n.c.p. | E93: 1 | F93: =ROW() -> 93 | G93: 8 | J93: 2.1.1.01.03.006 | K93: Honorarios concejales Es el pago de los honorarios reconocidos a los concejales por su asistencia a las sesiones del Concejo Municipal.De acuerdo con el Consejo de Estado (Concepto N° 1760 del 10 de agosto de 2006), los honorarios recibidos por los concejales no tienen calidad jurídica de salario, razón por la cual no son considerados para la liquidación de los aportes parafiscales. | L93: 0 | M93: 15
C94: D2167201 | D94: Aceite de oliva, refinado | E94: 1 | F94: =ROW() -> 94 | G94: 8 | J94: 2.1.1.01.03.007 | K94: Honorarios ediles Es el pago de los honorarios reconocidos a los ediles del distritos por su asistencia a las sesiones y comisiones permanentes. | L94: 0 | M94: 15
C95: D2167101 | D95: Aceite de oliva, sin refinar | E95: 1 | F95: =ROW() -> 95 | G95: 8 | J95: 2.1.1.01.03.008 | K95: Subsidio de transporte a personeros Es el pago del subsidio de transporte que se reconoce a los personeros municipales, en virtud del artículo 36 de la Ley 1551 de 2012. De acuerdo con el artículo en mención, en los municipios de categoría tercera, cuarta, quinta y sexta, los personeros tienen derecho a un subsidio de 6 salaríos mínimos mensuales legales por una única vez al inicio de su periodo. | L95: 0 | M95: 15
C96: D2165201 | D96: Aceite de palma africana, refinado | E96: 1 | F96: =ROW() -> 96 | G96: 8 | J96: 2.1.1.01.03.009 | K96: Prima técnica no salarial Comprende la prima técnica por evaluación del desempeño y la prima técnica automática.La prima técnica por evaluación de desempeño se otorga a funcionarios directivos, jefes de oficina asesora o asesores que obtienen un porcentaje correspondiente al 90%, como mínimo, del total de la última evaluación del desempeño, correspondiente a un periodo no inferior a 3 meses en el ejercicio del cargo en propiedad (Decreto 1164 de 2012). No puede ser superior al 50% de la asignación básica mensual del empleado al que se le asigna la prima.Por su parte, la prima técnica automática es otorgada a altos funcionarios, en virtud de las calidades excepcionales del ejercicio de sus funciones. Equivale al 50% del sueldo y los gastos de representación de los empleados.De acuerdo con el artículo 7 del Decreto 1661 de 1991, no constituyen factor salarial: la prima técnica por evaluación de desempeño y la prima técnica automática. | L96: 0 | M96: 15
C97: D2169114 | D97: Aceite de palmiste, refinado | E97: 1 | F97: =ROW() -> 97 | G97: 8 | J97: 2.1.1.01.03.010 | K97: Bonificación especial por servicios de seguridad a ex presidentes Corresponde al pago que se les hace a los funcionarios de las Fuerzas Militares, de la Policía Nacional y el Departamento Administrativo de Seguridad, asignados de forma permanente en la prestación de servicios para garantizar la seguridad de los ex presidentes de la República y sus cónyuges sobrevivientes, equivalente al 30% de la asignación básica mensual que reciben.El pago de esta bonificación se hará con cargo al presupuesto de la entidad a la cual se encuentre vinculado el funcionario (art. 4, Decreto 1700 de 2010). | L97: 0 | M97: 15
C98: D2152599 | D98: Aceite de pescado refinado n.c.p. | E98: 1 | F98: =ROW() -> 98 | G98: 8 | J98: 2.1.1.01.03.011 | K98: Bonificación especial por servicios de comisión en Presidencia Corresponde al pago de una asignación mensual adicional, equivalente al 60% del suelo básico mensual, que se reconoce al personal del Ministerio de Defensa, de las Fuerzas Militares, de la Policía Nacional y de la Unidad Nacional de Protección (UNP), que preste sus servicios en comisión en el Departamento Administrativo de la Presidencia de la República, bien sea en la Casa Militar o en la Secretaría para la Seguridad del Presidente y de la familia presidencial, aun por fuera de la sede habitual de residencia de la familia presidencial. En iguales condiciones, tendrán derecho a esta bonificación, los soldados que presten el servicio en el Palacio Presidencial-Casa de Nariño.Para tener derecho al reconocimiento y pago de la bonificación, el personal debe haber prestado el servicio total o parcialmente en jornadas de trabajos extras diurnas o nocturnas y previa certificación del Secretario para la Seguridad del Presidente, sobre la prestación del servicio o del Jefe de la Casa Militar de Palacio, o el Jefe de Guarnición, en cada caso (art. 1, Decreto 1794 de 2012). | L98: 0 | M98: 15
C99: D2152598 | D99: Aceite de pescado sin refinar n.c.p. | E99: 1 | F99: =ROW() -> 99 | G99: 8 | J99: 2.1.1.01.03.012 | K99: Prima de riesgo Reconocimiento que hace la ley a los funcionarios que prestan servicios de alto riesgo, en los siguientes términos:- Para los conductores de los Ministros y Directores de Departamento Administrativos la prima de riesgo será equivalente al veinte por ciento (20%) de la asignación básica mensual (Decreto 229 de 2016, art. 8)- Para los conductores del Ministro de Defensa Nacional, el Comandante General de las Fuerzas Militares, los Comandantes de Fuerza y del Director General de la Policía Nacional la prima de riesgo será del 20% de la asignación básica mensual (Decreto 214 de 2016, art. 33).- Para el personal de los organismos de seguridad del Estado en comisión en los establecimientos de reclusión del Instituto Nacional Penitenciario y Carcelario -INPEC la prima de riesgo corresponderá al 30% de la asignación básica mensual (Decreto 229 de 2016, art. 34).- Para el personal de la Imprenta Distrital, guardianes de la cárcel distrital, personal de vigilancia de la Secretaría de Tránsito y Transportes, radio operadores de la Administración Central, Técnicos en Salud Ocupacional, operadores de equipos, auxiliares de ingeniería y técnicos de la división de ingeniería de la Secretaría de Tránsito y Transportes. Empleados de publicaciones de la Secretaría de Educación, operarios de la Fábrica de Pupitres San Blas y Fábrica de Tiza de la Secretaría de Educación con más de cinco (5) años de servicio la prima de riesgo se paga de manera mensual y corresponde a un 5% por ciento de la asignación básica mensual más de un 1% por cada año adicional a los primeros cinco (5) años de servicio, sin que exceda el veinticinco (25%) por ciento.En todos los casos, esta prima no constituye factor salarial para ningún efecto legal. | L99: 0 | M99: 15
C100: D3440005 | D100: Aceite de pino | E100: 1 | F100: =ROW() -> 100 | G100: 8 | J100: 2.1.1.01.03.013 | K100: Prima de gestión Reconocimiento que hace la ley a algunos servidores públicos, en los siguientes términos:- A los negociadores internacionales, correspondiente al 50% de la asignación básica y los gastos de representación (Decreto 229 de 2016, art. 3). - Al Director de la Unidad de Información y Análisis Financiero, correspondiente al 50% de la asignación básica mensual (Decreto 229 de 2016, art. 3).-A los empleados públicos del Congreso, conforme a lo dispuesto en el artículo 5 del Decreto 230 de 2016.En todos los casos, esta prima no constituye factor salarial para ningún efecto legal. | L100: 0 | M100: 15
C101: D2169108 | D101: Aceite de ricino, refinado | E101: 1 | F101: =ROW() -> 101 | G101: 8 | J101: 2.1.1.01.03.014 | K101: Prima de dirección Es el reconocimiento económico que sustituye la prima técnica para los ministros de despacho y directores de departamentos administrativos; a excepción de la prima técnica por estudios de formación avanzada y experiencia altamente calificada (Decreto 1101 de 2015).De acuerdo con el artículo 2 del decreto 1028 de 2015, los oficiales de las Fuerzas Militares y de la Policía Nacional en los grados de Almirante y General tendrán derecho a la Prima de Dirección, en las mismas condiciones que los ministros de despacho.Tienen derecho a la prima técnica los demás funcionarios que legalmente se establezcan como beneficiarios. | L101: 0 | M101: 15
C102: D2169107 | D102: Aceite de ricino, sin refinar | E102: 1 | F102: =ROW() -> 102 | G102: 8 | J102: 2.1.1.01.03.015 | K102: Prima geográfica Corresponde a una asignación sin carácter salarial, otorgada a los funcionarios cuyos cargos estén ubicados en zonas de difícil acceso, clima malsano o alto riesgo por violencia, pagadera mientras subsistan tales factores. Por ejemplo: el Decreto 2372 de 1994 otorga la prima geográfica a los funcionarios de la Registraduría Nacional del Estado Civil que presten sus servicios en dichas zonas. | L102: 0 | M102: 15
C103: D2168101 | D103: Aceite de semilla de algodón, sin refinar | E103: 1 | F103: =ROW() -> 103 | G103: 8 | J103: 2.1.1.01.03.016 | K103: Prima de costo de vida Reconocimiento que hace la ley a los servidores públicos del Ministerio de Relaciones Exteriores y del Ministerio de Comercio, Industria y Turismo que se encuentren prestando servicios en el exterior con el fin de equiparar el ingreso real en pesos de dichos funcionarios a las condiciones económicas y cambiarias de los países de destino (art. 5, Decreto 3357 de 2009 y art. 5, Decreto 4971 de 2009).Este pago no se traduce en un incremento neto del patrimonio del funcionario, por lo tanto, no tiene carácter remuneratorio. | L103: 0 | M103: 15
C104: D2168201 | D104: Aceite de semillas de algodón, refinado | E104: 1 | F104: =ROW() -> 104 | G104: 8 | J104: 2.1.1.01.03.017 | K104: Prima de localización y vivienda Reconocimiento que hace la ley a los miembros del Congreso. Esta prima se paga de forma mensual, no se considera factor salarial, y es equivalente a setecientos mil pesos ($ 700.000.00) (art. 2, Decreto 801 de 1992). | L104: 0 | M104: 15
C105: D2169199 | D105: Aceite de semillas oleaginosas, refinado n.c.p. | E105: 1 | F105: =ROW() -> 105 | G105: 8 | J105: 2.1.1.01.03.018 | K105: Prima de capacitación Reconocimiento que hace la ley a Magistrados de Tribunal, Fiscales o Jueces Superiores, de Menores o de Circuito en razón de estudios de post-grado, obra de investigación científica publicada o ejercicio de la docencia universitaria, todo en materias relacionadas con su cargo y especialidad (Decreto 903 e 1969, art. 3).Para determinar la cuantía individual de la prima, que puede ascender hasta el diez por ciento de la respectiva asignación mensual, el Consejo Superior de la Administración de Justicia analizará en singular cada factor invocado y demostrado, teniendo en cuenta la naturaleza, pertinencia, duración e intensidad, abundancia y pertinencia de la obra científica; y la antigüedad, perseverancia, rendimiento y pertinencia del ejercicio del magisterio (art. 4, Decreto 760 de 1970).Así mismo, es el pago por concepto de prima de capacitación que tiene derecho los miembros del Cuerpo de Custodia y Vigilancia Carcelaria. Reconocida en la Ley 32 de 1986 y en las normas que el Gobierno Nacional expida en desarrollo de la Ley 4ª de 1992. | L105: 0 | M105: 15
C106: D2169198 | D106: Aceite de semillas oleaginosas, sin refinar n.c.p. | E106: 1 | F106: =ROW() -> 106 | G106: 8 | J106: 2.1.1.01.03.019 | K106: Prima de clima o prima de calor Es el reconocimiento económico que se realiza a los empleados públicos que desempeñan sus funciones en condiciones climáticas desfavorables para su salud, de acuerdo con las condiciones legales. | L106: 0 | M106: 15
C107: D2161201 | D107: Aceite de soja, refinado | E107: 1 | F107: =ROW() -> 107 | G107: 8 | J107: 2.1.1.01.03.020 | K107: Estímulos a los empleados del Estado Es el pago de incentivos pecuniarios a los empleados públicos, que tienen por objetivo elevar los niveles de eficiencia, satisfacción, desarrollo y bienestar en el desempeño sus funciones. Lo anterior, en el marco de los programas de incentivos que contempla el sistema de estímulos para los empleados del Estado, regulado por el Decreto 1567 de 1998.No incluye:•Incentivos no pecuniarios establecidos en los planes institucionales según lo dispuesto en el Decreto 1567 de 1998. | L107: 0 | M107: 15
C108: D2161101 | D108: Aceite de soja, sin refinar | E108: 1 | F108: =ROW() -> 108 | G108: 8 | J108: 2.1.1.01.03.021 | K108: Remuneración electoral De acuerdo con el Decreto 1434 de 1982, es el pago a los funcionarios de planta (o ex funcionarios que hubiesen laborado en el periodo pre-electoral) de la Registraduría Nacional del Estado Civil, correspondiente al 150% de su asignación básica mensual.Esta prima se paga una sola vez en cada año electoral, en el mes siguiente la celebración de la última elección del respectivo año (Decreto 1103 de 2015). Esta prima no aplica al Registrador Nacional. | L108: 0 | M108: 15
C109: D3541005 | D109: Aceite esencial de eucalipto | E109: 1 | F109: =ROW() -> 109 | G109: 8 | J109: 2.1.1.01.03.022 | K109: Prima de instalación Reconocimiento que hace la ley a los Oficiales, Suboficiales, Personal del Nivel ejecutivo de la Policía Nacional y los empleados públicos del Ministerio de Defensa, que se encuentren casados, en unión marital permanente o con hijos a su cargo; cuando el traslado o la comisión permanente sea al interior del país (Decreto 1028 de 2015). El pago de la prima de instalación se realiza de conformidad con las disposiciones legales correspondientes.De acuerdo con el artículo 76 de la Ley 32 de 1986, son beneficiarios de la prima de instalación, los miembros del Cuerpo de Custodia y Vigilancia Penitenciaria Nacional que sean trasladados de una localidad a otra, siempre y cuando la solicitud del traslado no la haya realizado el empleado.En cumplimiento a lo establecido en artículo 3° del Decreto Ley 4064 de 2011, Migración Colombia reconoce a los funcionarios incorporados del DAS, la prima de instalación establecida en el artículo 5 del Decreto 1933 de 1989. | L109: 0 | M109: 15
C110: D3339007 | D110: Aceite mineral | E110: 1 | F110: =ROW() -> 110 | G110: 8 | J110: 2.1.1.01.03.023 | K110: Prima de coordinación Es el pago que se realiza a los empleados públicos y trabajadores oficiales que “tengan planta global y que tengan a su cargo la coordinación o supervisión de grupos internos de trabajo, creados mediante resolución del jefe del organismo respectivo” (Decreto 1101 de 2015).El pago de esta prima es reconocido a los empleados de los Ministerios, Departamentos Administrativos, Superintendencias, Establecimientos Públicos, Corporaciones Autónomas Regionales y de Desarrollo Sostenible, las Empresas Sociales del Estado y las Unidades Administrativas Especiales (Decreto 1101, 2015). Esta prima debe ser reconocida a los funcionarios que la ley determine como beneficiarios.Para el caso del Distrito de Bogotá, este reconocimiento se otorga de manera mensual y equivale a un veinte por ciento (20%) adicional al valor de la asignación básica mensual del empleo del cual sean titulares, durante el tiempo en que ejerzan tales funciones. | L110: 0 | M110: 15
C111: D3339008 | D111: Aceites de dilución | E111: 1 | F111: =ROW() -> 111 | G111: 8 | J111: 2.1.1.01.03.024 | K111: Prima de alta gestión De acuerdo con el Decreto 1094 de 2015, la prima de alta gestión es el pago equivalente a “la diferencia entre los ingresos laborales totales anuales recibidos por el Contralor General de la República y los Ingresos laborales totales anuales del Auditor General, sin que en ningún caso los supere” (Decreto 1094 de 2015).Por otro lado, el Decreto 1093 de 2015, reconoce el pago de una prima de alta gestión equivalente al 20% de la asignación básica mensual de los siguientes funcionarios de la Contraloría General de la República: Contralor Delegado, Director de Oficina, Secretario Privado, Director y Gerente. | L111: 0 | M111: 15
C112: D2159001 | D112: Aceites de origen animal hidrogenados | E112: 1 | F112: =ROW() -> 112 | G112: 8 | J112: 2.1.1.01.03.025 | K112: Prima de alto mando Pago que se realiza a los Oficiales de las Fuerzas Militares, los Generales y los Almirantes de la Policía Nacional de acuerdo con lo dispuesto por el Decreto 1028 de 2015; el cual establece:" los Oficiales de las Fuerzas Militares y de la Policía Nacional en los grados de General y Almirante, percibirán por todo concepto una asignación mensual igual a la que devenguen los Ministros del Despacho como asignación básica y gastos de representación, en todo tiempo, distribuida así: el cuarenta y cinco por ciento (45%) como sueldo básico y el cincuenta y cinco por ciento (55%) como prima de alto mando. | L112: 0 | M112: 15
C113: D2169301 | D113: Aceites de origen vegetal hidrogenados | E113: 1 | F113: =ROW() -> 113 | G113: 8 | J113: 2.1.1.01.03.026 | K113: Prima de instalación en el exterior Prima que se reconoce a los Oficiales y Suboficiales de las Fuerzas Militares en servicio activo y a los empleados públicos del Ministerio de Defensa, que sean trasladados o destinados en comisión permanente al exterior del país y tengan por ello que cambiar de guarnición o lugar de residencia. | L113: 0 | M113: 15
C114: D2169112 | D114: Aceites de origen vegetal para farmacia | E114: 1 | F114: =ROW() -> 114 | G114: 8 | J114: 2.1.1.01.03.027 | K114: Prima de alojamiento en el exterior Prima que se otorga a los Oficiales y Suboficiales de la Policía Nacional en servicio activo, casados o viudos con hijos, que desempeñen comisiones permanentes en el exterior, tendrán derecho mientras cumplan la comisión, siempre y cuando lleven a su familia a residir a la nueva sede, a gozar de una prima mensual de alojamiento hasta del siete por ciento (7%) del sueldo básico correspondiente a su grado, liquidada en dólares a razón de un dólar por cada peso.Los Oficiales y Suboficiales solteros y los casados o viudos que no lleven a su familia a la respectiva sede cuando desempeñen comisiones permanentes en el exterior, tendrán derecho a una prima de alojamiento hasta del cinco por ciento (5%) del sueldo básico correspondiente a su grado, que se pagará en dólares a razón de un dólar por cada peso (Decreto 1212 de 1990). | L114: 0 | M114: 15
C115: D3541004 | D115: Aceites esenciales | E115: 1 | F115: =ROW() -> 115 | G115: 8 | J115: 2.1.1.01.03.028 | K115: Vivienda para embajadores Gasto generado en la situación en la que un funcionario escalafonado en la Categoría de Embajador fuere designado Cónsul General o en Comisión para Situaciones Especiales, en un cargo correspondiente a una categoría inmediatamente inferior en el escalafón de la carrera. A dicho funcionario, se le reconoce como beneficio adicional para vivienda en el exterior, una suma de dinero equivalente al treinta por ciento (30%) de la asignación básica mensual del cargo de destino en el exterior (Decreto 274 de 2000). | L115: 0 | M115: 15
C116: D3339004 | D116: Aceites especiales | E116: 1 | F116: =ROW() -> 116 | G116: 8 | J116: 2.1.1.01.03.029 | K116: Bonificación por seguro de vida colectivo Gastos por bonificación individual mensual con destino al Fondo de Solidaridad del Ministerio de Defensa Nacional-Seguro de Vida Colectivo. Son beneficiaros de esta bonificación:- Oficiales y Suboficiales de las Fuerzas Militares y de la Policía Nacional- Personal del Nivel Ejecutivo de la Policía Nacional- Agentes de los Cuerpos Profesionales de la Policía Nacional, personal civil del Ministerio de Defensa, de las Fuerzas Militares y la Policía Nacional- Los Alférez, Guardiamarinas, Pilotines, los cadetes, los alumnos de las Escuelas de Formación de Suboficiales- Nivel Ejecutivo de la Policía Nacional, los Soldados, Auxiliares de Policía Bachilleres, Grumetes de las Fuerzas Militares- Personal del Cuerpo Auxiliar de la Policía Nacional. | L116: 0 | M116: 15
C117: D3339006 | D117: Aceites especiales para aislamiento-dieléctrico | E117: 1 | F117: =ROW() -> 117 | G117: 8 | J117: 2.1.1.01.03.030 | K117: Bonificación licenciamiento Es el pago obligatorio al que tiene derecho todo colombiano que se encuentre prestando el servicio militar como concepto de una última bonificación que será equivalente a un salario mínimo mensual vigente (Ley 48, 1993). | L117: 0 | M117: 15
C118: D3339005 | D118: Aceites livianos y otros | E118: 1 | F118: =ROW() -> 118 | G118: 8 | J118: 2.1.1.01.03.031 | K118: Bonificación dragoneante Recursos destinados al reconocimiento (bonificación) de los agentes de policía que sean reconocidos como dragoneantes. Esta bonificación es reconocida mientras los agentes ostenten dicha distinción (Decreto 1028, 2015). | L118: 0 | M118: 15
C119: D3338004 | D119: Aceites lubricantes | E119: 1 | F119: =ROW() -> 119 | G119: 8 | J119: 2.1.1.01.03.032 | K119: Bonificación agente cuerpo profesional especial Pago al que tienen derecho los Agentes del Cuerpo Profesional Especial por concepto de bonificación del treinta por ciento (30%) de su sueldo básico mensual, la cual se incrementará en un diez por ciento (10%) por cada año de servicio en este cuerpo, sin sobrepasar el ciento por ciento (100%) de dicho sueldo básico (Ley 21 de 1979). | L119: 0 | M119: 15
C120: D3338002 | D120: Aceites lubricantes en bruto-básicos | E120: 1 | F120: =ROW() -> 120 | G120: 8 | J120: 2.1.1.01.03.033 | K120: Bonificación buena conducta Es el pago a la bonificación contemplada en el art. 43 del Decreto 1213 de 1990, el cual establece: "los Agentes de la Policía Nacional en servicio activo que completen períodos quinquenales continuos de servicio y observen buena conducta durante los mismos, tendrán derecho a una recompensa por cada cinco (5) años de servicio, equivalente a la totalidad de los haberes en actividad, devengados en el último mes en que cumplan el quinquenio".Incluye también la jineta de buena conducta que se reconoce legalmente a los suboficiales que durante un período de tres (3) años consecutivos no registran en su folio de vida ninguna sanción disciplinaria. En este caso, según lo dispuesto en el artículo 47 de la Ley 836 de 2003, por cada período de tres (3) años en las mismas condiciones se otorga una nueva jineta, y a partir de la tercera jineta se disminuye el período a dos (2) años.El período de tres (3) o dos (2) años se cuenta de acuerdo con el lapso de evaluación establecido en el Reglamento de Evaluación y Clasificación para el personal de las Fuerzas Militares. | L120: 0 | M120: 15
C121: D2170001 | D121: Aceites mezclados para la mesa y la cocina | E121: 1 | F121: =ROW() -> 121 | G121: 8 | J121: 2.1.1.01.03.034 | K121: Partida alimentación Recursos destinados a financiar la partida diaria de alimentación para el personal de soldados e infantes de marina de las Fuerzas Militares y personal del Cuerpo Auxiliar de la Policía Nacional. | L121: 0 | M121: 15
C122: D3543002 | D122: Aceites minerales | E122: 1 | F122: =ROW() -> 122 | G122: 8 | J122: 2.1.1.01.03.035 | K122: Partida alimentación orden público y cobertura de fronteras Gastos por concepto de alimentación de los oficiales, suboficiales y agentes de las Fuerzas Militares y de la Policía Nacional que presten sus servicios, en áreas donde se desarrollen operaciones especiales para restablecer el orden público y de cobertura de fronteras (Decretos 1211 y 1214 de 1990). | L122: 0 | M122: 15
C123: D3532316 | D123: Aceites para tocador | E123: 1 | F123: =ROW() -> 123 | G123: 8 | J123: 2.1.1.01.03.036 | K123: Bonificación de actividad judicial Reconocimiento económico al buen desempeño de los jueces, fiscales y procuradores judiciales, creado en virtud del Decreto 3131 de 2005. Esta bonificación constituye factor para efectos de determinar el ingreso base de cotización del Sistema General de Pensiones, y de acuerdo con laLey 797 de 2003, para la cotización al Sistema General de Seguridad Social en Salud (Decreto 3900 de 2008, art. 1) mas no para determinar elementos salariales ni prestaciones sociales. | L123: 0 | M123: 15
C124: D3339009 | D124: Aceites parafínicos | E124: 1 | F124: =ROW() -> 124 | G124: 8 | J124: 2.1.1.01.03.037 | K124: Bonificación especial personal secuestrado Recursos destinados a financiar la bonificación especial de los Oficiales y Suboficiales de las Fuerzas Militares que se hayan encontrado en cautiverio, de acuerdo con la Ley 1279 de 2009 y sus decretos reglamentarios. | L124: 0 | M124: 15
C125: D3531001 | D125: Aceites sulfonados para textiles | E125: 1 | F125: =ROW() -> 125 | G125: 8 | J125: 2.1.1.01.03.038 | K125: Prima de traslado Corresponde a los recursos destinados al pago de un auxilio de traslado equivalente a la mitad del sueldo básico (para el caso de la Registraduría Nacional del Estado Civil), por concepto de los gastos de traslado, cuando un funcionario es nombrado con carácter permanente para ocupar un cargo en otro municipio. | L125: 0 | M125: 15
C126: D3999003 | D126: Aceites y grasas comestibles usados (desechos) | E126: 1 | F126: =ROW() -> 126 | G126: 8 | J126: 2.1.1.01.03.039 | K126: Servicios prestados por vacaciones personal titular rama jurisdiccional y Fiscalía Recursos destinados al pago de los servicios prestados por quienes suplieron temporalmente las funciones del personal titular de la Rama Jurisdiccional y la Fiscalía General de la Nación. | L126: 0 | M126: 15
C127: D0145001 | D127: Aceitunas | E127: 1 | F127: =ROW() -> 127 | G127: 8 | J127: 2.1.1.01.03.040 | K127: Alimentación alumnos Gastos por concepto de alimentación de los alumnos, particularmente, del Departamento Administrativo de Seguridad, otorgado a estos durante la realización de los cursos de detective. | L127: 0 | M127: 15
C128: D2139904 | D128: Aceitunas en conserva | E128: 1 | F128: =ROW() -> 128 | G128: 8 | J128: 2.1.1.01.03.041 | K128: Bonificación alumnos Es el reconocimiento económico correspondiente al 20% de la asignación básica mensual del cargo de dragoneante 4114 grado 11 del INPEC, como bonificación mensual para los estudiantes de la Escuela Penitenciaria Nacional Enrique Low Murtra.Asimismo, son los recursos destinados a los Alféreces, Guardiamarinas y Pilotines de las Escuelas de Formación de Oficiales y los Alumnos de las Escuelas de Formación de Suboficiales, los cuales tiene derecho a una bonificación mensual de acuerdo con las disposiciones legales vigentes. | L128: 0 | M128: 15
C129: D3549933 | D129: Aceleradores de fraguado para concreto | E129: 1 | F129: =ROW() -> 129 | G129: 8 | J129: 2.1.1.01.03.042 | K129: Subsidio familiar Es el pago de la prestación social reconocida a diferentes rangos de las Fuerzas Militares y Policías, y al cuerpo de custodia y vigilancia penitenciaria y carcelaria nacional, por concepto de subsidio familiar de acuerdo con las condiciones dispuestas legalmente.Por ejemplo, el subsidio familiar se le reconoce al personal del nivel ejecutivo de la Policía Nacional en servicio activo; en proporción del número de personas a cargo y su remuneración mensual (Decreto 1091 de 1995). Este subsidio familiar está a cargo del Instituto para la Seguridad Social y Bienestar de la Policía Nacional.En el caso de los soldados, el artículo 11 del Decreto 1794 de 2000, les reconoce como subsidio familiar un pago equivalente al 4% de su salario básico mensual más la prima de antigüedad.Por último, para el cuerpo de custodia y vigilancia penitenciaria y carcelaria nacional, constituye el derecho a un pago del siete por ciento (7%) adicional al subsidio familiar a que tienen derecho los funcionarios de acuerdo con las normas vigentes. Dicho reconocimiento no constituye factor salarial y se paga por unidad familiar (Decreto 446 de 1994, art. 15). | L129: 0 | M129: 15
C130: D3549917 | D130: Aceleradores de vulcanización | E130: 1 | F130: =ROW() -> 130 | G130: 8 | J130: 2.1.1.01.03.043.01 | K130: Beneficios a los empleados a corto plazo | L130: 0 | M130: 18
C131: D4332004 | D131: Aceleradores y reductores de velocidad | E131: 1 | F131: =ROW() -> 131 | G131: 8 | J131: 2.1.1.01.03.043.02 | K131: Beneficios a los empleados a largo plazo | L131: 0 | M131: 18
C132: D0121903 | D132: Acelga | E132: 1 | F132: =ROW() -> 132 | G132: =LEN(C132) -> 8 | J132: 2.1.1.01.03.044 | K132: Incentivos laborales DIAN Incluye el pago de los incentivos al desempeño en fiscalización y cobranzas y los incentivos por desempeño grupal que se reconocen a los empleados de la Unidad Especial de Impuestos y Aduanas Nacionales - DIAN, en virtud de lo dispuesto por el Decreto 1268 de 1999 y el Decreto 4050 de 2005. | L132: 0 | M132: =LEN(J132) -> 15
C133: D4112103 | D133: Acero en bloques pudelados y formas similares | E133: 1 | F133: =ROW() -> 133 | G133: 8 | J133: 2.1.1.01.03.045 | K133: Prima de seguridad Gastos por concepto de la prima liquidada para aquellos empleados del Instituto Nacional Penitenciario y Carcelario - INPEC que presten sus servicios en centros o pabellones de alta seguridad, equivalente hasta el cincuenta por ciento (50%) de la asignación o sueldo básico mensual, que no podrá exceder el monto fijado en la Ley. Esta prima no constituye factor salarial para ningún efecto legal (Decreto 1029 de 2013). | L133: 0 | M133: 15
C134: D4112102 | D134: Acero en formas de llantón, palanquilla y otros similares | E134: 1 | F134: =ROW() -> 134 | G134: 8 | J134: 2.1.1.01.03.046 | K134: Prima de vigilantes instructores Los miembros del Cuerpo de Custodia y Vigilancia del Instituto Nacional Penitenciario y Carcelario - INPEC, que acrediten título de idoneidad y ejerzan las funciones de instructores, tendrán derecho, previo concepto del Director General del INPEC a disfrutar de una prima del diez por ciento (10%) mensual sobre el sueldo básico, que no constituye factor salarial, mas cumplan simultáneamente las funciones de vigilancia y enseñanza (Decreto 446 de 1994). | L134: 0 | M134: 15
C135: D4112101 | D135: Acero en lingotes, tochos y formas similares | E135: 1 | F135: =ROW() -> 135 | G135: 8 | J135: 2.1.1.01.03.047 | K135: Bonificación servicio militar Los bachilleres que prestan el servicio militar obligatorio en el Instituto Nacional Penitenciario y Carcelario - INPEC, tendrán derecho a una bonificación que será determinada por el Gobierno Nacional (Decreto 407 de 1994). | L135: 0 | M135: 15
C136: D4112201 | D136: Aceros especiales en lingotes, tochos y otras formas | E136: 1 | F136: =ROW() -> 136 | G136: 8 | J136: 2.1.1.01.03.048 | K136: Bonificación por trabajo y servicios internos Corresponde al gasto que realiza el Instituto Nacional Penitenciario y Carcelario –INPEC como contraprestación por los servicios realizados por los internos, en desarrollo de los programas de trabajo y actividades productivas establecidas y administradas de forma directa por la entidad, que son reconocidos como derecho de las personas procesadas que se encuentran en un centro reclusorio (Ley 65 de 1993 y Decreto 1758 de 2015).NE :De acuerdo con la Corte Constitucional en Sentencia T-1077/05: “esta aproximación al sistema de estímulos económicos (bonificaciones) por trabajo o servicios que se aplica en los Centros Penitenciarios permite sacar algunas conclusiones de interés para la resolución de los asuntos bajo examen. (i) La bonificación es concebida como un estímulo que no alcanza una cobertura general, para toda la población carcelaria, estando sometida a una reglamentación orientada a introducir criterios de racionalidad y equidad para su asignación; (ii) su ámbito de aplicación es la modalidad de trabajo por administración directa; (iii) corresponde a la Dirección General, determinar las actividades que convocan tal incentivo y asignar de manera global los cupos para cada Establecimiento Penitenciario; (iv) corresponde a los Directores de los Establecimientos, en coordinación con la Junta de evaluación de trabajo, estudio y enseñanza, reglamentar internamente la distribución de los cupos asignados, que tiene una cobertura muy limitada en relación con el número de internos que se dedica a cada una de las actividades que se incentivan; (v) para la asignación de las bonificaciones debe mediar la autorización de la Junta de evaluación de trabajo, estudio y enseñanza.” | L136: 0 | M136: 15
C137: D3522008 | D137: Acetaminofén | E137: 1 | F137: =ROW() -> 137 | G137: 8 | J137: 2.1.1.01.03.049 | K137: Seguro de muerte en actividad Los miembros del Cuerpo de Custodia y Vigilancia Penitenciaria y Carcelaria Nacional, gozan de un seguro por muerte equivalente a quince (15) mensualidades del último salario devengado.El valor de dicho seguro será equivalente a treinta (30) mensualidades del último salario devengado, en el evento de que la muerte sea como consecuencia de accidente de trabajo o enfermedad profesional y excluye la indemnización a que se refieren los artículos 16 y 23 del Decreto 1848 de 1969, a menos que el accidente o enfermedad profesional se hayan ocasionado por culpa imputable a la entidad empleadora, en cuyo caso habrá lugar a la indemnización total y ordinaria por perjuicio.Si prosperare esta indemnización se descontará de su cuantía el valor de las prestaciones e indemnizaciones en dinero pagadas en razón de los expresados infortunios de trabajo (Decreto 407 de 1994). | L137: 0 | M137: 15
C138: D3522016 | D138: Acetanilida | E138: 1 | F138: =ROW() -> 138 | G138: 8 | J138: 2.1.1.01.03.050 | K138: Prima de orden público Reconocimiento económico que hace la ley a los Oficiales y Suboficiales de las Fuerzas Militares que prestan sus servicios en lugares donde se desarrollan operaciones militares para restablecer el orden público. Esta prima mensual es equivalente al veinticinco por ciento (25%) del sueldo básico y las zonas y condiciones para su pago las define el Ministerio de Defensa Nacional (Decreto 1211 de 1990, art. 98).Incluye también el reconocimiento económico que hace la ley a los empleados del Departamento Administrativo de Seguridad – DAS incorporados a la Unidad Nacional de Protección, que prestan sus servicios permanentemente en zonas del país afectadas por graves alteraciones del orden público (Decreto 1933 de 1989, art. 2 y Decreto 4067 de 2011, art.3). | L138: 0 | M138: 15
C139: D3414009 | D139: Acetato de aluminio | E139: 1 | F139: =ROW() -> 139 | G139: 8 | J139: 2.1.1.01.03.051 | K139: Bonificación para gastos personales del Batallón Guardia Presidencial y de los Batallones de Policía Militar Reconocimiento económico que hace la ley a los Soldados del Batallón Guardia Presidencial y de los Batallones de Policía Militar que hayan terminado el curso básico de esta especialidad. Dichos funcionarios tienen derecho a una bonificación mensual adicional para gastos personales equivalente a dieciocho mil ciento dos pesos ($18.102) m/cte, respectivamente (Decreto anual de salarios). | L139: 0 | M139: 15
C140: D3414014 | D140: Acetato de bario | E140: 1 | F140: =ROW() -> 140 | G140: 8 | J140: 2.1.1.01.03.052 | K140: Bonos escolares y navideños Reconocimiento de las entidades a sus funcionarios de planta en cumplimiento de una negociación colectiva, a pagar un subsidio escolar a cada uno de los hijos de los trabajadores oficiales y cualquier grado de escolaridad. Incluye de igual forma el reconocimiento dque haga la entidad por bonos de navidad en el mes de diciembre al funcionario o a las hijos menores de 18 años del mismo. | L140: 0 | M140: 15
C141: D3414007 | D141: Acetato de calcio | E141: 1 | F141: =ROW() -> 141 | G141: 8 | J141: 2.1.1.01.03.053 | K141: Bonificación edecanes Bonificación adicional que reconoce la ley a los oficiales de las Fuerzas Militares y de la Policía Nacional destacados como edecanes al servicio del Presidente y del Vicepresidente de la República. (Decretos 83 y 837 de 1995, art. 1). | L141: 0 | M141: 15
C142: D3479005 | D142: Acetato de celulosa | E142: 1 | F142: =ROW() -> 142 | G142: 8 | J142: 2.1.1.01.03.054 | K142: Prima de bucería Reconocimiento económico que hace la ley a los Oficiales y Suboficiales de la Armada Nacional que hayan obtenido patente que los acredite como buzos y que realicen dicha actividad por hora o fracción mayor de cuarenta y cinco (45) minutos en actos del servicio (Decreto 1211 de 1990, art. 88). | L142: 0 | M142: 15
C143: D3414013 | D143: Acetato de cobre | E143: 1 | F143: =ROW() -> 143 | G143: 8 | J143: 2.1.1.01.03.055 | K143: Prima comandos Reconocimiento económico que hace la ley a los Oficiales de las Fuerzas Militares a quienes se les otorga el título de Comando Especial Terrestre en el Ejército, Comando Anfibio o de Selva en la Armada y Comando Especial Aéreo en la Fuerza Aérea, y se desempeñan dentro de ellos. Esta prima es equivalente al veinte por ciento (20%) del sueldo básico mensual correspondiente a su grado, de acuerdo con reglamentación que expida el Gobierno (Decreto 1211 de 1990, art. 90). | L143: 0 | M143: 15
C144: D3414010 | D144: Acetato de cromo | E144: 1 | F144: =ROW() -> 144 | G144: 8 | J144: 2.1.1.01.03.056 | K144: Prima de Estado Mayor y academia superior Reconocimiento económico que hace la ley a los Oficiales de las Fuerzas Militares en servicio activo con título de Oficial de Estado Mayor. Esta prima corresponde al veinte por ciento (20%) del sueldo básico (Decreto 1211 de 1990, art. 92). | L144: 0 | M144: 15
C145: D3414011 | D145: Acetato de hierro | E145: 1 | F145: =ROW() -> 145 | G145: 8 | J145: 2.1.1.01.03.057 | K145: Prima submarinista Reconocimiento económico que hace la ley a los Oficiales y Suboficiales de la Armada Nacional que presten sus servicios a bordo de submarinos como integrantes de su tripulación. Esta prima es equivalente al diez por ciento (10%) del sueldo básico correspondiente al grado del funcionario y a un diez por ciento (10%) adicional mientras estén navegando (Decreto 1211 de 1990, art. 101). | L145: 0 | M145: 15
C146: D3414012 | D146: Acetato de plomo | E146: 1 | F146: =ROW() -> 146 | G146: 8 | J146: 2.1.1.01.03.058 | K146: Prima de salto Reconocimiento económico que hace la ley a los Oficiales y Suboficiales de las Fuerzas Militares que hayan sido instruidos como paracaidistas y que realicen saltos en actos de su servicio. Esta prima es equivalente a un quince por ciento (15%) del sueldo básico mensual correspondiente a su grado, porcentaje que aumenta en un uno por ciento (1%) por cada veinte (20) saltos efectuados, hasta completar ciento veinte (120). De ciento veinte (120) saltos en adelante, sólo se computa un medio por ciento (0.5%) por cada veinte (20) saltos adicionales, sin que el total de la prima de salto en paracaídas pueda exceder del sueldo básico mensual correspondiente al grado (Decreto 1211 de 1990, art. 99). | L146: 0 | M146: 15
C147: D3471002 | D147: Acetato de polietileno | E147: 1 | F147: =ROW() -> 147 | G147: 8 | J147: 2.1.1.01.03.059 | K147: Prima de vuelo Reconocimiento económico que hace la ley a los Oficiales y Suboficiales de la Aviación del Ejército, los Oficiales de la Aviación Naval y Suboficiales de Mantenimiento Aeronáutico en la Armada, los Oficiales de Vuelo y Suboficiales Técnicos de la Fuerza Aérea en desempeño de sus funciones como tripulantes de aeronaves militares y otra clase de aeronaves al servicio de las Fuerzas Militares, siempre que comprueben haber volado durante un mínimo de cuatro (4) horas mensuales. Esta prima es equivalente al veinte por ciento (20%) del sueldo básico mensual correspondiente al respectivo grado, porcentaje que aumenta en un uno por ciento (1%) por cada cien (100) horas de vuelo, hasta completar tres mil (3.000) horas. De tres mil (3.000) horas en adelante sólo se computa el medio por ciento (0.5%) por cada cien (100) horas adicionales, sin que el total de la prima de vuelo pueda exceder el sueldo básico del Oficial o Suboficial. Los Oficiales Generales de vuelo de la Fuerza Aérea pueden percibir esta prima sin necesidad de cumplir con el requisito de horas mínimas de vuelo. Así mismo, según lo dispuesto por ley, las horas voladas en aeronaves de turbo-reacción se computarán doble, siempre que éstas sean de combate o de entrenamiento de combate (Decreto 1211 de 1990, art. 103). | L147: 0 | M147: 15
C148: D3414008 | D148: Acetato de potasio | E148: 1 | F148: =ROW() -> 148 | G148: 8 | J148: 2.1.1.01.03.060 | K148: Prima especialista Reconocimiento económico que hace la ley a los Suboficiales de las Fuerzas Militares en servicio activo que adquieran una especialidad técnica mediante un curso cuya duración mínima sea de mil seiscientas (1.600) horas de clase o cuarenta y ocho (48) semanas de instrucción. Esta prima es equivalente al diez por ciento (10%) del sueldo básico mensual correspondiente a su grado, siempre y cuando se desempeñen en la respectiva especialidad. Los Suboficiales en los grados de Sargento Mayor, Suboficial Jefe Técnico y Suboficial Técnico Jefe, por el solo hecho de obtener estos grados, tienen derecho a la prima de especialista (Decreto 1211 de 1990, art. 91). | L148: 0 | M148: 15
C149: D3414006 | D149: Acetato de sodio | E149: 1 | F149: =ROW() -> 149 | G149: 8 | J149: 2.1.1.01.03.061 | K149: Prima oficiales superiores Reconocimiento económico que hace la ley a los Oficiales de las Fuerzas Militares y de la Policía Nacional, en los grados de Teniente General y Almirante de Escuadra, de Mayor General y Vicealmirante, de Brigadier General y Contralmirante, y de Coronel y Capitán de Navío. Los oficiales con estos grados tienen derecho a primas mensuales equivalentes al cincuenta y cuatro por ciento (54%), al cincuenta y tres punto treinta y dos por ciento (53.32%), al cuarenta y siete punto ochenta por ciento (47.80%) y al treinta y seis punto ochenta y uno por ciento (36.81%), respectivamente, sobre lo que en todo tiempo devenguen los Ministros del Despacho como asignación básica y gastos de representación (Decreto anual de salarios). | L149: 0 | M149: 15
C150: D3414021 | D150: Acetato de vinilo | E150: 1 | F150: =ROW() -> 150 | G150: 8 | J150: 2.1.1.01.03.062 | K150: Prima cuerpo administrativo Reconocimiento económico que hace la ley a los Oficiales del Cuerpo Administrativo de las Fuerzas Militares que prestan los servicios profesionales de su especialidad por tiempo completo. Esta prima es equivalente al cuarenta por ciento (40%) del sueldo básico correspondiente a su grado (Decreto 1211 de 1990, art. 96). | L150: 0 | M150: 15
C151: D3414015 | D151: Acetatos de etilo, butilo, amilo, propilo y similares | E151: 1 | F151: =ROW() -> 151 | G151: 8 | J151: 2.1.1.01.03.063 | K151: Bonificación aeronáutica Reconocimiento económico que hace la ley a todos los servidores públicos de la Unidad Administrativa Especial de Aeronáutica Civil. Esta bonificación es equivalente al doscientos veinticinco por ciento (225%) de la asignación básica mensual señalada para el respectivo empleo y se reconoce en dos (2) contados iguales, en los meses de enero y septiembre de cada año (Decreto 313 de 2018, art. 17). | L151: 0 | M151: 15
C152: D3411003 | D152: Acetileno | E152: 1 | F152: =ROW() -> 152 | G152: 8 | J152: 2.1.1.01.03.064 | K152: Prima de productividad Reconocimiento económico que hace la ley a los servidores públicos de la Unidad Administrativa Especial de Aeronáutica Civil que cumplan con los indicadores de productividad previamente establecidos. Esta prima se reconoce bimestralmente durante los meses de febrero, abril, junio, agosto, octubre y diciembre y no puede ser inferior al 80% de la asignación básica del empleado (Decreto 313 de 2018, art. 16). | L152: 0 | M152: 15
C153: D3417009 | D153: Acetona | E153: 1 | F153: =ROW() -> 153 | G153: 8 | J153: 2.1.1.01.03.065 | K153: Bonificación judicial Reconocimiento económico que hace la ley a los servidores públicos de la Dirección Ejecutiva de Administración Judicial, las Direcciones Seccionales de la Rama Judicial, los servidores de la Justicia Penal Militar y los servidores de la Fiscalía General de la Nación durante la prestación de sus servicios. Esta bonificación constituye factor para efectos de determinar el ingreso base de cotización del Sistema General de Pensiones y del Sistema General de Seguridad Social en Salud, mas no para determinar elementos salariales ni prestaciones sociales (Decreto 0384 de 2013, Decreto 022 de 2014 y Decreto 1014 de 2017). | L153: 0 | M153: 15
C154: D0159902 | D154: Achiras | E154: 1 | F154: =ROW() -> 154 | G154: 8 | J154: 2.1.1.01.03.066 | K154: Bonificación por servicios de protección y vigilancia Reconocimiento económico que hace la ley al personal del servicio de protección y vigilancia de la Rama Judicial, al personal de las Fuerzas Militares y de la Policía Nacional que presta el servicio de protección y vigilancia al Comandante General de las Fuerzas Militares, Comandantes de Fuerza y Director General de la Policía Nacional, a los Expresidentes de la República, a los Ministros del Despacho, a los Directores de Departamento Administrativo del orden nacional, al Procurador General de la Nación, al Contralor General de la República, al Defensor del Pueblo, al Auditor General de la República, al personal que presta este servicio a los oficiales generales y de insignia en sus diferentes grados, y a los miembros de la Policía Nacional que prestan el servicio de protección y vigilancia a los Honorables Congresistas (Decreto anual de salarios). | L154: 0 | M154: 15
C155: D3414001 | D155: Ácido acético | E155: 1 | F155: =ROW() -> 155 | G155: 8 | J155: 2.1.1.01.03.067 | K155: Prima mensual oficiales y suboficiales Reconocimiento económico que hace la ley a los Oficiales de las Fuerzas Militares y de la Policía Nacional y en servicio activo que ostentan los grados de Teniente Coronel y Capitán de Fragata; y a los Suboficiales de las Fuerzas Militares y de la Policía Nacional en servicio activo que ostentan el grado de Sargento Primero en el Ejército Nacional o su equivalente en las demás fuerzas. Esta prima mensual, sin carácter salarial ni prestacional, es equivalente a dos punto setenta y siete por ciento (2.77%) y a uno punto noventa y dos por ciento (1.92%) respectivamente, de lo que en todo tiempo devenguen los Ministros del Despacho como asignación básica y gastos de representación (Decreto 1017 de 2013, art. 4). | L155: 0 | M155: 15
C156: D3521001 | D156: Ácido acetilsalicílico-aspirina | E156: 1 | F156: =ROW() -> 156 | G156: 8 | J156: 2.1.1.01.03.068 | K156: Prima secretarial Corresponde al reconocimiento que se le otorga los empleados públicos que desempeñen el cargo de secretario, en el nivel administrativo, el cual es equivalente al 2% de la asignación básica mensual. Dicho valor no constituye factor salarial para ningún efecto legal. | L156: 0 | M156: 15
C157: D3414031 | D157: Ácido acrílico o metacrílico | E157: 1 | F157: =ROW() -> 157 | G157: 8 | J157: 2.1.1.01.03.069 | K157: Apoyo de sostenimiento aprendices SENA Corresponde a las erogaciones como contraprestación por los servicios prestados por alumnos aprendices del Servicio Nacional de Aprendizaje (SENA) a través de los contratos de aprendizaje. Uno de los elementos característicos de los contratos de aprendizaje es el reconocimiento y pago al aprendiz de un apoyo del sostenimiento mensual, el cual tiene como fin garantizar el proceso de aprendizaje | L157: 0 | M157: 15
C158: D3479028 | D158: Ácido algínico, sus sales y sus ésteres | E158: 1 | F158: =ROW() -> 158 | G158: 8 | J158: 2.1.1.01.03.070 | K158: Remuneración profesores militares Corresponde la remuneración económica que se reconoce a los militares de planta permanente que prestan servicio de docencia de forma ocasional en los Institutos de Formación y Centros de Capacitación o educación de las Fuerzas Militares. Esta remuneración se reconoce al profesor militar por cada hora de clase dictada y corresponde a un porcentaje determinado y liquidado sobre el salario básico mensual. de acuerdo con la categoría a cargo del mismo | L158: 0 | M158: 15
C159: D3414027 | D159: Ácido benzoico | E159: 1 | F159: =ROW() -> 159 | G159: 8 | J159: 2.1.1.01.03.071 | K159: Prima por dependientes Corresponde al reconocimiento mensual que realiza la Superintendencia de Sociedades, la Superintendencia de Industria y Comercio, la Superintendencia Financiera de Colombia y el Instituto Nacional de Metrología a favor de los empleados que adscriban beneficiarios que dependan económicamente y cumpla con los requisitos establecidos por ley | L159: 0 | M159: 15
C160: D3423116 | D160: Ácido bórico | E160: 1 | F160: =ROW() -> 160 | G160: 8 | J160: 2.1.1.01.03.072 | K160: Prima de matrimonio Corresponde a la prima que reconoce y paga por única vez la Superintendencia de Sociedades, la Superintendencia de Industria y Comercio, la Superintendencia Financiera de Colombia, el Instituto Nacional de Metrología y el Servicio Nacional de Aprendizaje (SENA) a los funcionarios que contraigan matrimonio, de acuerdo con las disposiciones normativas que aplican para cada entidad | L160: 0 | M160: 15
C161: D3414045 | D161: Ácido cítrico | E161: 1 | F161: =ROW() -> 161 | G161: 8 | J161: 2.1.1.01.03.073 | K161: Prima de nacimiento Corresponde a la prima que reconoce y paga por única vez la Superintendencia de Sociedades, la Superintendencia de Industria y Comercio, la Superintendencia Financiera de Colombia, el Instituto Nacional de Metrología y el Servicio Nacional de Aprendizaje (SENA) a los funcionarios por el nacimiento de un hijo de acuerdo con las disposiciones normativas que aplican para cada entidad | L161: 0 | M161: 15
C162: D3423115 | D162: Ácido clorhídrico (ácido muriático) | E162: 1 | F162: =ROW() -> 162 | G162: 8 | J162: 2.1.1.01.03.074 | K162: Prima semestral Corresponde a una prestación económica equivalente a un mes de del sueldo que tuvieren los empleados al 30 de junio y 31 de diciembre respectivamente, pagaderos los 15 primeros días de junio y diciembre de cada año, en las entidades y regímenes especiales en las que es reconocida. | L162: 0 | M162: 15
C163: D3422002 | D163: Ácido crómico (trióxido de dicromo) | E163: 1 | F163: =ROW() -> 163 | G163: 8 | J163: 2.1.1.01.03.075 | K163: Prima de actividad Corresponde al pago de la prima de actividad que se reconoce y paga a los funcionarios que hayan laborado durante un año continuo en la entidad. Esta prima es equivalente a 15 días del sueldo básico mensual, y es reconocida cuando el interesado acredite la autorización para el disfrute de vacaciones o su compensación en dinero | L163: 0 | M163: 15
C164: D3414060 | D164: Ácido dehidrocólico | E164: 1 | F164: =ROW() -> 164 | G164: 8 | J164: 2.1.1.01.03.076 | K164: Gastos de representación Corresponde al reconocimiento que hace el Ministerio de Relaciones Exteriores a los Embajadores, jefes de Misión Permanente, cónsules Generales Centrales y los Encargados de Negocios para atender las actividades diplomáticas propias de su cargo en el exterior | L164: 0 | M164: 15
C165: D3414003 | D165: Ácido esteárico | E165: 1 | F165: =ROW() -> 165 | G165: 8 | J165: 2.1.1.01.03.077 | K165: Subsidio de anteojos Corresponde al beneficio que se otorga a los funcionarios, con el fin de subsidiar la adquisición de lentes y/o monturas. | L165: 0 | M165: 15
C166: D3414002 | D166: Ácido fórmico | E166: 1 | F166: =ROW() -> 166 | G166: 8 | J166: 2.1.1.01.03.078 | K166: Remuneración adicional de antiguos territorios nacionales Corresponde a una remuneración adicional otorgada a los empleados del Instituto Nacional de Medicina Legal y Ciencias Forenses que trabajen ordinariamente en los departamentos creados en el Artículo 309 de la Constitución Política. Esta remuneración es equivalente al 8% de la asignación básica mensual y se percibirá por cada mes completo de servicio y no constituye factor salarial para ningún efecto legal ( | L166: 0 | M166: 15
C167: D3423201 | D167: Ácido fosfórico u ortofosfórico | E167: 1 | F167: =ROW() -> 167 | G167: 8 | J167: 2.1.1.01.03.079 | K167: convención colectiva de trabajo 2019 2021 cap. 4 Se solicita que en la plataforma CHIP en los formularios programación de gastos y ejecución de gastos se active el código 2.1.2.01.03.079 nombre de la cuenta Prima de Alimentación, dentro de los conceptos de Remuneraciones no Constitutivas de Factor Salarial. Esta prima se encuentra establecida en la CONVENCION COLECTIVA DE TRABAJO 2019-2021 CAPITULO IV SALARIOS, PRIMAS, SUBSIDIOS Y BONIFICACIONES, Artículo 20, Parágrafo 1: " Corresponde a la remuneración que se reconoce, como concepto de prima alimentaria. | L167: 0 | M167: 15
C168: D3414041 | D168: Ácido fumárico | E168: 1 | F168: =ROW() -> 168 | G168: 8 | J168: 2.1.1.01.03.080 | K168: Viáticos y menaje de funcionarios del servicio exterior Corresponde al beneficio que se otorga en dinero a los funcionarios pertenecientes a la Carrera Diplomática y Consular o de Libre Nombramiento y Remoción del Ministerio de Relaciones Exteriores,245que, en ejercicio de sus funciones, requieran desplazarse al exterior o de un país extranjero a otro o entre ciudades distintas del mismo país | L168: 0 | M168: 15
C169: D3414058 | D169: Ácido gálico | E169: 1 | F169: =ROW() -> 169 | G169: 8 | J169: 2.1.1.01.03.081 | K169: Prima de localización Corresponde a la prima que reconoce el Servicio Nacional de Aprendizaje (SENA) a sus Trabajadores Oficiales. Esta prima es equivalente a ocho y medio (8.5) días de salario mínimo legal vigente en las regionales que están establecidas por el SENA o llegaren a establecerse | L169: 0 | M169: 15
C170: D3414046 | D170: Ácido láctico | E170: 1 | F170: =ROW() -> 170 | G170: 8 | J170: 2.1.1.01.03.082 | K170: Subvención de transporte Los soldados del ejército o su equivalente en la Fuerza Pública y los auxiliares del cuerpo de custodia del INPEC, llamados al servicio, una vez licenciado o desacuartelado, tienen derecho a la subvención de la partida de transporte, en el momento del otorgamiento del permiso anual o en caso de calamidad domestica comprobada o catástrofe que haya podido afectar gravemente a su familia | L170: 0 | M170: 15
C171: D3549947 | D171: Ácido nafténico | E171: 1 | F171: =ROW() -> 171 | G171: 8 | J171: 2.1.1.01.03.083 | K171: Auxilio de movilización Corresponde a los recursos destinados por concepto de auxilio de movilización al que tienen derecho los funcionarios de la entidad. | L171: 0 | M171: 15
C172: D3423301 | D172: Ácido nítrico | E172: 1 | F172: =ROW() -> 172 | G172: 8 | J172: 2.1.1.01.03.084 | K172: Prima mensual Corresponde a la prima a la que tienen derecho los oficiales de las Fuerzas Militares y de la Policía Nacional, a partir de su ascenso al grado de Coronel o Capitán de Navío hasta el grado de General o Almirante, mientras permanezcan en servicio activo. Esta prima es equivalente a los 16.5% del sueldo básico, sin perjuicio de la asignación básica y primas mensuales fijadas en las disposiciones legales vigentes | L172: 0 | M172: 15
C173: D3414034 | D173: Ácido oxálico | E173: 1 | F173: =ROW() -> 173 | G173: 8 | J173: 2.1.1.01.03.085 | K173: Partida especial de gastos de viaje Corresponde a la partida otorgada a los oficiales y suboficiales de las Tripulaciones de las Unidades de Flote, destinado en comisión colectiva transitoria al exterior, para visitas operacionales, de transporte, construcción, reparación o de cortesía | L173: 0 | M173: 15
C174: D3415012 | D174: Ácido para-amino salicílico | E174: 1 | F174: =ROW() -> 174 | G174: 8 | J174: 2.1.1.01.03.086 | K174: Auxilio especial de transporte Comprende el reconocimiento y pago del auxilio especial de transporte que realiza el Servicio Nacional de Aprendizaje (SENA) a favor de todos sus trabajadores oficiales. Este auxilio es equivalente al auxilio de transporte decretado por el gobierno, sin embargo, se reconoce de manera independiente al salario devengado por el Trabajador. Cuando el trabajador oficial compruebe tener uno o más hijos estudiando y estos dependan económicamente de él, el SENA pagará mensualmente por cada trabajador oficial247un subsidio extralegal de transporte equivalente al (100%) del auxilio decretado por el Gobierno | L174: 0 | M174: 15
C175: D3423117 | D175: Ácido perclórico | E175: 1 | F175: =ROW() -> 175 | G175: 8 | J175: 2.1.1.01.03.087 | K175: Bonificación por compensación Corresponde al pago que se realiza a los funcionarios públicos determinados por la Ley, para la nivelación de sus ingresos respecto de equivalentes en otros sectores de referencia, este reconocimiento solamente constituye factor salarial para efectos de determinar el Ingreso Base de Cotización (IBC) del Sistema General de Pensiones, y para la cotización al Sistema General de Seguridad Social en Salud, más no para determinar elementos salariales ni prestaciones sociales | L175: 0 | M175: 15
C176: D3413910 | D176: Ácido pirogálico | E176: 1 | F176: =ROW() -> 176 | G176: 8 | J176: 2.1.1.01.03.088 | K176: Prima especial de servicios Reconocimiento económico del 30% del salario básico mensual que hace la ley a los magistrados del Consejo Superior de la Judicatura, de la Corte Suprema de Justicia, de la Corte Constitucional, del Consejo de Estado, el Procurador General de la Nación, el Contralor General de la República, el Fiscal General de la Nación, el Defensor del Pueblo y el Registrador Nacional del Estado Civil con el fin de igualar los ingresos percibidos por estos funcionarios, con aquellos que reciben los miembros del Congreso, sin que en ningún caso los supere.El Gobierno podrá fijar la misma prima para los ministros de despacho, los Generales y Almirantes de la Fuerza Pública. Esta bonificación constituye factor para efectos de determinar el Ingreso Base de Cotización (IBC) del Sistema General de Pensiones, y para la cotización al Sistema General de Seguridad Social en Salud, mas no para determinar elementos salariales ni prestaciones sociales | L176: 0 | M176: 15
C177: D3521003 | D177: Ácido salicílico | E177: 1 | F177: =ROW() -> 177 | G177: 8 | J177: 2.1.1.01.03.089 | K177: Prima especial Art. 14 Ley 4 de 1992 Comprende la prima que es reconocida a los magistrados de todo orden de los Tribunales Superiores de Distrito Judicial y Contencioso Administrativo, agentes del Ministerio Público delegados ante la Rama Judicial y para los jueces de la República, incluidos los magistrados y fiscales del Tribunal Superior Militar, Auditores de Guerra y Jueces de Instrucción Penal Militar, excepto los que opten por la escala de salarios de la Fiscalía General de la Nación, con efectos a partir del 1 de enero de 1993.Igualmente tendrán derecho a percibir esta prima los delegados departamentales del Registrador Nacional del Estado Civil, los registradores del distrito capital y los niveles directivo y asesor de la249Registraduría Nacional del Estado Civil, no podrá ser inferior al 30% ni superior al 60% del salario básico | L177: 0 | M177: 15
C178: D3411027 | D178: Ácido sulfónico | E178: 1 | F178: =ROW() -> 178 | G178: 8 | J178: 2.1.1.01.03.090 | K178: Prima de carabinero Prima a favor del personal de nivel ejecutivo de la Policía Nacional, que ostente la especialidad de carabinero o policía rural y preste sus servicios en las áreas reglamentadas por la Dirección General de la Policía Nacional. Esta prima es equivalente al 5% del sueldo básico, y no tiene carácter salarial para ningún efecto | L178: 0 | M178: 15
C179: D3423114 | D179: Ácido sulfúrico | E179: 1 | F179: =ROW() -> 179 | G179: 8 | J179: 2.1.1.01.03.091 | K179: Bonificación especial por servicios de comisión en la DIAN Corresponde a bonificación especial no constitutiva de factor salarial, equivalente a una asignación mensual adicional equivalente al 30% del sueldo básico mensual, que se reconoce al personal uniformado de la Policía Nacional que preste sus servicios en comisión en la Unidad Administrativa Especial Dirección de Impuestos y Aduanas Nacionales – DIAN.Para tener derecho al reconocimiento y pago de la bonificación especial, el personal uniformado debe haber prestado el servicio total o parcialmente en actividades encaminadas al soporte y apoyo en actuaciones aduaneras, tributarias y cambiarias dirigidas a la lucha contra el contrabando, el lavado de activos y la evasión fiscal y previa certificación del Director de Gestión de Recursos y Administración económica de la DIAN, sobre la prestación del servicio | L179: 0 | M179: 15
C180: D3432011 | D180: Ácido tánico | E180: 1 | F180: =ROW() -> 180 | G180: 8 | J180: 2.1.1.01.03.092 | K180: Indemnizacion compensatorio horas extra Reconocimiento en dinero de los días compensatorios que se hubieren causado hasta la fecha de publicación del Decreto emitido por el DAFP , a favor de cada empleado público, siempre que exista disponibilidad presupuestal y no se afecten los recursos para el pago de horas extras que se vayan a causar en el resto de la presente vigencia. | L180: 0 | M180: 15
C181: D3414044 | D181: Ácido tartárico | E181: 1 | F181: =ROW() -> 181 | G181: 8 | J181: 2.1.1.01.03.093 | K181: Prima o auxilio de Maternidad Es el reconocimiento que se hace a las trabajadoras oficiales y a las esposas o compañeras de los trabajadores oficiales con motivo del nacimiento de un hijo. El valor se establece por convención colectiva de trabajo vigente. | L181: 0 | M181: 15
C182: D3414038 | D182: Ácido tereftálico (PTA) | E182: 1 | F182: =ROW() -> 182 | G182: 8 | J182: 2.1.1.01.03.094 | K182: Prima de Transporte y Manutención Corresponde a la prima que se reconoce a los Servidores Públicos que laboran en determinadas dependencias o en cualquier zona rural del Municipio de Medellín | L182: 0 | M182: 15
C183: D3416003 | D183: Ácido tioglicólico | E183: 1 | F183: =ROW() -> 183 | G183: 8 | J183: 2.1.1.01.03.095 | K183: Prima de Matrimonio Corresponde al reconocimiento que se hace a los trabajadores (as) oficiales, que durante su vinculación al Municipio de Medellín, contraigan matrimonio válidamente celebrado | L183: 0 | M183: 15
C184: D3412099 | D184: Ácidos grasos n.c.p. | E184: 1 | F184: =ROW() -> 184 | G184: 8 | J184: 2.1.1.01.03.096 | K184: Bonificación cargo academico administrativo Reconocimiento de bonificacion mensual a los docentes que por acto administrativo desempeñen cargos academicos y administrativos con funciones directivas. | L184: 0 | M184: 15
C185: D3423199 | D185: Ácidos inorgánicos n.c.p. | E185: 1 | F185: =ROW() -> 185 | G185: 8 | J185: 2.1.1.01.03.097 | K185: Bonificacion por productividad academica Estas bonificaciones se realizan una sola vez y corresponden a actividades especificas de productividad academica y no contemplan pagos genericos indiscriminados | L185: 0 | M185: 15
C186: D3414097 | D186: Ácidos orgánicos n.c.p. | E186: 1 | F186: =ROW() -> 186 | G186: 8 | J186: 2.1.1.01.03.098 | K186: Bonificación Educadores de Básica y Media Bonificaciones no constitutivas de salario a los docentes y directivos al servicio del estado en niveles de preescolar, basica y media. Se reconoce anualmente, durante el tiempo que el funcionario permanezca en el servicio. | L186: 0 | M186: 15
C187: D2799901 | D187: Acolchados de tela | E187: 1 | F187: =ROW() -> 187 | G187: 8 | J187: 2.1.1.01.03.099 | K187: Bonificacion Sindical Corresponde al pago en procesos de negociacion sindical que se destinan a los servidores publicos. No constitutivas de salario. | L187: 0 | M187: 15
C188: D3632006 | D188: Acoples y boquillas de plástico para mangueras | E188: 1 | F188: =ROW() -> 188 | G188: 8 | J188: 2.1.1.01.03.100 | K188: Trienios Recursos destinados al pago que tienen derecho los empleados publicos al cumplir tres años de antiguedad de servicios prestados en un trabajo, segun lo estipulado por la ley. | L188: 0 | M188: 15
C189: D4299938 | D189: Acoples y boquillas para mangueras | E189: 1 | F189: =ROW() -> 189 | G189: 8 | J189: 2.1.1.01.03.101 | K189: Bonificación Zona de Difícil Acceso docentes Prescolar, Básica y Media Los docentes y directivos docentes que laboren en establecimientos educativos estatales, cuyas sedes estén ubicadas en zonas rurales de difícil acceso, tendrán derecho a una bonificación equivalente al quince por ciento (15%) del salario básico mensual que devenguen. Esta bonificación no constituye factor salarial ni prestacional para ningún efecto, se pagará mensualmente, y se causará únicamente durante el tiempo laborado en el año académico. | L189: 0 | M189: 15
C190: D3512003 | D190: Acuarelas | E190: 1 | F190: =ROW() -> 190 | G190: 8 | J190: 2.1.1.01.03.102 | K190: Bonificación Grado 14 docentes Prescolar, Básica y Media Es la bonificación que reciben los Docentes o Directivos Docentes de niveles preescolar, básica y media regidos por el Decreto Ley 2277/1979 y que hagan parte del grado 14 de Escalafón Nacional Docente. Para docentes activos equivale en 2016 al 10% de la ABM y 2017 y siguientes al 15% Asignación básica mensual. Para quienes se retiren del servicio por renuncia voluntaria o por retiro forzoso (edad permitida) equivale a un mes de Asignación Básica Mensual se pagará una sola vez cuando sea efectivamente desvinculado del servicio | L190: 0 | M190: 15
C191: D4233001 | D191: Acumuladores de vapor (tanques metálicos de presión) | E191: 1 | F191: =ROW() -> 191 | G191: 8 | J191: 2.1.1.01.03.103 | K191: Reconocimiento Adicional por gestión directivos docentes Prescolar, Básica y Media El rector que durante el año cumpla con el indicador de gestión, tanto en el componente de permanencia como en el de calidad, y reporte oportunamente la información en el SIMAT, recibirá un reconocimiento adicional equivalente a su última asignación básica mensual que devengó al final del año lectivo, el cual no constituye factor salarial. El porcentaje de deserción intraanual del establecimiento educativo no podrá ser superior al tres por ciento (3%). | L191: 0 | M191: 15
C192: D4642002 | D192: Acumuladores eléctricos alcalinos | E192: 1 | F192: =ROW() -> 192 | G192: 8 | J192: 2.1.1.01.03.104 | K192: Incentivo por Jubilación Recursos destinados al pago a que tienen derecho los empleados públicos y trabajadores oficiales según acuerdo colectivo , el cual es recibido en la liquidación al momento de pensionarse. Estos derechos pueden derivarse de acuerdos de convención colectiva. | L192: 0 | M192: 15
C193: D4642001 | D193: Acumuladores eléctricos de plomo | E193: 1 | F193: =ROW() -> 193 | G193: 8 | J193: 2.1.1.01.03.105 | K193: Prima de Coordinación Académica y Disciplina Reconocimiento a Coordinadores Académicos y de Disciplina con dos jornadas. A los Coordinadores Académicos y de Disciplina de que trata el artículo anterior, a quienes se les asignen dos (2) jornadas, se les reconocerá el valor correspondiente a diez (10) horas cátedra semanales y un máximo de cuarenta (40) horas mensuales, e implicará una permanencia mínima de ocho (8) horas diarias en el Instituto. La liquidación se hará con base en el valor asignado a la hora cátedra establecida en el decreto del escalafón nacional docente para los docentes vinculados a la Nación. | L193: 0 | M193: 15
C194: D3466109 | D194: Adherentes para plaguicidas | E194: 1 | F194: =ROW() -> 194 | G194: 8 | J194: 2.1.1.01.03.106 | K194: Remuneración por defunción | L194: 0 | M194: 15
C195: D3542007 | D195: Adhesivos epóxicos | E195: 1 | F195: =ROW() -> 195 | G195: 8 | J195: 2.1.1.01.03.107 | K195: Auxilios Salud Visual Corresponde a la remuneración que percibe el empleado, en cumplimiento de acuerdos laborales, para la adquisición de lentes, monturas, cirugías refractivas, oftalmológicas, entre otros. | L195: 0 | M195: 15
C196: D3542008 | D196: Adhesivos fusionales (punto caliente) | E196: 1 | F196: =ROW() -> 196 | G196: =LEN(C196) -> 8 | J196: 2.1.1.01.03.108 | K196: Auxilios Salud Dental Corresponde a la remuneración que percibe el empleado, en cumplimiento de acuerdos laborales, para cubrir gastos de salud dental. | L196: 0 | M196: =LEN(J196) -> 15
C197: D3549961 | D197: Aditivo químico coloidal para la estabilización de suelo-cemento | E197: 1 | F197: =ROW() -> 197 | G197: 8 | J197: 2.1.1.01.03.109 | K197: Auxilios Salud Auditiva Corresponde a la remuneración que percibe el empleado, en cumplimiento de acuerdos laborales, para cubrir gastos de salud auditiva. | L197: 0 | M197: 15
C198: D3549997 | D198: Aditivos n.c.p. para caucho | E198: 1 | F198: =ROW() -> 198 | G198: 8 | J198: 2.1.1.01.03.110 | K198: Auxilios Médicos Corresponde a la remuneración que percibe el empleado, en cumplimiento de acuerdos laborales, para cubrir gastos relacionados con la salud. | L198: 0 | M198: 15
C199: D3549934 | D199: Aditivos para concretos | E199: 1 | F199: =ROW() -> 199 | G199: 8 | J199: 2.1.1.01.03.111 | K199: Auxilios Educativos Corresponde a la remuneración que percibe el empleado, en cumplimiento de acuerdos laborales, para cubrir gastos educativos. | L199: 0 | M199: 15
C200: D3543003 | D200: Aditivos para gasolina, aceites minerales y combustible en general | E200: 1 | F200: =ROW() -> 200 | G200: 8 | J200: 2.1.1.01.03.112 | K200: Auxilios por Antigüedad Corresponde al beneficio extralegal por antigüedad que se reconoce en el marco de un acuerdo laboral. | L200: 0 | M200: 15
C201: D3543005 | D201: Aditivos para grasas y aceites lubricantes | E201: 1 | F201: =ROW() -> 201 | G201: 8 | J201: 2.1.1.01.03.113 | K201: Auxilios para Recreación Corresponde a la remuneración que percibe el empleado, en cumplimiento de acuerdos laborales, para cubrir gastos de bienestar. | L201: 0 | M201: 15
... 7211 more rows

Sheet Hoja3 (hidden)
B3: RUBROS | D3: JUSTIFICACIÓN | E3: Fuentes (Miles de $)
E4: *UMNG | G4: Nacional | I4: Javeriana | K4: ICESI | M4: Total
E5: Efectivo | F5: Especie | G5: Efectivo | H5: Especie | I5: Efectivo | J5: Especie | K5: Efectivo | L5: Especie
B7: =COLUMN()-1 -> 1 | C7: =COLUMN()-1 -> 2 | D7: 3 | E7: 4 | F7: 5 | G7: 6 | H7: 7 | I7: 8 | J7: 9 | K7: 10 | L7: 11 | M7: 12

Sheet TB (hidden)
E1: PRESUPUESTO PARA PROYECTO DE INICIACIÓN CIENTÍFICA-PI
E2: ="Tabla 1. PRESUPUESTO GLOBAL PROYECTO "&Presupuesto!D7 -> Tabla 1. PRESUPUESTO GLOBAL PROYECTO
B3: RUBROS | D3: JUSTIFICACIÓN | E3: Fuentes (Miles de $)
E4: *UMNG | G4: Entidad1 | I4: Entidad2 | K4: Entidad3 | M4: Entidad4 | O4: Entidad5 | Q4: Entidad6 | S4: Entidad7 | U4: Entidad8 | W4: Entidad9 | Y4: Entidad10 | AA4: Total
E5: Efectivo | F5: Especie | G5: Efectivo | H5: Especie | I5: Efectivo | J5: Especie | K5: Efectivo | L5: Especie | M5: Efectivo | N5: Especie | O5: Efectivo | P5: Especie | Q5: Efectivo | R5: Especie | S5: Efectivo | T5: Especie | U5: Efectivo | V5: Especie | W5: Efectivo | X5: Especie | Y5: Efectivo | Z5: Especie
B6: 1.1. GASTOS DE PERSONAL (no esta en la lista de rubros) | E6: =SUM(E8:E9) -> 0 | F6: =SUM(F8:F9) -> 0 | G6: 0 | H6: 0 | I6: 0 | J6: 0 | K6: 0 | L6: 0 | M6: 0 | N6: 0 | O6: 0 | P6: 0 | Q6: 0 | R6: 0 | S6: 0 | T6: 0 | U6: 0 | V6: 0 | W6: 0 | X6: 0 | Y6: 0 | Z6: 0 | AA6: =SUM(E6:Z6) -> 0
B7: RUBROS | C7: CÓDIGO | D7: JUSTIFICACIÓN
B8: COMPENSACIÓN ORDINARIA (incluye parafiscales y seguridad social) | C8: 0 | E8: 0 | F8: 0 | AA8: =SUM(E8:Z8) -> 0
B9: PERSONAL DE OTRAS ENTIDADES | C9: 0 | E9: 0 | F9: 0 | AA9: =SUM(E9:Z9) -> 0
B10: 1.1. PERSONAL CIENTÍFICO Y DE APOYO | E10: =SUM(E12:E12) -> 0 | F10: =SUM(F12:F12) -> 0 | G10: 0 | H10: 0 | I10: 0 | J10: 0 | K10: 0 | L10: 0 | M10: 0 | N10: 0 | O10: 0 | P10: 0 | Q10: 0 | R10: 0 | S10: 0 | T10: 0 | U10: 0 | V10: 0 | W10: 0 | X10: 0 | Y10: 0 | Z10: 0 | AA10: =SUM(E10:Z10) -> 0
B11: RUBROS | C11: CÓDIGO | D11: JUSTIFICACIÓN | AA11: 0 | BA11: ID Rubro | BB11: RUBRO | BC11: Fila
A12: 611401 | B12: Personal | C12: 611401 | E12: =VLOOKUP($A12,Dt_Pres2,3,0) -> 0 | F12: =VLOOKUP($A12,Dt_Pres2,6,0) -> 0 | AA12: 0 | BA12: =A12 -> 611401 | BB12: =B12 -> Personal | BC12: =ROW() -> 12
B13: 1.2. ESTIMULO A ESTUDIANTES | E13: =SUM(E15:E16) -> 0 | F13: =SUM(F15:F16) -> 0 | G13: 0 | H13: 0 | I13: 0 | J13: 0 | K13: 0 | L13: 0 | M13: 0 | N13: 0 | O13: 0 | P13: 0 | Q13: 0 | R13: 0 | S13: 0 | T13: 0 | U13: 0 | V13: 0 | W13: 0 | X13: 0 | Y13: 0 | Z13: 0 | AA13: 0 | BA13: =A13 -> 0 | BB13: 1.2. ESTIMULO A ESTUDIANTES | BC13: =ROW() -> 13
B14: RUBROS | D14: JUSTIFICACIÓN | AA14: 0 | BA14: 0 | BB14: RUBROS | BC14: =ROW() -> 14
A15: 612122 | B15: Estímulo a estudiantes Pregrado | C15: 612122 | E15: =VLOOKUP($A15,Dt_Pres2,3,0) -> 0 | F15: =VLOOKUP($A15,Dt_Pres2,6,0) -> 0 | AA15: 0 | BA15: 612122 | BB15: Estímulo a estudiantes Pregrado | BC15: =ROW() -> 15
A16: 612123 | B16: Estímulo a estudiantes Posgrado | C16: 612123 | E16: =VLOOKUP($A16,Dt_Pres2,3,0) -> 0 | F16: =VLOOKUP($A16,Dt_Pres2,6,0) -> 0 | AA16: 0 | BA16: 612123 | BB16: Estímulo a estudiantes Posgrado | BC16: =ROW() -> 16
B17: 1.3. EQUIPOS Y SOFTWARE | E17: =SUM(E19:E23) -> 0 | F17: =SUM(F19:F22) -> 0 | G17: 0 | H17: 0 | I17: 0 | J17: 0 | K17: 0 | L17: 0 | M17: 0 | N17: 0 | O17: 0 | P17: 0 | Q17: 0 | R17: 0 | S17: 0 | T17: 0 | U17: 0 | V17: 0 | W17: 0 | X17: 0 | Y17: 0 | Z17: 0 | AA17: 0 | BA17: 0 | BB17: 1.3. EQUIPOS Y SOFTWARE | BC17: =ROW() -> 17
B18: RUBROS | D18: JUSTIFICACIÓN | AA18: 0 | BA18: 0 | BB18: RUBROS | BC18: =ROW() -> 18
A19: 632 | B19: Equipos y Mobiliario (Equipos) | C19: 632 | E19: =VLOOKUP($A19,Dt_Pres2,3,0) -> 0 | F19: =VLOOKUP($A19,Dt_Pres2,6,0) -> 0 | AA19: 0 | BA19: 632 | BB19: Equipos y Mobiliario (Equipos) | BC19: =ROW() -> 19
A20: 612102 | B20: Software | C20: 612102 | E20: =VLOOKUP($A20,Dt_Pres2,3,0) -> 0 | F20: =VLOOKUP($A20,Dt_Pres2,6,0) -> 0 | AA20: 0 | BA20: 612102 | BB20: Software | BC20: =ROW() -> 20
A21: 612101 | B21: Materiales | C21: 612101 | E21: =VLOOKUP($A21,Dt_Pres2,3,0) -> 0 | F21: =VLOOKUP($A21,Dt_Pres2,6,0) -> 0 | AA21: 0 | BA21: 612101 | BB21: Materiales | BC21: =ROW() -> 21
A22: 612101-1 | B22: Papelería | C22: 612101-1 | E22: =Presupuesto!P56 -> 0 | F22: =_xlfn.IFNA(VLOOKUP($A22,Dt_Pres2,6,0),0) -> 0 | AA22: 0 | BA22: =-BA21 -> -612101 | BB22: Papelería | BC22: =ROW() -> 22
A23: 636012 | B23: Licenciamiento | C23: PIC005 | E23: =VLOOKUP($A23,Dt_Pres2,3,0) -> 0 | F23: =VLOOKUP($A23,Dt_Pres2,6,0) -> 0 | AA23: =SUM(E23:Z23) -> 0 | BA23: 636012 | BB23: Licenciamiento | BC23: =ROW() -> 23
B24: 1.4. SALIDAS DE CAMPO Y MOVILIDAD | E24: =SUM(E26) -> 0 | F24: =SUM(F26) -> 0 | G24: =SUM(G26) -> 0 | H24: =SUM(H26) -> 0 | I24: 0 | J24: 0 | K24: 0 | L24: 0 | M24: 0 | N24: 0 | O24: 0 | P24: 0 | Q24: 0 | R24: 0 | S24: 0 | T24: 0 | U24: 0 | V24: 0 | W24: 0 | X24: 0 | Y24: 0 | Z24: 0 | AA24: 0 | BA24: 0 | BB24: 1.4. SALIDAS DE CAMPO Y MOVILIDAD | BC24: =ROW() -> 24
B25: RUBROS | D25: JUSTIFICACIÓN | AA25: 0 | BA25: 0 | BB25: RUBROS | BC25: =ROW() -> 25
A26: 612104 | B26: Salidas de campo | C26: 612104 | E26: =VLOOKUP($A26,Dt_Pres2,3,0) -> 0 | F26: =VLOOKUP($A26,Dt_Pres2,6,0) -> 0 | AA26: =SUM(E26:Z26) -> 0 | BA26: 612104 | BB26: Salidas de campo | BC26: =ROW() -> 26
B27: 1.5. MATERIALES Y SERVICIOS TÉCNICOS | E27: =SUM(E29) -> 0 | F27: =SUM(F29) -> 0 | G27: 0 | H27: 0 | I27: 0 | J27: 0 | K27: 0 | L27: 0 | M27: 0 | N27: 0 | O27: 0 | P27: 0 | Q27: 0 | R27: 0 | S27: 0 | T27: 0 | U27: 0 | V27: 0 | W27: 0 | X27: 0 | Y27: 0 | Z27: 0 | AA27: 0 | BA27: 0 | BB27: 1.5. MATERIALES Y SERVICIOS TÉCNICOS | BC27: =ROW() -> 27
B28: RUBROS | D28: JUSTIFICACIÓN | AA28: 0 | BA28: 0 | BB28: RUBROS | BC28: =ROW() -> 28
A29: 612103 | B29: Servicios Técnicos | C29: 612103 | E29: =VLOOKUP($A29,Dt_Pres2,3,0) -> 0 | F29: =VLOOKUP($A29,Dt_Pres2,6,0) -> 0 | AA29: =SUM(E29:Z29) -> 0 | BA29: 612103 | BB29: Servicios Técnicos | BC29: =ROW() -> 29
B30: 1.6. PUBLICACIONES Y DIFUSIÓN DE RESULTADOS | E30: =SUM(E32:E33) -> 0 | F30: =SUM(F32:F33) -> 0 | G30: 0 | H30: 0 | I30: 0 | J30: 0 | K30: 0 | L30: 0 | M30: 0 | N30: 0 | O30: 0 | P30: 0 | Q30: 0 | R30: 0 | S30: 0 | T30: 0 | U30: 0 | V30: 0 | W30: 0 | X30: 0 | Y30: 0 | Z30: 0 | AA30: 0 | BA30: 0 | BB30: 1.6. PUBLICACIONES Y DIFUSIÓN DE RESULTADOS | BC30: =ROW() -> 30
B31: RUBROS | D31: JUSTIFICACIÓN | AA31: 0 | BA31: 0 | BB31: RUBROS | BC31: =ROW() -> 31
A32: 633 | B32: Recursos bibliográficos | C32: 633 | E32: =VLOOKUP($A32,Dt_Pres2,3,0) -> 0 | F32: =VLOOKUP($A32,Dt_Pres2,6,0) -> 0 | AA32: 0 | BA32: 633 | BB32: Recursos bibliográficos | BC32: =ROW() -> 32
A33: 635020 | B33: Movilidad | C33: 635020 | E33: =VLOOKUP($A33,Dt_Pres2,3,0) -> 0 | F33: =VLOOKUP($A33,Dt_Pres2,6,0) -> 0 | AA33: =SUM(E33:Z33) -> 0 | BA33: =A33 -> 635020 | BB33: Movilidad | BC33: =ROW() -> 33
B34: TOTAL | D34: =$AA$34 -> 0 | E34: =SUM(E10,E13,E17,E24,E27,E30) -> 0 | F34: =F27+F24+F10+F6+F30+F17 -> 0 | G34: 0 | H34: 0 | I34: 0 | J34: 0 | K34: 0 | L34: 0 | M34: 0 | N34: 0 | O34: 0 | P34: 0 | Q34: 0 | R34: 0 | S34: 0 | T34: 0 | U34: 0 | V34: 0 | W34: 0 | X34: 0 | Y34: 0 | Z34: 0 | AA34: =SUM(E34:Z34) -> 0 | BA34: 0 | BB34: TOTAL | BC34: =ROW() -> 34
BA35: 0 | BB35: 0 | BC35: =ROW() -> 35
A48: =COLUMN() -> 1 | B48: =COLUMN() -> 2 | C48: =COLUMN() -> 3 | D48: =COLUMN() -> 4 | E48: =COLUMN() -> 5 | F48: =COLUMN() -> 6 | G48: =COLUMN() -> 7 | H48: =COLUMN() -> 8 | I48: =COLUMN() -> 9 | J48: =COLUMN() -> 10 | K48: =COLUMN() -> 11 | L48: =COLUMN() -> 12 | M48: =COLUMN() -> 13 | N48: =COLUMN() -> 14 | O48: =COLUMN() -> 15 | P48: =COLUMN() -> 16 | Q48: =COLUMN() -> 17 | R48: =COLUMN() -> 18 | S48: =COLUMN() -> 19 | T48: =COLUMN() -> 20 | U48: =COLUMN() -> 21 | V48: =COLUMN() -> 22 | W48: =COLUMN() -> 23 | X48: =COLUMN() -> 24 | Y48: =COLUMN() -> 25 | Z48: =COLUMN() -> 26 | AA48: =COLUMN() -> 27

Sheet "EXPLICACIÓN RUBROS" (hidden)
B2: ANEXO 1
B3: Este archivo esta conformado por nueve pestañas que facilitan el diligenciamiento de las tablas de presupuesto del proyecto tal como se relacionan a continuación:
B5: Nombre de la Pestaña | E5: Observaciones
B6: Tabla Presupuesto Global | E6: * Esta tabla es equivalente al plan contable de la universidad y se diligencia con base en lo registrado en las demás tablas. * Cada columna y fila debe tener su valor en pesos colombianos y cualquier inconsistencia en el presupuesto, global o detallado, hará que la propuesta sea devuelta. * Si se presenta en la columna Total, texto en color rojo, se debe revisar la tabla respectiva para verificar los valores registrados
B7: Tabla 1.1 - Gastos Personal | E7: * Está conformado por los investigadores y/o profesionales que hacen parte del equipo de trabajo para llevar a cabo el desarrollo del proyecto. *Se cuantifica la participación de profesores vinculados a la Universidad como Tiempo Completo y Medio Tiempo y del personal de otras entidades. * Las celdas en verde claro, despliega una lista con las opciones que pueden seleccionar de acuerdo al nivel de formación y rol en el proyecto. *Con recursos del CONADI no se financia el pago de personal dedicado a actividades del proyecto (Auxiliares de invetigación, investigadores, asesores, consultores, etc)
B8: Tabla 1.2 - Equipos: | E8: * Corresponde a los equipos que se deben adquirir y utlilizar para el desarrollo del proyecto *El valor de los equipos a adquirir debe quedar en la columna de CONADI y los de uso propio donde corresponda bien sea en la columna UCC o como aportes de contrapartida.
B9: Tabla 1.3 - Software | E9: * Software especializado que se requiera adquirir para el desarrollo del proyecto, cuya licencia quede en propiedad de la Universidad Cooperativa de Colombia en el caso que sea comprada con fondos del CONADI.
B10: Tabla 1.4 - Salidas de Campo | E10: * Se refiere a: gastos de medios de transporte para el traslado a zonas de muestreo, ejecución de las labores de campo propias de la investigación, costos de combustible, aceite o alquiler de medios de transporte cuando se requiere.
B11: Tabla 1.5- Materiales y Suministros | E11: * Corresponde a los insumos de oficina o materias primas requeridos para el desarrollo del proyecto. * Las celdas en verde claro, despliega una lista con las opciones que pueden seleccionar de acuerdo al nivel de formación y rol en el proyecto.
B12: Tabla 1.6 - Servicios Técnicos | E12: * Gastos correspondientes a la prestación de servicios para el desarrollo de tareas puntuales en el proyecto.
B13: Tabla 1.7 - Bibliogafía | E13: * Corresponde a la adquisición de material bibliográfico como debidamente justificada y directamente relacionada con la temática del proyecto en la forma de libros y/o suscripciones a revistas científicas del tema.
